Workbook

Sheet ReadMe
C2: BPA Adjustable Speed Drive Market Model Results
C4: This workbook contains the results of BPA's ASD Market Model. This market model focused on quantifying the energy consumption of industrial standalone pumps and fans greater than 1 motor HP in the Pacific Northwest and the Momentum Savings associated with the installation of ASDs on these systems from 2016 through 2021.
C6: 2022-06-17
C8: Tab Name | E8: Description
C9: Model Background | E9: This tab provides relevant background information on the scope and terminology associated with BPA's ASD Market Model.
C10: Table of Figures | E10: This tab presents the table of figures for the "Industrial Sector Results" and "Facility Type Specific Results" tabs, listing all tables included in those tabs.
C11: Summary Results | E11: This tab presents the energy consumption and Momentum Savings calculated for industrial standalone pumps and fans in the Pacific Northwest.
C12: Industrial Sector Results | E12: This tab summarizes the sector-level model results. The results are separated into four categories: Installed Stock, Market Characteristics, Equipment Sales, and Energy Consumption and Momentum Savings.
C13: Facility Type Specific Results | D13: Primary Metal | E13: This tab present the facility type (or "industry") - level results from the market model. The structure of this tab aligns with the "Industrial Sector Results" Tab. To view the results for different facility types, users can select the desired facility type in the drop-down menu in cell D13.
D14: Wood Products
D15: Paper
D16: Computer - Elec
D17: Chemical
D18: Food
D19: Warehousing
D20: Refinery
D21: Fabricated Metal
D22: Transportation
D23: Misc Manf
C24: Model Output (tab hidden) | E24: This tab contains the raw outputs from the ASD market model's Python code. The outputs hosted in this tab are summarized in the tables and figures in the "Industrial Sector Results" and "Facility Type Specific Results" tabs of this workbook.
C26: Prepared by: | E26: Prepared for:
C34: Nate Baker, Cory Luker, Rebecca Hovey, Fred Schaefer, Sarah Widder | E34: Joan Wang
C35: Cadeo Group | E35: Bonneville Power Administration
C36: 107 SE Washington Street, Suite 226 | E36: 905 NE 11th Avenue
C37: Portland, OR 97214 | E37: Portland, OR 97232

Sheet Model Background
C2: BPA Adjustable Speed Drive Market Model Background
C4: This tab provides an overview of the ASD Market Model scope and details terminology used in this workbook. For more background on the motors, ASDs, and motor-driven systems, please review the methodology memo accompanying the model.
C6: ASD Market Model Scope
C8: This table presents an overview of the ASD Market Model scope.
C10: Element | D10: Notes
C11: Analysis period | D11: 2015-2021, which corresponds with the Seventh Plan baseline year (2015) and Action Plan Period (2016-2021).
C12: Geographic Coverage | D12: The Pacific Northwest, or "region" covers Oregon, Washington, Idaho, and Western Montana. This model only includes the western portion of Montana, calculated as 57% of the state, consistent with the Northwest Power and Conservation Council's Power Plans.
C13: Sector | D13: The model covers the industrial sector, defined using NAICS Codes. The research team worked with Council staff to include all 3-digit NAICS codes included in the Seventh Plan definition of the industrial sector.
C14: Equipment | D14: The model characterizes energy consumption and Momentum Savings for standalone pumps and fans greater than 1 HP.
C16: Adjustable Speed Drive (ASD): Adjustable Speed Drive refers to electronic speed control device (i.e., VSD, VFD). ASDs do not include mechanical control devices like eddy current drives, gear boxes, and belts & sheaves (as these devices control the equipment load by varying the speed of the equipment, not motor).
C17: Standalone Equipment: Standalone equipment are pumps or fans that are not part of a larger piece of packaged equipment and can be metered independently from the system they are installed on. Conversely, an “embedded” pump or fan is an integral part of a larger package whose energy consumption cannot be separately metered.
C19: Industrial Sector Definition
C21: BPA's ASD Market Model used the Seventh Plan's definition of the industrial sector as the basis for the model scope. There are 19 distinct industries identified in the Seventh Plan as shown below. These 19 industries, as noted by Council staff, are intended to be representative of the entire industrial sector. The ASD Market Model calculates motor stock and energy consumption at the 3-digit NAICS code level, using the 11 "facility types" listed in the following table, as representative of the industrial sector.
C22: The model does not include the water/wastewater, mining, aluminum smelting, or agriculture industries.
C23: Model Facility Type, with corresponding NAICS Codes and Seventh Plan Industries
C25: Model Facility Type | D25: 3-Digit NAICS Code | E25: Seventh Plan Industry
C26: Paper | D26: 322 | E26: Mechanical Pulp
E27: Kraft Pulp
E28: Paper
C29: Primary Metal | D29: 331 | E29: Foundries
C30: Food | D30: 311 | E30: Frozen Food
E31: Other Food
E32: Sugar
C33: Wood | D33: 321 | E33: Wood - Lumber
E34: Wood - Panel
E35: Wood - Other
C36: Computer/Electronics | D36: 334 | E36: Hi Tech - Chip Fab
C37: Fabricated Metal | D37: 332 | E37: Metal Fab
C38: Transportation Equipment | D38: 336 | E38: Transportation Equip.
C39: Refinery | D39: 324 | E39: Refinery
C40: Warehousing | D40: 493 | E40: Cold Storage
E41: Fruit Storage
C42: Chemical | D42: 325 | E42: Chemical
E43: Hi Tech - Silicon
C44: Miscellaneous | D44: 339 | E44: Misc Manf
D45: 315
D46: 313
D47: 337
D48: 323
D49: 326
D50: 316
D51: 327
D52: 335
C53: Source: NWPCC Seventh Plan Industrial Tool, tab "End Uses", Cells B5:B23, https://nwcouncil.app.box.com/v/7thplanconservationdatafiles/file/54717875397

Sheet Table of Figures
C2: List of Tables and Figures
C4: This tab presents a list of tables and figures in the "Summary Results", "Industrial Sector Results", and "Facility Type Specific Results" tabs.
C5: Summary Results
C7: List of Tables
C8: Table A: Regional Fan ASD Saturation, 2015 - 2021
C9: Table B: Regional Pump ASD Saturation, 2015 - 2021
C10: Table C: ASD Momentum Savings by Year, Pumps and Fans (aMW at busbar)
C11: Table D: ASD Momentum Savings from 2016-2021, Pumps and Fans (aMW at busbar)
C12: Table E: ASD Total Market Savings and Adjusted Program Savings by Year, Pumps and Fans (aMW at busbar)*
C14: List of Figures (each figure has a corresponding table not listed in this tab)
C15: Figure 1: Energy Consumption by Model Scenario, by Year (aMW at busbar)
C16: Figure 2: Facility Type Distribution of Energy Consumption, 2020 (aMW at busbar)
C18: Industrial Sector Results
C20: List of Tables
C21: Table A: Average Motor Horsepower of In-Service Fans, by Facility Type in 2020 (Motor HP)
C22: Table B: Average Motor Horsepower of In-Service Pumps, by Facility Type in 2020 (Motor HP)
C23: Table C: ASD Momentum Savings by Year, Fans (aMW at busbar)
C24: Table D: ASD Momentum Savings from 2016-2021, Fans (aMW at busbar)
C25: Table E: ASD Total Market Savings and Adjusted Program Savings by Year, Fans (aMW at busbar)*
C26: Table F: ASD Momentum Savings by Year, Pumps (aMW at busbar)
C27: Table G: ASD Momentum Savings from 2016-2021, Pumps (aMW at busbar)
C28: Table H: ASD Total Market Savings and Adjusted Program Savings by Year, Pumps (aMW at busbar)*
C30: List of Figures (each figure has a corresponding table not listed in this tab)
C31: Figure 1: Installed Stock of Fans, by Year (Installed Motor HP)
C32: Figure 2: Installed Stock of Fans, by Year (Installed Motors)
C33: Figure 3: In-Service Stock of Fans, by Facility Type in 2020 (Installed Motor HP)
C34: Figure 4: In-Service Stock of Fans, by Facility Type in 2020 (Installed Motors)
C35: Figure 5: In-Service Fans, by Control Strategy and Year (In-Service Motor HP)
C36: Figure 6: In-Service Fans, by Control Strategy and Year (In-Service Motors)
C37: Figure 7: In-Service Fans, by Facility Type and Control Strategy in 2020 (In-Service Motor HP)
C38: Figure 8: In-Service Fans, by Facility Type and Control Strategy in 2020 (In-Service Motors)
C39: Figure 9: In-Service ASD-Controlled Fans, by Year (In-Service Motor HP)
C40: Figure 10: In-Service ASD-Controlled Fans, by Year (In-Service Motors)
C41: Figure 11: ASD-Controlled Fans Installed Above Baseline, by Year (In-Service Motor HP)
C42: Figure 12: ASD-Controlled Fans Installed Above Baseline, by Year (In-Service Motors)
C43: Figure 13: Total ASD-Controlled Fans Installed Above Baseline, by Facility Type, 2016 - 2021 (In-Service Motor HP)
C44: Figure 14: Total ASD-Controlled Fans Installed Above Baseline, by Facility Type, 2016 - 2021 (In-Service Motors)
C45: Figure 15: Installed Stock of Pumps, by Year (Installed Motor HP)
C46: Figure 16: Installed Stock of Pumps, by Year (Installed Motors)
C47: Figure 17: In-Service Stock of Pumps, by Facility Type, 2020 (In-Service Motor HP)
C48: Figure 18: In-Service Stock of Pumps, by Facility Type, 2020 (In-Service Motors)
C49: Figure 19: In-Service Pumps, by Control Strategy and Year (In-Service Motor HP)
C50: Figure 20: In-Service Pumps, by Control Strategy and Year (In-Service Motors)
C51: Figure 21: In-Service Pumps, by Facility Type and Control Strategy in 2020 (In-Service Motor HP)
C52: Figure 22: In-Service Pumps, by Facility Type and Control Strategy in 2020 (In-Service Motors)
C53: Figure 23: ASD-Controlled Pumps, by Year (In-Service Motor HP)
C54: Figure 24: ASD-Controlled Pumps, by Year (In-Service Motors)
C55: Figure 25: ASD-Controlled Pumps Installed Above Baseline, by Year (In-Service Motor HP)
C56: Figure 26: ASD-Controlled Pumps Installed Above Baseline, by Year (In-Service Motors)
C57: Figure 27: Total ASD-Controlled Pumps Installed Above Baseline, by Facility Type, from 2016 to 2021 (In-Service Motor HP)
C58: Figure 28: Total ASD-Controlled Pumps Installed Above Baseline, by Facility Type, from 2016 to 2021 (In-Service Motors)
C59: Figure 29: Distribution of Fans by Control Type and Load Type, by Year (In-Service Motor HP)
C60: Figure 30: Distribution of Fans by Control Type and Load Type, by Year (In-Service Motors)
C61: Figure 31: Distribution of Fans by Motor Size, 2020 (In-Service Motor HP)
C62: Figure 32: Distribution of Fans by Motor Size, 2020 (In-Service Motors)
C63: Figure 33: Distribution of ASD-Controlled Fans by Motor Size, 2020 (In-Service Motor HP)
C64: Figure 34: Distribution of ASD-Controlled Fans by Motor Size, 2020 (In-Service Motors)
C65: Figure 35: Distribution of Pumps by Control Type and Load Type, by Year (In-Service Motor HP)
C66: Figure 36: Distribution of Pumps by Control Type and Load Type, by Year (In-Service Motors)
C67: Figure 37: Distribution of Pumps by Motor Size, 2020 (In-Service Motor HP)
C68: Figure 38: Distribution of Pumps by Motor Size, 2020 (In-Service Motors)
C69: Figure 39: Distribution of ASD-Controlled Pumps by Motor Size, 2020 (In-Service Motor HP)
C70: Figure 40: Distribution of ASD-Controlled Pumps by Motor Size, 2020 (In-Service Motors)
C71: Figure 41: Total Sales of Fans and Estimated Sales of ASDs installed on Fans, by Year (In-Service Motor HP)
C72: Figure 42: Total Sales of Fans and Estimated Sales of ASDs installed on Fans, by Year (In-Service Motors)
C73: Figure 43: Total Sales of Pumps and Estimated Sales of ASDs installed on Pumps, by Year (In-Service Motor HP)
C74: Figure 44: Total Sales of Pumps and Estimated Sales of ASDs installed on Pumps, by Year (In-Service Motors)
C75: Figure 45: Fan Energy Consumption by Model Scenario, by Year (aMW at busbar)
C76: Figure 46: Facility Type Distribution of Fan Energy Consumption, 2020 (aMW at busbar)
C77: Figure 47: Fan Unit Energy Consumption, by Year (kWh at busbar/motor HP)
C78: Figure 48: Pump Energy Consumption by Model Scenario, by Year (aMW at busbar)
C79: Figure 49: Facility Type Distribution of Pump Energy Consumption, 2020 (aMW at busbar)
C80: Figure 50: Pump Unit Energy Consumption, by Year (kWh at busbar/motor HP)
C82: Facility Type Specific Results
C84: List of Tables
C85: Table A: ASD Momentum Savings by Year, Fans (aMW at busbar)
C86: Table B: ASD Momentum Savings from 2016-2021, Fans (aMW at busbar)
C87: Table C: ASD Total Market Savings and Adjusted Program Savings by Year, Fans (aMW at busbar)*
C88: Table D: ASD Momentum Savings by Year, Pumps (aMW at busbar)
C89: Table E: ASD Momentum Savings from 2016-2021, Pumps (aMW at busbar)
C90: Table F: ASD Total Market Savings and Adjusted Program Savings by Year, Pumps (aMW at busbar)*
C92: List of Figures (each figure has a corresponding table not listed in this tab)
C93: Figure 1: Installed Stock of Fans, by Year (Installed Motor HP)
C94: Figure 2: Installed Stock of Fans, by Year (Installed Motors)
C95: Figure 3: In-Service Fans, by Control Strategy and Year (In-Service Motor HP)
C96: Figure 4: In-Service Fans, by Control Strategy and Year (In-Service Motors)
C97: Figure 5: ASD-Controlled Fans, by Year (In-Service Motor HP)
C98: Figure 6: ASD-Controlled Fans, by Year (In-Service Motors)
C99: Figure 7: ASD-Controlled Fans Installed Above Baseline, by Year (In-Service Motor HP)
C100: Figure 8: ASD-Controlled Fans Installed Above Baseline, by Year (In-Service Motors)
C101: Figure 9: Installed Stock of Pumps, by Year (Installed Motor HP)
C102: Figure 10: Installed Stock of Pumps, by Year (Installed Motors)
C103: Figure 11: In-Service Pumps, by Control Strategy and Year (In-Service Motor HP)
C104: Figure 12: In-Service Pumps, by Control Strategy and Year (In-Service Motors)
C105: Figure 13: ASD-Controlled Pumps, by Year (In-Service Motor HP)
C106: Figure 14: ASD-Controlled Pumps, by Year (In-Service Motors)
C107: Figure 15: ASD-Controlled Pumps Installed Above Baseline, by Year (In-Service Motor HP)
C108: Figure 16: ASD-Controlled Pumps Installed Above Baseline, by Year (In-Service Motors)
C109: Figure 17: Distribution of Fans by Control Type and Load Type, by Year (In-Service Motor HP)
C110: Figure 18: Distribution of Fans by Control Type and Load Type, by Year (In-Service Motors)
C111: Figure 19: Distribution of Fans by Motor Size, 2020 (In-Service Motor HP)
C112: Figure 20: Distribution of Fans by Motor Size, 2020 (In-Service Motors)
C113: Figure 21: Distribution of ASD-Controlled Fans by Motor Size, 2020 (In-Service Motor HP)
C114: Figure 22: Distribution of ASD-Controlled Fans by Motor Size, 2020 (In-Service Motors)
C115: Figure 23: Distribution of Non ASD-Controlled Fans by Motor Size, 2020 (In-Service Motor HP)
C116: Figure 24: Distribution of Non ASD-Controlled Fans by Motor Size, 2020 (In-Service Motors)
C117: Figure 25: Distribution of Pumps by Control Type and Load Type, by Year (In-Service Motor HP)
C118: Figure 26: Distribution of Pumps by Control Type and Load Type, by Year (In-Service Motors)
C119: Figure 27: Distribution of Pumps by Motor Size, 2020 (In-Service HP)
C120: Figure 28: Distribution of Pumps by Motor Size, 2020 (In-Service Motors)
C121: Figure 29: Distribution of ASD-Controlled Pumps by Motor Size, 2020 (In-Service Motor HP)
C122: Figure 30: Distribution of ASD-Controlled Pumps by Motor Size, 2020 (In-Service Motors)
C123: Figure 31: Distribution of Non ASD-Controlled Pumps by Motor Size, 2020 (In-Service Motor HP)
C124: Figure 32: Distribution of Non ASD-Controlled Pumps by Motor Size, 2020 (In-Service Motors)
C125: Figure 33: Total Sales of Fans and Estimated Sales of ASDs installed on Fans, by Year (In-Service HP)
C126: Figure 34: Total Sales of Fans and Estimated Sales of ASDs installed on Fans, by Year (In-Service Motors)
C127: Figure 35: Total Sales of Pumps and Estimated Sales of ASDs installed on Pumps, by Year (In-Service Motor HP)
C128: Figure 36: Total Sales of Pumps and Estimated Sales of ASDs installed on Pumps, by Year (In-Service Motors)
C129: Figure 37: Fan Energy Consumption by Model Scenario, by Year (aMW at busbar)
C130: Figure 38: Pump Energy Consumption by Model Scenario, by Year (aMW at busbar)

Sheet Summary Results
C2: Summary Results
C4: This tab presents the energy consumption and Momentum Savings calculated for industrial standalone pumps and fans in the Pacific Northwest.
C5: 1. Energy Consumption
C6: 2. ASD Saturation
C7: 3. Momentum Savings
C10: Energy Consumption
C12: Figure 1: Energy Consumption by Model Scenario, by Year (aMW at busbar) | H12: Figure 2: Facility Type Distribution of Energy Consumption, 2020 (aMW at busbar)
C28: ="Table for "&C12 -> Table for Figure 1: Energy Consumption by Model Scenario, by Year (aMW at busbar)
C29: Pumps and Fans | D29: Year
D30: 2015 | E30: 2016 | F30: 2017 | G30: 2018 | H30: 2019 | I30: 2020 | J30: 2021
C31: Baseline Consumption | D31: =SUMIFS(INDEX(output[#Data],0,MATCH("consump_busbar_Baseline",output[#Headers],0)),output[year],D$30,output[sensitivity],"Base")/8760000 -> 908.5026186 | E31: =SUMIFS(INDEX(output[#Data],0,MATCH("consump_busbar_Baseline",output[#Headers],0)),output[year],E$30,output[sensitivity],"Base")/8760000 -> 919.6082985 | F31: =SUMIFS(INDEX(output[#Data],0,MATCH("consump_busbar_Baseline",output[#Headers],0)),output[year],F$30,output[sensitivity],"Base")/8760000 -> 912.4575607 | G31: =SUMIFS(INDEX(output[#Data],0,MATCH("consump_busbar_Baseline",output[#Headers],0)),output[year],G$30,output[sensitivity],"Base")/8760000 -> 950.3149026 | H31: =SUMIFS(INDEX(output[#Data],0,MATCH("consump_busbar_Baseline",output[#Headers],0)),output[year],H$30,output[sensitivity],"Base")/8760000 -> 947.8148641 | I31: =SUMIFS(INDEX(output[#Data],0,MATCH("consump_busbar_Baseline",output[#Headers],0)),output[year],I$30,output[sensitivity],"Base")/8760000 -> 932.3702149 | J31: =SUMIFS(INDEX(output[#Data],0,MATCH("consump_busbar_Baseline",output[#Headers],0)),output[year],J$30,output[sensitivity],"Base")/8760000 -> 916.3384159
C32: Market Consumption | D32: =SUMIFS(INDEX(output[#Data],0,MATCH("consump_busbar_Market",output[#Headers],0)),output[year],D$30,output[sensitivity],"Base")/8760000 -> 908.5026186 | E32: =SUMIFS(INDEX(output[#Data],0,MATCH("consump_busbar_Market",output[#Headers],0)),output[year],E$30,output[sensitivity],"Base")/8760000 -> 915.2863961 | F32: =SUMIFS(INDEX(output[#Data],0,MATCH("consump_busbar_Market",output[#Headers],0)),output[year],F$30,output[sensitivity],"Base")/8760000 -> 903.6003416 | G32: =SUMIFS(INDEX(output[#Data],0,MATCH("consump_busbar_Market",output[#Headers],0)),output[year],G$30,output[sensitivity],"Base")/8760000 -> 936.3628163 | H32: =SUMIFS(INDEX(output[#Data],0,MATCH("consump_busbar_Market",output[#Headers],0)),output[year],H$30,output[sensitivity],"Base")/8760000 -> 928.4323055 | I32: =SUMIFS(INDEX(output[#Data],0,MATCH("consump_busbar_Market",output[#Headers],0)),output[year],I$30,output[sensitivity],"Base")/8760000 -> 908.3317101 | J32: =SUMIFS(INDEX(output[#Data],0,MATCH("consump_busbar_Market",output[#Headers],0)),output[year],J$30,output[sensitivity],"Base")/8760000 -> 888.6615247
C33: % Change in Energy Consumption from Baseline | D33: =1-D32/D31 -> 0 | E33: 0.004699721003 | F33: 0.009706992939 | G33: 0.01468154012 | H33: 0.02044973063 | I33: 0.02578214582 | J33: 0.03020378796
C35: ="Table for "&H12 -> Table for Figure 2: Facility Type Distribution of Energy Consumption, 2020 (aMW at busbar)
C36: Pumps and Fans | D36: Primary Metal | E36: Wood Products | F36: Paper | G36: Computer - Elec | H36: Chemical | I36: Food | J36: Warehousing | K36: Refinery | L36: Fabricated Metal | M36: Transportation | N36: Misc Manf
C37: 2020 | D37: =SUMIFS(INDEX(output[#Data],0,MATCH("consump_busbar_Market",output[#Headers],0)),output[year],$C37,output[facility_type],D$36,output[sensitivity],"Base")/8760000 -> 147.8021124 | E37: =SUMIFS(INDEX(output[#Data],0,MATCH("consump_busbar_Market",output[#Headers],0)),output[year],$C37,output[facility_type],E$36,output[sensitivity],"Base")/8760000 -> 163.7971421 | F37: =SUMIFS(INDEX(output[#Data],0,MATCH("consump_busbar_Market",output[#Headers],0)),output[year],$C37,output[facility_type],F$36,output[sensitivity],"Base")/8760000 -> 163.4110167 | G37: =SUMIFS(INDEX(output[#Data],0,MATCH("consump_busbar_Market",output[#Headers],0)),output[year],$C37,output[facility_type],G$36,output[sensitivity],"Base")/8760000 -> 52.03961056 | H37: =SUMIFS(INDEX(output[#Data],0,MATCH("consump_busbar_Market",output[#Headers],0)),output[year],$C37,output[facility_type],H$36,output[sensitivity],"Base")/8760000 -> 45.33430909 | I37: =SUMIFS(INDEX(output[#Data],0,MATCH("consump_busbar_Market",output[#Headers],0)),output[year],$C37,output[facility_type],I$36,output[sensitivity],"Base")/8760000 -> 78.53899593 | J37: =SUMIFS(INDEX(output[#Data],0,MATCH("consump_busbar_Market",output[#Headers],0)),output[year],$C37,output[facility_type],J$36,output[sensitivity],"Base")/8760000 -> 32.90436339 | K37: =SUMIFS(INDEX(output[#Data],0,MATCH("consump_busbar_Market",output[#Headers],0)),output[year],$C37,output[facility_type],K$36,output[sensitivity],"Base")/8760000 -> 123.6677147 | L37: =SUMIFS(INDEX(output[#Data],0,MATCH("consump_busbar_Market",output[#Headers],0)),output[year],$C37,output[facility_type],L$36,output[sensitivity],"Base")/8760000 -> 16.02635891 | M37: =SUMIFS(INDEX(output[#Data],0,MATCH("consump_busbar_Market",output[#Headers],0)),output[year],$C37,output[facility_type],M$36,output[sensitivity],"Base")/8760000 -> 14.80319358 | N37: =SUMIFS(INDEX(output[#Data],0,MATCH("consump_busbar_Market",output[#Headers],0)),output[year],$C37,output[facility_type],N$36,output[sensitivity],"Base")/8760000 -> 70.00689267
C40: ASD Saturation
C42: Table A: Regional Fan ASD Saturation, 2015 - 2021
C43: Fan ASD Saturation | D43: Year
D44: 2015 | E44: 2016 | F44: 2017 | G44: 2018 | H44: 2019 | I44: 2020 | J44: 2021
C45: Percent of motor HP | D45: ='Industrial Sector Results'!D107 -> 0.3062834542 | E45: ='Industrial Sector Results'!E107 -> 0.3283134412 | F45: ='Industrial Sector Results'!F107 -> 0.3480539985 | G45: ='Industrial Sector Results'!G107 -> 0.368692934 | H45: ='Industrial Sector Results'!H107 -> 0.392586929 | I45: ='Industrial Sector Results'!I107 -> 0.4101695522 | J45: ='Industrial Sector Results'!J107 -> 0.425317531
C46: Percent of motors | D46: ='Industrial Sector Results'!D114 -> 0.2515930122 | E46: ='Industrial Sector Results'!E114 -> 0.2714145388 | F46: ='Industrial Sector Results'!F114 -> 0.2935883889 | G46: ='Industrial Sector Results'!G114 -> 0.3096150685 | H46: ='Industrial Sector Results'!H114 -> 0.3339186753 | I46: ='Industrial Sector Results'!I114 -> 0.3539594296 | J46: ='Industrial Sector Results'!J114 -> 0.3587521419
C49: Table B: Regional Pump ASD Saturation, 2015 - 2021
C50: Pump ASD Saturation | D50: Year
D51: 2015 | E51: 2016 | F51: 2017 | G51: 2018 | H51: 2019 | I51: 2020 | J51: 2021
C52: Percent of motor HP | D52: ='Industrial Sector Results'!D326 -> 0.3984861871 | E52: ='Industrial Sector Results'!E326 -> 0.424201024 | F52: ='Industrial Sector Results'!F326 -> 0.4544106763 | G52: ='Industrial Sector Results'!G326 -> 0.4829270786 | H52: ='Industrial Sector Results'!H326 -> 0.5159208015 | I52: ='Industrial Sector Results'!I326 -> 0.5527362123 | J52: ='Industrial Sector Results'!J326 -> 0.5717369345
C53: Percent of motors | D53: ='Industrial Sector Results'!D333 -> 0.281297418 | E53: ='Industrial Sector Results'!E333 -> 0.3138684531 | F53: ='Industrial Sector Results'!F333 -> 0.3474380993 | G53: ='Industrial Sector Results'!G333 -> 0.3788034336 | H53: ='Industrial Sector Results'!H333 -> 0.418595041 | I53: ='Industrial Sector Results'!I333 -> 0.4601727978 | J53: ='Industrial Sector Results'!J333 -> 0.4951028983
C56: Momentum Savings
C58: Table C: ASD Momentum Savings by Year, Pumps and Fans (aMW at busbar)
C59: Fans | D59: Year
D60: 2016 | E60: 2017 | F60: 2018 | G60: 2019 | H60: 2020 | I60: 2021
C61: Regional Momentum Savings | D61: =(SUMIFS(INDEX(output[#Data],0,MATCH("consump_busbar_Program",output[#Headers],0)),output[year],D$60,output[sensitivity],"Base")-SUMIFS(INDEX(output[#Data],0,MATCH("consump_busbar_Market",output[#Headers],0)),output[year],D$60,output[sensitivity],"Base"))/8760000 -> 2.784374654 | E61: =(SUMIFS(INDEX(output[#Data],0,MATCH("consump_busbar_Program",output[#Headers],0)),output[year],E$60,output[sensitivity],"Base")-SUMIFS(INDEX(output[#Data],0,MATCH("consump_busbar_Market",output[#Headers],0)),output[year],E$60,output[sensitivity],"Base"))/8760000-SUM($D$61:D61) -> 3.205533232 | F61: =(SUMIFS(INDEX(output[#Data],0,MATCH("consump_busbar_Program",output[#Headers],0)),output[year],F$60,output[sensitivity],"Base")-SUMIFS(INDEX(output[#Data],0,MATCH("consump_busbar_Market",output[#Headers],0)),output[year],F$60,output[sensitivity],"Base"))/8760000-SUM($D$61:E61) -> 3.613574772 | G61: =(SUMIFS(INDEX(output[#Data],0,MATCH("consump_busbar_Program",output[#Headers],0)),output[year],G$60,output[sensitivity],"Base")-SUMIFS(INDEX(output[#Data],0,MATCH("consump_busbar_Market",output[#Headers],0)),output[year],G$60,output[sensitivity],"Base"))/8760000-SUM($D$61:F61) -> 2.701798892 | H61: =(SUMIFS(INDEX(output[#Data],0,MATCH("consump_busbar_Program",output[#Headers],0)),output[year],H$60,output[sensitivity],"Base")-SUMIFS(INDEX(output[#Data],0,MATCH("consump_busbar_Market",output[#Headers],0)),output[year],H$60,output[sensitivity],"Base"))/8760000-SUM($D$61:G61) -> 3.779392971 | I61: =(SUMIFS(INDEX(output[#Data],0,MATCH("consump_busbar_Program",output[#Headers],0)),output[year],I$60,output[sensitivity],"Base")-SUMIFS(INDEX(output[#Data],0,MATCH("consump_busbar_Market",output[#Headers],0)),output[year],I$60,output[sensitivity],"Base"))/8760000-SUM($D$61:H61) -> 2.762639463
C62: BPA Share of Momentum Savings | D62: =D61*0.42 -> 1.169437355 | E62: 1.346323958 | F62: 1.517701404 | G62: 1.134755535 | H62: 1.587345048 | I62: 1.160308574
C64: Table D: ASD Momentum Savings from 2016-2021, Pumps and Fans (aMW at busbar)
C65: Regional Momentum Savings, 2016-2021 (aMW at busbar) | F65: =SUM(D61:I61) -> 18.84731398
C66: BPA Share of Momentum Savings (aMW at busbar) | F66: =SUM(D62:I62) -> 7.915871874
C69: Table E: ASD Total Market Savings and Adjusted Program Savings by Year, Pumps and Fans (aMW at busbar)*
C70: Fans | D70: Year
D71: 2016 | E71: 2017 | F71: 2018 | G71: 2019 | H71: 2020 | I71: 2021
C72: Total Market Savings | D72: =(SUMIFS(INDEX(output[#Data],0,MATCH("consump_busbar_Baseline",output[#Headers],0)),output[year],D$71,output[sensitivity],"Base")-SUMIFS(INDEX(output[#Data],0,MATCH("consump_busbar_Market",output[#Headers],0)),output[year],D$71,output[sensitivity],"Base"))/8760000 -> 4.321902435 | E72: =(SUMIFS(INDEX(output[#Data],0,MATCH("consump_busbar_Baseline",output[#Headers],0)),output[year],E$71,output[sensitivity],"Base")-SUMIFS(INDEX(output[#Data],0,MATCH("consump_busbar_Market",output[#Headers],0)),output[year],E$71,output[sensitivity],"Base"))/8760000-SUM($D$72:D72) -> 4.535316664 | F72: =(SUMIFS(INDEX(output[#Data],0,MATCH("consump_busbar_Baseline",output[#Headers],0)),output[year],F$71,output[sensitivity],"Base")-SUMIFS(INDEX(output[#Data],0,MATCH("consump_busbar_Market",output[#Headers],0)),output[year],F$71,output[sensitivity],"Base"))/8760000-SUM($D$72:E72) -> 5.094867266 | G72: =(SUMIFS(INDEX(output[#Data],0,MATCH("consump_busbar_Baseline",output[#Headers],0)),output[year],G$71,output[sensitivity],"Base")-SUMIFS(INDEX(output[#Data],0,MATCH("consump_busbar_Market",output[#Headers],0)),output[year],G$71,output[sensitivity],"Base"))/8760000-SUM($D$72:F72) -> 5.430472298 | H72: =(SUMIFS(INDEX(output[#Data],0,MATCH("consump_busbar_Baseline",output[#Headers],0)),output[year],H$71,output[sensitivity],"Base")-SUMIFS(INDEX(output[#Data],0,MATCH("consump_busbar_Market",output[#Headers],0)),output[year],H$71,output[sensitivity],"Base"))/8760000-SUM($D$72:G72) -> 4.655946177 | I72: =(SUMIFS(INDEX(output[#Data],0,MATCH("consump_busbar_Baseline",output[#Headers],0)),output[year],I$71,output[sensitivity],"Base")-SUMIFS(INDEX(output[#Data],0,MATCH("consump_busbar_Market",output[#Headers],0)),output[year],I$71,output[sensitivity],"Base"))/8760000-SUM($D$72:H72) -> 3.638386372
C73: Adjusted Program Savings | D73: =(SUMIFS(INDEX(output[#Data],0,MATCH("consump_busbar_Baseline",output[#Headers],0)),output[year],D$71,output[sensitivity],"Base")-SUMIFS(INDEX(output[#Data],0,MATCH("consump_busbar_Program",output[#Headers],0)),output[year],D$71,output[sensitivity],"Base"))/8760000 -> 1.537527781 | E73: =(SUMIFS(INDEX(output[#Data],0,MATCH("consump_busbar_Baseline",output[#Headers],0)),output[year],E$71,output[sensitivity],"Base")-SUMIFS(INDEX(output[#Data],0,MATCH("consump_busbar_Program",output[#Headers],0)),output[year],E$71,output[sensitivity],"Base"))/8760000-SUM($D$73:D73) -> 1.329783431 | F73: =(SUMIFS(INDEX(output[#Data],0,MATCH("consump_busbar_Baseline",output[#Headers],0)),output[year],F$71,output[sensitivity],"Base")-SUMIFS(INDEX(output[#Data],0,MATCH("consump_busbar_Program",output[#Headers],0)),output[year],F$71,output[sensitivity],"Base"))/8760000-SUM($D$73:E73) -> 1.481292495 | G73: =(SUMIFS(INDEX(output[#Data],0,MATCH("consump_busbar_Baseline",output[#Headers],0)),output[year],G$71,output[sensitivity],"Base")-SUMIFS(INDEX(output[#Data],0,MATCH("consump_busbar_Program",output[#Headers],0)),output[year],G$71,output[sensitivity],"Base"))/8760000-SUM($D$73:F73) -> 2.728673405 | H73: =(SUMIFS(INDEX(output[#Data],0,MATCH("consump_busbar_Baseline",output[#Headers],0)),output[year],H$71,output[sensitivity],"Base")-SUMIFS(INDEX(output[#Data],0,MATCH("consump_busbar_Program",output[#Headers],0)),output[year],H$71,output[sensitivity],"Base"))/8760000-SUM($D$73:G73) -> 0.8765532055 | I73: =(SUMIFS(INDEX(output[#Data],0,MATCH("consump_busbar_Baseline",output[#Headers],0)),output[year],I$71,output[sensitivity],"Base")-SUMIFS(INDEX(output[#Data],0,MATCH("consump_busbar_Program",output[#Headers],0)),output[year],I$71,output[sensitivity],"Base"))/8760000-SUM($D$73:H73) -> 0.875746909
C74: *These are interim results in the calculation of Momentum Savings that are not intended to be used outside of this analysis. Please refer to the methodology memo for more detail.

Sheet Industrial Sector Results
C2: Industrial Sector Model Results
C4: This tab presents the ASD Model results for the industrial sector. These results are separated into four sections:
C5: 1. Installed Stock
C6: 2. Market Characteristics
C7: 3. Equipment Sales
C8: 4. Energy Consumption and Momentum Savings (all results at busbar)
C10: Regional Momentum Savings, 2016-2021 (aMW at busbar)
C11: Fans | D11: =F829 -> 6.710394093
C12: Pumps | D12: =F849 -> 12.13691989
C14: Installed Stock
C16: This section presents the annual magnitude of the installed stock of pumps, fans, and ASDs in the industrial sector. The model calculates the motor HP and the number of motors in the region in each year. Installed stock is grouped into two categories.
C17: In-Service equipment operate (that is, consume energy) in the identified year. Out-of-Service equipment exist in the region but do not consume energy (e.g., a pump installed on a non-operational production line, a back-up pump that never sees service). Installed equipment equals in-service plus out-of-service equipment
C18: Equipment can move between in-service and out-of-service, depending on the demand for production within a specific facility type. The information below is given in terms of both motor HP and number of motors.
C19: Figure 1: Installed Stock of Fans, by Year (Installed Motor HP) | H19: Figure 2: Installed Stock of Fans, by Year (Installed Motors)
C37: ="Table for "&C19 -> Table for Figure 1: Installed Stock of Fans, by Year (Installed Motor HP)
C38: Fans | D38: Year
D39: 2015 | E39: 2016 | F39: 2017 | G39: 2018 | H39: 2019 | I39: 2020 | J39: 2021
C40: In-Service Motor HP | D40: =SUMIFS(INDEX(output[#Data],0,MATCH("ishp_Market",output[#Headers],0)),output[equipment_type],$C$38,output[year],D$39,output[sensitivity],"Base") -> 1175161.501 | E40: =SUMIFS(INDEX(output[#Data],0,MATCH("ishp_Market",output[#Headers],0)),output[equipment_type],$C$38,output[year],E$39,output[sensitivity],"Base") -> 1168245.426 | F40: =SUMIFS(INDEX(output[#Data],0,MATCH("ishp_Market",output[#Headers],0)),output[equipment_type],$C$38,output[year],F$39,output[sensitivity],"Base") -> 1155503.665 | G40: =SUMIFS(INDEX(output[#Data],0,MATCH("ishp_Market",output[#Headers],0)),output[equipment_type],$C$38,output[year],G$39,output[sensitivity],"Base") -> 1216254.479 | H40: =SUMIFS(INDEX(output[#Data],0,MATCH("ishp_Market",output[#Headers],0)),output[equipment_type],$C$38,output[year],H$39,output[sensitivity],"Base") -> 1220266.141 | I40: =SUMIFS(INDEX(output[#Data],0,MATCH("ishp_Market",output[#Headers],0)),output[equipment_type],$C$38,output[year],I$39,output[sensitivity],"Base") -> 1218793.774 | J40: =SUMIFS(INDEX(output[#Data],0,MATCH("ishp_Market",output[#Headers],0)),output[equipment_type],$C$38,output[year],J$39,output[sensitivity],"Base") -> 1188680.362
C41: Out-of-Service Motor HP | D41: =SUMIFS(INDEX(output[#Data],0,MATCH("ooshp_Market",output[#Headers],0)),output[equipment_type],$C$38,output[year],D$39,output[sensitivity],"Base") -> 395855.1129 | E41: =SUMIFS(INDEX(output[#Data],0,MATCH("ooshp_Market",output[#Headers],0)),output[equipment_type],$C$38,output[year],E$39,output[sensitivity],"Base") -> 419904.5973 | F41: =SUMIFS(INDEX(output[#Data],0,MATCH("ooshp_Market",output[#Headers],0)),output[equipment_type],$C$38,output[year],F$39,output[sensitivity],"Base") -> 437030.0525 | G41: =SUMIFS(INDEX(output[#Data],0,MATCH("ooshp_Market",output[#Headers],0)),output[equipment_type],$C$38,output[year],G$39,output[sensitivity],"Base") -> 411013.9103 | H41: =SUMIFS(INDEX(output[#Data],0,MATCH("ooshp_Market",output[#Headers],0)),output[equipment_type],$C$38,output[year],H$39,output[sensitivity],"Base") -> 418477.1298 | I41: =SUMIFS(INDEX(output[#Data],0,MATCH("ooshp_Market",output[#Headers],0)),output[equipment_type],$C$38,output[year],I$39,output[sensitivity],"Base") -> 422646.0323 | J41: =SUMIFS(INDEX(output[#Data],0,MATCH("ooshp_Market",output[#Headers],0)),output[equipment_type],$C$38,output[year],J$39,output[sensitivity],"Base") -> 462908.8268
C42: Total Motor HP | D42: =SUM(D40:D41) -> 1571016.614 | E42: 1588150.023 | F42: 1592533.717 | G42: 1627268.389 | H42: 1638743.271 | I42: 1641439.806 | J42: 1651589.188
C44: ="Table for "&H19 -> Table for Figure 2: Installed Stock of Fans, by Year (Installed Motors)
C45: Fans | D45: Year
D46: 2015 | E46: 2016 | F46: 2017 | G46: 2018 | H46: 2019 | I46: 2020 | J46: 2021
C47: Number of In-Service Motors | D47: =SUMIFS(INDEX(output[#Data],0,MATCH("num_motors_Market",output[#Headers],0)),output[equipment_type],$C$45,output[year],D$46,output[sensitivity],"Base") -> 64672.36194 | E47: =SUMIFS(INDEX(output[#Data],0,MATCH("num_motors_Market",output[#Headers],0)),output[equipment_type],$C$45,output[year],E$46,output[sensitivity],"Base") -> 64424.4081 | F47: =SUMIFS(INDEX(output[#Data],0,MATCH("num_motors_Market",output[#Headers],0)),output[equipment_type],$C$45,output[year],F$46,output[sensitivity],"Base") -> 63480.2304 | G47: =SUMIFS(INDEX(output[#Data],0,MATCH("num_motors_Market",output[#Headers],0)),output[equipment_type],$C$45,output[year],G$46,output[sensitivity],"Base") -> 68454.53486 | H47: =SUMIFS(INDEX(output[#Data],0,MATCH("num_motors_Market",output[#Headers],0)),output[equipment_type],$C$45,output[year],H$46,output[sensitivity],"Base") -> 69127.77571 | I47: =SUMIFS(INDEX(output[#Data],0,MATCH("num_motors_Market",output[#Headers],0)),output[equipment_type],$C$45,output[year],I$46,output[sensitivity],"Base") -> 68640.59205 | J47: =SUMIFS(INDEX(output[#Data],0,MATCH("num_motors_Market",output[#Headers],0)),output[equipment_type],$C$45,output[year],J$46,output[sensitivity],"Base") -> 70844.80376
C48: Number of Out-of-Service Motors | D48: =SUMIFS(INDEX(output[#Data],0,MATCH("num_motors_ooshp_Market",output[#Headers],0)),output[equipment_type],$C$45,output[year],D$46,output[sensitivity],"Base") -> 22216.97668 | E48: =SUMIFS(INDEX(output[#Data],0,MATCH("num_motors_ooshp_Market",output[#Headers],0)),output[equipment_type],$C$45,output[year],E$46,output[sensitivity],"Base") -> 22362.29223 | F48: =SUMIFS(INDEX(output[#Data],0,MATCH("num_motors_ooshp_Market",output[#Headers],0)),output[equipment_type],$C$45,output[year],F$46,output[sensitivity],"Base") -> 22809.72887 | G48: =SUMIFS(INDEX(output[#Data],0,MATCH("num_motors_ooshp_Market",output[#Headers],0)),output[equipment_type],$C$45,output[year],G$46,output[sensitivity],"Base") -> 20799.64715 | H48: =SUMIFS(INDEX(output[#Data],0,MATCH("num_motors_ooshp_Market",output[#Headers],0)),output[equipment_type],$C$45,output[year],H$46,output[sensitivity],"Base") -> 21018.59013 | I48: =SUMIFS(INDEX(output[#Data],0,MATCH("num_motors_ooshp_Market",output[#Headers],0)),output[equipment_type],$C$45,output[year],I$46,output[sensitivity],"Base") -> 21001.35857 | J48: =SUMIFS(INDEX(output[#Data],0,MATCH("num_motors_ooshp_Market",output[#Headers],0)),output[equipment_type],$C$45,output[year],J$46,output[sensitivity],"Base") -> 21826.53435
C49: Total Number of Motors | D49: =SUM(D47:D48) -> 86889.33862 | E49: 86786.70033 | F49: 86289.95927 | G49: 89254.182 | H49: 90146.36584 | I49: 89641.95062 | J49: 92671.33811
C51: Figure 3: In-Service Stock of Fans, by Facility Type in 2020 (Installed Motor HP) | H51: Figure 4: In-Service Stock of Fans, by Facility Type in 2020 (Installed Motors)
C71: ="Table for "&C51 -> Table for Figure 3: In-Service Stock of Fans, by Facility Type in 2020 (Installed Motor HP)
C72: Fans | D72: Primary Metal | E72: Wood Products | F72: Paper | G72: Computer - Elec | H72: Chemical | I72: Food | J72: Warehousing | K72: Refinery | L72: Fabricated Metal | M72: Transportation | N72: Misc Manf
C73: In-Service Motor HP | D73: =SUMIFS(INDEX(output[#Data],0,MATCH("ishp_Market",output[#Headers],0)),output[equipment_type],$C$72,output[year],2020,output[facility_type],D$72,output[sensitivity],"Base") -> 235072.2268 | E73: =SUMIFS(INDEX(output[#Data],0,MATCH("ishp_Market",output[#Headers],0)),output[equipment_type],$C$72,output[year],2020,output[facility_type],E$72,output[sensitivity],"Base") -> 305511.2722 | F73: =SUMIFS(INDEX(output[#Data],0,MATCH("ishp_Market",output[#Headers],0)),output[equipment_type],$C$72,output[year],2020,output[facility_type],F$72,output[sensitivity],"Base") -> 155949.8255 | G73: =SUMIFS(INDEX(output[#Data],0,MATCH("ishp_Market",output[#Headers],0)),output[equipment_type],$C$72,output[year],2020,output[facility_type],G$72,output[sensitivity],"Base") -> 69974.92051 | H73: =SUMIFS(INDEX(output[#Data],0,MATCH("ishp_Market",output[#Headers],0)),output[equipment_type],$C$72,output[year],2020,output[facility_type],H$72,output[sensitivity],"Base") -> 51295.94895 | I73: =SUMIFS(INDEX(output[#Data],0,MATCH("ishp_Market",output[#Headers],0)),output[equipment_type],$C$72,output[year],2020,output[facility_type],I$72,output[sensitivity],"Base") -> 82977.57473 | J73: =SUMIFS(INDEX(output[#Data],0,MATCH("ishp_Market",output[#Headers],0)),output[equipment_type],$C$72,output[year],2020,output[facility_type],J$72,output[sensitivity],"Base") -> 77861.29351 | K73: =SUMIFS(INDEX(output[#Data],0,MATCH("ishp_Market",output[#Headers],0)),output[equipment_type],$C$72,output[year],2020,output[facility_type],K$72,output[sensitivity],"Base") -> 61449.93082 | L73: =SUMIFS(INDEX(output[#Data],0,MATCH("ishp_Market",output[#Headers],0)),output[equipment_type],$C$72,output[year],2020,output[facility_type],L$72,output[sensitivity],"Base") -> 38164.07504 | M73: =SUMIFS(INDEX(output[#Data],0,MATCH("ishp_Market",output[#Headers],0)),output[equipment_type],$C$72,output[year],2020,output[facility_type],M$72,output[sensitivity],"Base") -> 18173.12873 | N73: =SUMIFS(INDEX(output[#Data],0,MATCH("ishp_Market",output[#Headers],0)),output[equipment_type],$C$72,output[year],2020,output[facility_type],N$72,output[sensitivity],"Base") -> 122363.5772
C75: ="Table for "&H51 -> Table for Figure 4: In-Service Stock of Fans, by Facility Type in 2020 (Installed Motors)
C76: Fans | D76: Primary Metal | E76: Wood Products | F76: Paper | G76: Computer - Elec | H76: Chemical | I76: Food | J76: Warehousing | K76: Refinery | L76: Fabricated Metal | M76: Transportation | N76: Misc Manf
C77: Number of In-Service Motors | D77: =SUMIFS(INDEX(output[#Data],0,MATCH("num_motors_Market",output[#Headers],0)),output[equipment_type],$C$76,output[year],2020,output[facility_type],D$76,output[sensitivity],"Base") -> 8214.266962 | E77: =SUMIFS(INDEX(output[#Data],0,MATCH("num_motors_Market",output[#Headers],0)),output[equipment_type],$C$76,output[year],2020,output[facility_type],E$76,output[sensitivity],"Base") -> 6863.821529 | F77: =SUMIFS(INDEX(output[#Data],0,MATCH("num_motors_Market",output[#Headers],0)),output[equipment_type],$C$76,output[year],2020,output[facility_type],F$76,output[sensitivity],"Base") -> 2751.004623 | G77: =SUMIFS(INDEX(output[#Data],0,MATCH("num_motors_Market",output[#Headers],0)),output[equipment_type],$C$76,output[year],2020,output[facility_type],G$76,output[sensitivity],"Base") -> 6594.56967 | H77: =SUMIFS(INDEX(output[#Data],0,MATCH("num_motors_Market",output[#Headers],0)),output[equipment_type],$C$76,output[year],2020,output[facility_type],H$76,output[sensitivity],"Base") -> 1690.237688 | I77: =SUMIFS(INDEX(output[#Data],0,MATCH("num_motors_Market",output[#Headers],0)),output[equipment_type],$C$76,output[year],2020,output[facility_type],I$76,output[sensitivity],"Base") -> 5954.036317 | J77: =SUMIFS(INDEX(output[#Data],0,MATCH("num_motors_Market",output[#Headers],0)),output[equipment_type],$C$76,output[year],2020,output[facility_type],J$76,output[sensitivity],"Base") -> 22117.60138 | K77: =SUMIFS(INDEX(output[#Data],0,MATCH("num_motors_Market",output[#Headers],0)),output[equipment_type],$C$76,output[year],2020,output[facility_type],K$76,output[sensitivity],"Base") -> 1334.229087 | L77: =SUMIFS(INDEX(output[#Data],0,MATCH("num_motors_Market",output[#Headers],0)),output[equipment_type],$C$76,output[year],2020,output[facility_type],L$76,output[sensitivity],"Base") -> 3685.673933 | M77: =SUMIFS(INDEX(output[#Data],0,MATCH("num_motors_Market",output[#Headers],0)),output[equipment_type],$C$76,output[year],2020,output[facility_type],M$76,output[sensitivity],"Base") -> 737.3613055 | N77: =SUMIFS(INDEX(output[#Data],0,MATCH("num_motors_Market",output[#Headers],0)),output[equipment_type],$C$76,output[year],2020,output[facility_type],N$76,output[sensitivity],"Base") -> 8697.78955
C79: Table A: Average Motor Horsepower of In-Service Fans, by Facility Type in 2020 (Motor HP)
C80: Fans | D80: Primary Metal | E80: Wood Products | F80: Paper | G80: Computer - Elec | H80: Chemical | I80: Food | J80: Warehousing | K80: Refinery | L80: Fabricated Metal | M80: Transportation | N80: Misc Manf
C81: Average In-Service Motor HP | D81: =D73/D77 -> 28.61755381 | E81: =E73/E77 -> 44.5103753 | F81: 56.68831821 | G81: 10.61099116 | H81: 30.3483642 | I81: 13.93635684 | J81: 3.52033171 | K81: 46.05650665 | L81: 10.35470737 | M81: 24.64616544 | N81: 14.0683534
C84: Figure 5: In-Service Fans, by Control Strategy and Year (In-Service Motor HP) | H84: Figure 6: In-Service Fans, by Control Strategy and Year (In-Service Motors)
C102: ="Table for "&C84 -> Table for Figure 5: In-Service Fans, by Control Strategy and Year (In-Service Motor HP)
C103: Fans | D103: Year
D104: 2015 | E104: 2016 | F104: 2017 | G104: 2018 | H104: 2019 | I104: 2020 | J104: 2021
C105: In-Service Non ASD-Controlled Motor HP | D105: =SUMIFS(INDEX(output[#Data],0,MATCH("ishp_Market",output[#Headers],0)),output[equipment_type],$C$103,output[year],D$104,output[control_strategy], "Non ASD Control",output[sensitivity],"Base") -> 815228.9775 | E105: =SUMIFS(INDEX(output[#Data],0,MATCH("ishp_Market",output[#Headers],0)),output[equipment_type],$C$103,output[year],E$104,output[control_strategy], "Non ASD Control",output[sensitivity],"Base") -> 784694.7501 | F105: =SUMIFS(INDEX(output[#Data],0,MATCH("ishp_Market",output[#Headers],0)),output[equipment_type],$C$103,output[year],F$104,output[control_strategy], "Non ASD Control",output[sensitivity],"Base") -> 753325.9939 | G105: =SUMIFS(INDEX(output[#Data],0,MATCH("ishp_Market",output[#Headers],0)),output[equipment_type],$C$103,output[year],G$104,output[control_strategy], "Non ASD Control",output[sensitivity],"Base") -> 767830.0464 | H105: =SUMIFS(INDEX(output[#Data],0,MATCH("ishp_Market",output[#Headers],0)),output[equipment_type],$C$103,output[year],H$104,output[control_strategy], "Non ASD Control",output[sensitivity],"Base") -> 741205.6044 | I105: =SUMIFS(INDEX(output[#Data],0,MATCH("ishp_Market",output[#Headers],0)),output[equipment_type],$C$103,output[year],I$104,output[control_strategy], "Non ASD Control",output[sensitivity],"Base") -> 718881.6775 | J105: =SUMIFS(INDEX(output[#Data],0,MATCH("ishp_Market",output[#Headers],0)),output[equipment_type],$C$103,output[year],J$104,output[control_strategy], "Non ASD Control",output[sensitivity],"Base") -> 683113.765
C106: In-Service ASD-Controlled Motor HP | D106: =SUMIFS(INDEX(output[#Data],0,MATCH("ishp_Market",output[#Headers],0)),output[equipment_type],$C$103,output[year],D$104,output[control_strategy], "ASD Control",output[sensitivity],"Base") -> 359932.524 | E106: =SUMIFS(INDEX(output[#Data],0,MATCH("ishp_Market",output[#Headers],0)),output[equipment_type],$C$103,output[year],E$104,output[control_strategy], "ASD Control",output[sensitivity],"Base") -> 383550.676 | F106: =SUMIFS(INDEX(output[#Data],0,MATCH("ishp_Market",output[#Headers],0)),output[equipment_type],$C$103,output[year],F$104,output[control_strategy], "ASD Control",output[sensitivity],"Base") -> 402177.6707 | G106: =SUMIFS(INDEX(output[#Data],0,MATCH("ishp_Market",output[#Headers],0)),output[equipment_type],$C$103,output[year],G$104,output[control_strategy], "ASD Control",output[sensitivity],"Base") -> 448424.4322 | H106: =SUMIFS(INDEX(output[#Data],0,MATCH("ishp_Market",output[#Headers],0)),output[equipment_type],$C$103,output[year],H$104,output[control_strategy], "ASD Control",output[sensitivity],"Base") -> 479060.5369 | I106: =SUMIFS(INDEX(output[#Data],0,MATCH("ishp_Market",output[#Headers],0)),output[equipment_type],$C$103,output[year],I$104,output[control_strategy], "ASD Control",output[sensitivity],"Base") -> 499912.0965 | J106: =SUMIFS(INDEX(output[#Data],0,MATCH("ishp_Market",output[#Headers],0)),output[equipment_type],$C$103,output[year],J$104,output[control_strategy], "ASD Control",output[sensitivity],"Base") -> 505566.5966
C107: ASD Saturation (% of Motor HP) | D107: =D106/SUM(D105:D106) -> 0.3062834542 | E107: =E106/SUM(E105:E106) -> 0.3283134412 | F107: 0.3480539985 | G107: =G106/SUM(G105:G106) -> 0.368692934 | H107: 0.392586929 | I107: 0.4101695522 | J107: 0.425317531
C109: ="Table for "&H84 -> Table for Figure 6: In-Service Fans, by Control Strategy and Year (In-Service Motors)
C110: Fans | D110: Year
D111: 2015 | E111: 2016 | F111: 2017 | G111: 2018 | H111: 2019 | I111: 2020 | J111: 2021
C112: Number of In-Service Non ASD-Controlled Motors | D112: =SUMIFS(INDEX(output[#Data],0,MATCH("num_motors_Market",output[#Headers],0)),output[equipment_type],$C$45,output[year],D$46,output[control_strategy], "Non ASD Control",output[sensitivity],"Base") -> 48401.24759 | E112: =SUMIFS(INDEX(output[#Data],0,MATCH("num_motors_Market",output[#Headers],0)),output[equipment_type],$C$45,output[year],E$46,output[control_strategy], "Non ASD Control",output[sensitivity],"Base") -> 46938.68709 | F112: =SUMIFS(INDEX(output[#Data],0,MATCH("num_motors_Market",output[#Headers],0)),output[equipment_type],$C$45,output[year],F$46,output[control_strategy], "Non ASD Control",output[sensitivity],"Base") -> 44843.17183 | G112: =SUMIFS(INDEX(output[#Data],0,MATCH("num_motors_Market",output[#Headers],0)),output[equipment_type],$C$45,output[year],G$46,output[control_strategy], "Non ASD Control",output[sensitivity],"Base") -> 47259.97936 | H112: =SUMIFS(INDEX(output[#Data],0,MATCH("num_motors_Market",output[#Headers],0)),output[equipment_type],$C$45,output[year],H$46,output[control_strategy], "Non ASD Control",output[sensitivity],"Base") -> 46044.72042 | I112: =SUMIFS(INDEX(output[#Data],0,MATCH("num_motors_Market",output[#Headers],0)),output[equipment_type],$C$45,output[year],I$46,output[control_strategy], "Non ASD Control",output[sensitivity],"Base") -> 44344.60724 | J112: =SUMIFS(INDEX(output[#Data],0,MATCH("num_motors_Market",output[#Headers],0)),output[equipment_type],$C$45,output[year],J$46,output[control_strategy], "Non ASD Control",output[sensitivity],"Base") -> 45429.07867
C113: Number of In-Service ASD-Controlled Motors | D113: =SUMIFS(INDEX(output[#Data],0,MATCH("num_motors_Market",output[#Headers],0)),output[equipment_type],$C$45,output[year],D$46,output[control_strategy], "ASD Control",output[sensitivity],"Base") -> 16271.11435 | E113: =SUMIFS(INDEX(output[#Data],0,MATCH("num_motors_Market",output[#Headers],0)),output[equipment_type],$C$45,output[year],E$46,output[control_strategy], "ASD Control",output[sensitivity],"Base") -> 17485.72101 | F113: =SUMIFS(INDEX(output[#Data],0,MATCH("num_motors_Market",output[#Headers],0)),output[equipment_type],$C$45,output[year],F$46,output[control_strategy], "ASD Control",output[sensitivity],"Base") -> 18637.05857 | G113: =SUMIFS(INDEX(output[#Data],0,MATCH("num_motors_Market",output[#Headers],0)),output[equipment_type],$C$45,output[year],G$46,output[control_strategy], "ASD Control",output[sensitivity],"Base") -> 21194.5555 | H113: =SUMIFS(INDEX(output[#Data],0,MATCH("num_motors_Market",output[#Headers],0)),output[equipment_type],$C$45,output[year],H$46,output[control_strategy], "ASD Control",output[sensitivity],"Base") -> 23083.05529 | I113: =SUMIFS(INDEX(output[#Data],0,MATCH("num_motors_Market",output[#Headers],0)),output[equipment_type],$C$45,output[year],I$46,output[control_strategy], "ASD Control",output[sensitivity],"Base") -> 24295.98481 | J113: =SUMIFS(INDEX(output[#Data],0,MATCH("num_motors_Market",output[#Headers],0)),output[equipment_type],$C$45,output[year],J$46,output[control_strategy], "ASD Control",output[sensitivity],"Base") -> 25415.72509
C114: ASD Saturation (% of Motors) | D114: =D113/SUM(D112:D113) -> 0.2515930122 | E114: =E113/SUM(E112:E113) -> 0.2714145388 | F114: =F113/SUM(F112:F113) -> 0.2935883889 | G114: =G113/SUM(G112:G113) -> 0.3096150685 | H114: =H113/SUM(H112:H113) -> 0.3339186753 | I114: =I113/SUM(I112:I113) -> 0.3539594296 | J114: =J113/SUM(J112:J113) -> 0.3587521419
C116: Figure 7: In-Service Fans, by Facility Type and Control Strategy in 2020 (In-Service Motor HP) | H116: Figure 8: In-Service Fans, by Facility Type and Control Strategy in 2020 (In-Service Motors)
C137: ="Table for "&C116 -> Table for Figure 7: In-Service Fans, by Facility Type and Control Strategy in 2020 (In-Service Motor HP)
C138: Fans | D138: Primary Metal | E138: Wood Products | F138: Paper | G138: Computer - Elec | H138: Chemical | I138: Food | J138: Warehousing | K138: Refinery | L138: Fabricated Metal | M138: Transportation | N138: Misc Manf
C139: In-Service Non ASD-Controlled Motor HP | D139: =SUMIFS(INDEX(output[#Data],0,MATCH("ishp_Market",output[#Headers],0)),output[equipment_type],$C$138,output[year],2020,output[facility_type],D$138,output[control_strategy],"Non ASD Control",output[sensitivity],"Base") -> 149217.7129 | E139: =SUMIFS(INDEX(output[#Data],0,MATCH("ishp_Market",output[#Headers],0)),output[equipment_type],$C$138,output[year],2020,output[facility_type],E$138,output[control_strategy],"Non ASD Control",output[sensitivity],"Base") -> 239301.1839 | F139: =SUMIFS(INDEX(output[#Data],0,MATCH("ishp_Market",output[#Headers],0)),output[equipment_type],$C$138,output[year],2020,output[facility_type],F$138,output[control_strategy],"Non ASD Control",output[sensitivity],"Base") -> 105830.2329 | G139: =SUMIFS(INDEX(output[#Data],0,MATCH("ishp_Market",output[#Headers],0)),output[equipment_type],$C$138,output[year],2020,output[facility_type],G$138,output[control_strategy],"Non ASD Control",output[sensitivity],"Base") -> 22106.68492 | H139: =SUMIFS(INDEX(output[#Data],0,MATCH("ishp_Market",output[#Headers],0)),output[equipment_type],$C$138,output[year],2020,output[facility_type],H$138,output[control_strategy],"Non ASD Control",output[sensitivity],"Base") -> 9584.135694 | I139: =SUMIFS(INDEX(output[#Data],0,MATCH("ishp_Market",output[#Headers],0)),output[equipment_type],$C$138,output[year],2020,output[facility_type],I$138,output[control_strategy],"Non ASD Control",output[sensitivity],"Base") -> 14537.06756 | J139: =SUMIFS(INDEX(output[#Data],0,MATCH("ishp_Market",output[#Headers],0)),output[equipment_type],$C$138,output[year],2020,output[facility_type],J$138,output[control_strategy],"Non ASD Control",output[sensitivity],"Base") -> 58133.94452 | K139: =SUMIFS(INDEX(output[#Data],0,MATCH("ishp_Market",output[#Headers],0)),output[equipment_type],$C$138,output[year],2020,output[facility_type],K$138,output[control_strategy],"Non ASD Control",output[sensitivity],"Base") -> 38704.21118 | L139: =SUMIFS(INDEX(output[#Data],0,MATCH("ishp_Market",output[#Headers],0)),output[equipment_type],$C$138,output[year],2020,output[facility_type],L$138,output[control_strategy],"Non ASD Control",output[sensitivity],"Base") -> 30953.40119 | M139: =SUMIFS(INDEX(output[#Data],0,MATCH("ishp_Market",output[#Headers],0)),output[equipment_type],$C$138,output[year],2020,output[facility_type],M$138,output[control_strategy],"Non ASD Control",output[sensitivity],"Base") -> 3920.25887 | N139: =SUMIFS(INDEX(output[#Data],0,MATCH("ishp_Market",output[#Headers],0)),output[equipment_type],$C$138,output[year],2020,output[facility_type],N$138,output[control_strategy],"Non ASD Control",output[sensitivity],"Base") -> 46592.84379
C140: In-Service ASD-Controlled Motor HP | D140: =SUMIFS(INDEX(output[#Data],0,MATCH("ishp_Market",output[#Headers],0)),output[equipment_type],$C$138,output[year],2020,output[facility_type],D$138,output[control_strategy],"ASD Control",output[sensitivity],"Base") -> 85854.51388 | E140: =SUMIFS(INDEX(output[#Data],0,MATCH("ishp_Market",output[#Headers],0)),output[equipment_type],$C$138,output[year],2020,output[facility_type],E$138,output[control_strategy],"ASD Control",output[sensitivity],"Base") -> 66210.0883 | F140: =SUMIFS(INDEX(output[#Data],0,MATCH("ishp_Market",output[#Headers],0)),output[equipment_type],$C$138,output[year],2020,output[facility_type],F$138,output[control_strategy],"ASD Control",output[sensitivity],"Base") -> 50119.59257 | G140: =SUMIFS(INDEX(output[#Data],0,MATCH("ishp_Market",output[#Headers],0)),output[equipment_type],$C$138,output[year],2020,output[facility_type],G$138,output[control_strategy],"ASD Control",output[sensitivity],"Base") -> 47868.23558 | H140: =SUMIFS(INDEX(output[#Data],0,MATCH("ishp_Market",output[#Headers],0)),output[equipment_type],$C$138,output[year],2020,output[facility_type],H$138,output[control_strategy],"ASD Control",output[sensitivity],"Base") -> 41711.81326 | I140: =SUMIFS(INDEX(output[#Data],0,MATCH("ishp_Market",output[#Headers],0)),output[equipment_type],$C$138,output[year],2020,output[facility_type],I$138,output[control_strategy],"ASD Control",output[sensitivity],"Base") -> 68440.50718 | J140: =SUMIFS(INDEX(output[#Data],0,MATCH("ishp_Market",output[#Headers],0)),output[equipment_type],$C$138,output[year],2020,output[facility_type],J$138,output[control_strategy],"ASD Control",output[sensitivity],"Base") -> 19727.34898 | K140: =SUMIFS(INDEX(output[#Data],0,MATCH("ishp_Market",output[#Headers],0)),output[equipment_type],$C$138,output[year],2020,output[facility_type],K$138,output[control_strategy],"ASD Control",output[sensitivity],"Base") -> 22745.71964 | L140: =SUMIFS(INDEX(output[#Data],0,MATCH("ishp_Market",output[#Headers],0)),output[equipment_type],$C$138,output[year],2020,output[facility_type],L$138,output[control_strategy],"ASD Control",output[sensitivity],"Base") -> 7210.673847 | M140: =SUMIFS(INDEX(output[#Data],0,MATCH("ishp_Market",output[#Headers],0)),output[equipment_type],$C$138,output[year],2020,output[facility_type],M$138,output[control_strategy],"ASD Control",output[sensitivity],"Base") -> 14252.86986 | N140: =SUMIFS(INDEX(output[#Data],0,MATCH("ishp_Market",output[#Headers],0)),output[equipment_type],$C$138,output[year],2020,output[facility_type],N$138,output[control_strategy],"ASD Control",output[sensitivity],"Base") -> 75770.73344
C142: ="Table for "&H116 -> Table for Figure 8: In-Service Fans, by Facility Type and Control Strategy in 2020 (In-Service Motors)
C143: Fans | D143: Primary Metal | E143: Wood Products | F143: Paper | G143: Computer - Elec | H143: Chemical | I143: Food | J143: Warehousing | K143: Refinery | L143: Fabricated Metal | M143: Transportation | N143: Misc Manf
C144: In-Service Non ASD-Controlled Motors | D144: =SUMIFS(INDEX(output[#Data],0,MATCH("num_motors_Market",output[#Headers],0)),output[equipment_type],$C$143,output[year],2020,output[facility_type],D$143,output[control_strategy],"Non ASD Control",output[sensitivity],"Base") -> 7365.465215 | E144: =SUMIFS(INDEX(output[#Data],0,MATCH("num_motors_Market",output[#Headers],0)),output[equipment_type],$C$143,output[year],2020,output[facility_type],E$143,output[control_strategy],"Non ASD Control",output[sensitivity],"Base") -> 2429.070983 | F144: =SUMIFS(INDEX(output[#Data],0,MATCH("num_motors_Market",output[#Headers],0)),output[equipment_type],$C$143,output[year],2020,output[facility_type],F$143,output[control_strategy],"Non ASD Control",output[sensitivity],"Base") -> 2169.537321 | G144: =SUMIFS(INDEX(output[#Data],0,MATCH("num_motors_Market",output[#Headers],0)),output[equipment_type],$C$143,output[year],2020,output[facility_type],G$143,output[control_strategy],"Non ASD Control",output[sensitivity],"Base") -> 2831.308048 | H144: =SUMIFS(INDEX(output[#Data],0,MATCH("num_motors_Market",output[#Headers],0)),output[equipment_type],$C$143,output[year],2020,output[facility_type],H$143,output[control_strategy],"Non ASD Control",output[sensitivity],"Base") -> 582.087182 | I144: =SUMIFS(INDEX(output[#Data],0,MATCH("num_motors_Market",output[#Headers],0)),output[equipment_type],$C$143,output[year],2020,output[facility_type],I$143,output[control_strategy],"Non ASD Control",output[sensitivity],"Base") -> 1626.816452 | J144: =SUMIFS(INDEX(output[#Data],0,MATCH("num_motors_Market",output[#Headers],0)),output[equipment_type],$C$143,output[year],2020,output[facility_type],J$143,output[control_strategy],"Non ASD Control",output[sensitivity],"Base") -> 17095.18381 | K144: =SUMIFS(INDEX(output[#Data],0,MATCH("num_motors_Market",output[#Headers],0)),output[equipment_type],$C$143,output[year],2020,output[facility_type],K$143,output[control_strategy],"Non ASD Control",output[sensitivity],"Base") -> 841.2653286 | L144: =SUMIFS(INDEX(output[#Data],0,MATCH("num_motors_Market",output[#Headers],0)),output[equipment_type],$C$143,output[year],2020,output[facility_type],L$143,output[control_strategy],"Non ASD Control",output[sensitivity],"Base") -> 3159.868917 | M144: =SUMIFS(INDEX(output[#Data],0,MATCH("num_motors_Market",output[#Headers],0)),output[equipment_type],$C$143,output[year],2020,output[facility_type],M$143,output[control_strategy],"Non ASD Control",output[sensitivity],"Base") -> 265.8578023 | N144: =SUMIFS(INDEX(output[#Data],0,MATCH("num_motors_Market",output[#Headers],0)),output[equipment_type],$C$143,output[year],2020,output[facility_type],N$143,output[control_strategy],"Non ASD Control",output[sensitivity],"Base") -> 5978.146183
C145: In-Service ASD-Controlled Motors | D145: =SUMIFS(INDEX(output[#Data],0,MATCH("num_motors_Market",output[#Headers],0)),output[equipment_type],$C$143,output[year],2020,output[facility_type],D$143,output[control_strategy],"ASD Control",output[sensitivity],"Base") -> 848.8017466 | E145: =SUMIFS(INDEX(output[#Data],0,MATCH("num_motors_Market",output[#Headers],0)),output[equipment_type],$C$143,output[year],2020,output[facility_type],E$143,output[control_strategy],"ASD Control",output[sensitivity],"Base") -> 4434.750546 | F145: =SUMIFS(INDEX(output[#Data],0,MATCH("num_motors_Market",output[#Headers],0)),output[equipment_type],$C$143,output[year],2020,output[facility_type],F$143,output[control_strategy],"ASD Control",output[sensitivity],"Base") -> 581.467302 | G145: =SUMIFS(INDEX(output[#Data],0,MATCH("num_motors_Market",output[#Headers],0)),output[equipment_type],$C$143,output[year],2020,output[facility_type],G$143,output[control_strategy],"ASD Control",output[sensitivity],"Base") -> 3763.261622 | H145: =SUMIFS(INDEX(output[#Data],0,MATCH("num_motors_Market",output[#Headers],0)),output[equipment_type],$C$143,output[year],2020,output[facility_type],H$143,output[control_strategy],"ASD Control",output[sensitivity],"Base") -> 1108.150506 | I145: =SUMIFS(INDEX(output[#Data],0,MATCH("num_motors_Market",output[#Headers],0)),output[equipment_type],$C$143,output[year],2020,output[facility_type],I$143,output[control_strategy],"ASD Control",output[sensitivity],"Base") -> 4327.219865 | J145: =SUMIFS(INDEX(output[#Data],0,MATCH("num_motors_Market",output[#Headers],0)),output[equipment_type],$C$143,output[year],2020,output[facility_type],J$143,output[control_strategy],"ASD Control",output[sensitivity],"Base") -> 5022.417576 | K145: =SUMIFS(INDEX(output[#Data],0,MATCH("num_motors_Market",output[#Headers],0)),output[equipment_type],$C$143,output[year],2020,output[facility_type],K$143,output[control_strategy],"ASD Control",output[sensitivity],"Base") -> 492.9637586 | L145: =SUMIFS(INDEX(output[#Data],0,MATCH("num_motors_Market",output[#Headers],0)),output[equipment_type],$C$143,output[year],2020,output[facility_type],L$143,output[control_strategy],"ASD Control",output[sensitivity],"Base") -> 525.805016 | M145: =SUMIFS(INDEX(output[#Data],0,MATCH("num_motors_Market",output[#Headers],0)),output[equipment_type],$C$143,output[year],2020,output[facility_type],M$143,output[control_strategy],"ASD Control",output[sensitivity],"Base") -> 471.5035032 | N145: =SUMIFS(INDEX(output[#Data],0,MATCH("num_motors_Market",output[#Headers],0)),output[equipment_type],$C$143,output[year],2020,output[facility_type],N$143,output[control_strategy],"ASD Control",output[sensitivity],"Base") -> 2719.643367
C147: Figure 9: In-Service ASD-Controlled Fans, by Year (In-Service Motor HP) | H147: Figure 10: In-Service ASD-Controlled Fans, by Year (In-Service Motors)
C164: ="Table for "&C147 -> Table for Figure 9: In-Service ASD-Controlled Fans, by Year (In-Service Motor HP)
C165: Fans | D165: Year
C166: Pumps | D166: 2015 | E166: 2016 | F166: 2017 | G166: 2018 | H166: 2019 | I166: 2020 | J166: 2021
C167: Baseline ASD-Equipped Motor HP, In-Service | D167: =SUMIFS(INDEX(output[#Data],0,MATCH("ishp_baseline",output[#Headers],0)),output[equipment_type],$C$165,output[year],D$166,output[control_strategy],"ASD Control",output[sensitivity],"Base") -> 359932.524 | E167: =SUMIFS(INDEX(output[#Data],0,MATCH("ishp_baseline",output[#Headers],0)),output[equipment_type],$C$165,output[year],E$166,output[control_strategy],"ASD Control",output[sensitivity],"Base") -> 371834.8301 | F167: =SUMIFS(INDEX(output[#Data],0,MATCH("ishp_baseline",output[#Headers],0)),output[equipment_type],$C$165,output[year],F$166,output[control_strategy],"ASD Control",output[sensitivity],"Base") -> 379172.939 | G167: =SUMIFS(INDEX(output[#Data],0,MATCH("ishp_baseline",output[#Headers],0)),output[equipment_type],$C$165,output[year],G$166,output[control_strategy],"ASD Control",output[sensitivity],"Base") -> 411790.8692 | H167: =SUMIFS(INDEX(output[#Data],0,MATCH("ishp_baseline",output[#Headers],0)),output[equipment_type],$C$165,output[year],H$166,output[control_strategy],"ASD Control",output[sensitivity],"Base") -> 427564.0042 | I167: =SUMIFS(INDEX(output[#Data],0,MATCH("ishp_baseline",output[#Headers],0)),output[equipment_type],$C$165,output[year],I$166,output[control_strategy],"ASD Control",output[sensitivity],"Base") -> 437252.6139 | J167: =SUMIFS(INDEX(output[#Data],0,MATCH("ishp_baseline",output[#Headers],0)),output[equipment_type],$C$165,output[year],J$166,output[control_strategy],"ASD Control",output[sensitivity],"Base") -> 434174.2783
C168: Market ASD-Equipped Motor HP, In-Service | D168: =SUMIFS(INDEX(output[#Data],0,MATCH("ishp_Market",output[#Headers],0)),output[equipment_type],$C$165,output[year],D$166,output[control_strategy],"ASD Control",output[sensitivity],"Base") -> 359932.524 | E168: =SUMIFS(INDEX(output[#Data],0,MATCH("ishp_Market",output[#Headers],0)),output[equipment_type],$C$165,output[year],E$166,output[control_strategy],"ASD Control",output[sensitivity],"Base") -> 383550.676 | F168: =SUMIFS(INDEX(output[#Data],0,MATCH("ishp_Market",output[#Headers],0)),output[equipment_type],$C$165,output[year],F$166,output[control_strategy],"ASD Control",output[sensitivity],"Base") -> 402177.6707 | G168: =SUMIFS(INDEX(output[#Data],0,MATCH("ishp_Market",output[#Headers],0)),output[equipment_type],$C$165,output[year],G$166,output[control_strategy],"ASD Control",output[sensitivity],"Base") -> 448424.4322 | H168: =SUMIFS(INDEX(output[#Data],0,MATCH("ishp_Market",output[#Headers],0)),output[equipment_type],$C$165,output[year],H$166,output[control_strategy],"ASD Control",output[sensitivity],"Base") -> 479060.5369 | I168: =SUMIFS(INDEX(output[#Data],0,MATCH("ishp_Market",output[#Headers],0)),output[equipment_type],$C$165,output[year],I$166,output[control_strategy],"ASD Control",output[sensitivity],"Base") -> 499912.0965 | J168: =SUMIFS(INDEX(output[#Data],0,MATCH("ishp_Market",output[#Headers],0)),output[equipment_type],$C$165,output[year],J$166,output[control_strategy],"ASD Control",output[sensitivity],"Base") -> 505566.5966
C170: ="Table for "&H147 -> Table for Figure 10: In-Service ASD-Controlled Fans, by Year (In-Service Motors)
C171: Fans | D171: Year
C172: Pumps | D172: 2015 | E172: 2016 | F172: 2017 | G172: 2018 | H172: 2019 | I172: 2020 | J172: 2021
C173: Baseline ASD-Equipped Motors, In-Service | D173: =SUMIFS(INDEX(output[#Data],0,MATCH("num_motors_Baseline",output[#Headers],0)),output[equipment_type],$C$171,output[year],D$172,output[control_strategy],"ASD Control",output[sensitivity],"Base") -> 16271.11435 | E173: =SUMIFS(INDEX(output[#Data],0,MATCH("num_motors_Baseline",output[#Headers],0)),output[equipment_type],$C$171,output[year],E$172,output[control_strategy],"ASD Control",output[sensitivity],"Base") -> 16600.57271 | F173: =SUMIFS(INDEX(output[#Data],0,MATCH("num_motors_Baseline",output[#Headers],0)),output[equipment_type],$C$171,output[year],F$172,output[control_strategy],"ASD Control",output[sensitivity],"Base") -> 16932.99377 | G173: =SUMIFS(INDEX(output[#Data],0,MATCH("num_motors_Baseline",output[#Headers],0)),output[equipment_type],$C$171,output[year],G$172,output[control_strategy],"ASD Control",output[sensitivity],"Base") -> 18485.17489 | H173: =SUMIFS(INDEX(output[#Data],0,MATCH("num_motors_Baseline",output[#Headers],0)),output[equipment_type],$C$171,output[year],H$172,output[control_strategy],"ASD Control",output[sensitivity],"Base") -> 19243.74908 | I173: =SUMIFS(INDEX(output[#Data],0,MATCH("num_motors_Baseline",output[#Headers],0)),output[equipment_type],$C$171,output[year],I$172,output[control_strategy],"ASD Control",output[sensitivity],"Base") -> 19668.96865 | J173: =SUMIFS(INDEX(output[#Data],0,MATCH("num_motors_Baseline",output[#Headers],0)),output[equipment_type],$C$171,output[year],J$172,output[control_strategy],"ASD Control",output[sensitivity],"Base") -> 20046.37808
C174: Market ASD-Equipped Motors, In-Service | D174: =SUMIFS(INDEX(output[#Data],0,MATCH("num_motors_Market",output[#Headers],0)),output[equipment_type],$C$171,output[year],D$172,output[control_strategy],"ASD Control",output[sensitivity],"Base") -> 16271.11435 | E174: =SUMIFS(INDEX(output[#Data],0,MATCH("num_motors_Market",output[#Headers],0)),output[equipment_type],$C$171,output[year],E$172,output[control_strategy],"ASD Control",output[sensitivity],"Base") -> 17485.72101 | F174: =SUMIFS(INDEX(output[#Data],0,MATCH("num_motors_Market",output[#Headers],0)),output[equipment_type],$C$171,output[year],F$172,output[control_strategy],"ASD Control",output[sensitivity],"Base") -> 18637.05857 | G174: =SUMIFS(INDEX(output[#Data],0,MATCH("num_motors_Market",output[#Headers],0)),output[equipment_type],$C$171,output[year],G$172,output[control_strategy],"ASD Control",output[sensitivity],"Base") -> 21194.5555 | H174: =SUMIFS(INDEX(output[#Data],0,MATCH("num_motors_Market",output[#Headers],0)),output[equipment_type],$C$171,output[year],H$172,output[control_strategy],"ASD Control",output[sensitivity],"Base") -> 23083.05529 | I174: =SUMIFS(INDEX(output[#Data],0,MATCH("num_motors_Market",output[#Headers],0)),output[equipment_type],$C$171,output[year],I$172,output[control_strategy],"ASD Control",output[sensitivity],"Base") -> 24295.98481 | J174: =SUMIFS(INDEX(output[#Data],0,MATCH("num_motors_Market",output[#Headers],0)),output[equipment_type],$C$171,output[year],J$172,output[control_strategy],"ASD Control",output[sensitivity],"Base") -> 25415.72509
C176: Figure 11: ASD-Controlled Fans Installed Above Baseline, by Year (In-Service Motor HP) | H176: Figure 12: ASD-Controlled Fans Installed Above Baseline, by Year (In-Service Motors)
C192: ="Table for "&C176 -> Table for Figure 11: ASD-Controlled Fans Installed Above Baseline, by Year (In-Service Motor HP)
C193: Fans | D193: Year
C194: Pumps | D194: 2016 | E194: 2017 | F194: 2018 | G194: 2019 | H194: 2020 | I194: 2021
C195: Regional Momentum ASD Motor HP Installed | D195: =SUMIFS(INDEX(output[#Data],0,MATCH("ishp_Market",output[#Headers],0)),output[equipment_type],$C$193,output[year],D$194,output[control_strategy],"ASD Control",output[sensitivity],"Base")-SUMIFS(INDEX(output[#Data],0,MATCH("ishp_Program",output[#Headers],0)),output[equipment_type],$C$193,output[year],D$194,output[control_strategy],"ASD Control",output[sensitivity],"Base") -> 6707.463393 | E195: =SUMIFS(INDEX(output[#Data],0,MATCH("ishp_Market",output[#Headers],0)),output[equipment_type],$C$193,output[year],E$194,output[control_strategy],"ASD Control",output[sensitivity],"Base")-SUMIFS(INDEX(output[#Data],0,MATCH("ishp_Program",output[#Headers],0)),output[equipment_type],$C$193,output[year],E$194,output[control_strategy],"ASD Control",output[sensitivity],"Base")-SUM($D$195:D195) -> 6648.055181 | F195: =SUMIFS(INDEX(output[#Data],0,MATCH("ishp_Market",output[#Headers],0)),output[equipment_type],$C$193,output[year],F$194,output[control_strategy],"ASD Control",output[sensitivity],"Base")-SUMIFS(INDEX(output[#Data],0,MATCH("ishp_Program",output[#Headers],0)),output[equipment_type],$C$193,output[year],F$194,output[control_strategy],"ASD Control",output[sensitivity],"Base")-SUM($D$195:E195) -> 7918.353974 | G195: =SUMIFS(INDEX(output[#Data],0,MATCH("ishp_Market",output[#Headers],0)),output[equipment_type],$C$193,output[year],G$194,output[control_strategy],"ASD Control",output[sensitivity],"Base")-SUMIFS(INDEX(output[#Data],0,MATCH("ishp_Program",output[#Headers],0)),output[equipment_type],$C$193,output[year],G$194,output[control_strategy],"ASD Control",output[sensitivity],"Base")-SUM($D$195:F195) -> 6082.393056 | H195: =SUMIFS(INDEX(output[#Data],0,MATCH("ishp_Market",output[#Headers],0)),output[equipment_type],$C$193,output[year],H$194,output[control_strategy],"ASD Control",output[sensitivity],"Base")-SUMIFS(INDEX(output[#Data],0,MATCH("ishp_Program",output[#Headers],0)),output[equipment_type],$C$193,output[year],H$194,output[control_strategy],"ASD Control",output[sensitivity],"Base")-SUM($D$195:G195) -> 8064.963607 | I195: =SUMIFS(INDEX(output[#Data],0,MATCH("ishp_Market",output[#Headers],0)),output[equipment_type],$C$193,output[year],I$194,output[control_strategy],"ASD Control",output[sensitivity],"Base")-SUMIFS(INDEX(output[#Data],0,MATCH("ishp_Program",output[#Headers],0)),output[equipment_type],$C$193,output[year],I$194,output[control_strategy],"ASD Control",output[sensitivity],"Base")-SUM($D$195:H195) -> 5634.8494
C196: Regional Program Incented Motor HP Installed | D196: =SUMIFS(INDEX(output[#Data],0,MATCH("ishp_Program",output[#Headers],0)),output[equipment_type],$C$193,output[year],D$194,output[control_strategy],"ASD Control",output[sensitivity],"Base")-SUMIFS(INDEX(output[#Data],0,MATCH("ishp_Baseline",output[#Headers],0)),output[equipment_type],$C$193,output[year],D$194,output[control_strategy],"ASD Control",output[sensitivity],"Base") -> 5008.382561 | E196: =SUMIFS(INDEX(output[#Data],0,MATCH("ishp_Program",output[#Headers],0)),output[equipment_type],$C$193,output[year],E$194,output[control_strategy],"ASD Control",output[sensitivity],"Base")-SUMIFS(INDEX(output[#Data],0,MATCH("ishp_Baseline",output[#Headers],0)),output[equipment_type],$C$193,output[year],E$194,output[control_strategy],"ASD Control",output[sensitivity],"Base")-SUM($D$196:D196) -> 4640.830624 | F196: =SUMIFS(INDEX(output[#Data],0,MATCH("ishp_Program",output[#Headers],0)),output[equipment_type],$C$193,output[year],F$194,output[control_strategy],"ASD Control",output[sensitivity],"Base")-SUMIFS(INDEX(output[#Data],0,MATCH("ishp_Baseline",output[#Headers],0)),output[equipment_type],$C$193,output[year],F$194,output[control_strategy],"ASD Control",output[sensitivity],"Base")-SUM($D$196:E196) -> 5710.477229 | G196: =SUMIFS(INDEX(output[#Data],0,MATCH("ishp_Program",output[#Headers],0)),output[equipment_type],$C$193,output[year],G$194,output[control_strategy],"ASD Control",output[sensitivity],"Base")-SUMIFS(INDEX(output[#Data],0,MATCH("ishp_Baseline",output[#Headers],0)),output[equipment_type],$C$193,output[year],G$194,output[control_strategy],"ASD Control",output[sensitivity],"Base")-SUM($D$196:F196) -> 8780.576725 | H196: =SUMIFS(INDEX(output[#Data],0,MATCH("ishp_Program",output[#Headers],0)),output[equipment_type],$C$193,output[year],H$194,output[control_strategy],"ASD Control",output[sensitivity],"Base")-SUMIFS(INDEX(output[#Data],0,MATCH("ishp_Baseline",output[#Headers],0)),output[equipment_type],$C$193,output[year],H$194,output[control_strategy],"ASD Control",output[sensitivity],"Base")-SUM($D$196:G196) -> 3097.986254 | I196: =SUMIFS(INDEX(output[#Data],0,MATCH("ishp_Program",output[#Headers],0)),output[equipment_type],$C$193,output[year],I$194,output[control_strategy],"ASD Control",output[sensitivity],"Base")-SUMIFS(INDEX(output[#Data],0,MATCH("ishp_Baseline",output[#Headers],0)),output[equipment_type],$C$193,output[year],I$194,output[control_strategy],"ASD Control",output[sensitivity],"Base")-SUM($D$196:H196) -> 3097.986254
C198: ="Table for "&H176 -> Table for Figure 12: ASD-Controlled Fans Installed Above Baseline, by Year (In-Service Motors)
C199: Fans | D199: Year
C200: Pumps | D200: 2016 | E200: 2017 | F200: 2018 | G200: 2019 | H200: 2020 | I200: 2021
C201: Regional Momentum ASD Motors Installed | D201: =SUMIFS(INDEX(output[#Data],0,MATCH("num_motors_Market",output[#Headers],0)),output[equipment_type],$C$199,output[year],D$200,output[control_strategy],"ASD Control",output[sensitivity],"Base")-SUMIFS(INDEX(output[#Data],0,MATCH("num_motors_Program",output[#Headers],0)),output[equipment_type],$C$199,output[year],D$200,output[control_strategy],"ASD Control",output[sensitivity],"Base") -> 751.4694929 | E201: =SUMIFS(INDEX(output[#Data],0,MATCH("num_motors_Market",output[#Headers],0)),output[equipment_type],$C$199,output[year],E$200,output[control_strategy],"ASD Control",output[sensitivity],"Base")-SUMIFS(INDEX(output[#Data],0,MATCH("num_motors_Program",output[#Headers],0)),output[equipment_type],$C$199,output[year],E$200,output[control_strategy],"ASD Control",output[sensitivity],"Base")-SUM($D$201:D201) -> 715.3006253 | F201: =SUMIFS(INDEX(output[#Data],0,MATCH("num_motors_Market",output[#Headers],0)),output[equipment_type],$C$199,output[year],F$200,output[control_strategy],"ASD Control",output[sensitivity],"Base")-SUMIFS(INDEX(output[#Data],0,MATCH("num_motors_Program",output[#Headers],0)),output[equipment_type],$C$199,output[year],F$200,output[control_strategy],"ASD Control",output[sensitivity],"Base")-SUM($D$201:E201) -> 862.1153759 | G201: =SUMIFS(INDEX(output[#Data],0,MATCH("num_motors_Market",output[#Headers],0)),output[equipment_type],$C$199,output[year],G$200,output[control_strategy],"ASD Control",output[sensitivity],"Base")-SUMIFS(INDEX(output[#Data],0,MATCH("num_motors_Program",output[#Headers],0)),output[equipment_type],$C$199,output[year],G$200,output[control_strategy],"ASD Control",output[sensitivity],"Base")-SUM($D$201:F201) -> 920.9452066 | H201: =SUMIFS(INDEX(output[#Data],0,MATCH("num_motors_Market",output[#Headers],0)),output[equipment_type],$C$199,output[year],H$200,output[control_strategy],"ASD Control",output[sensitivity],"Base")-SUMIFS(INDEX(output[#Data],0,MATCH("num_motors_Program",output[#Headers],0)),output[equipment_type],$C$199,output[year],H$200,output[control_strategy],"ASD Control",output[sensitivity],"Base")-SUM($D$201:G201) -> 717.8597438 | I201: =SUMIFS(INDEX(output[#Data],0,MATCH("num_motors_Market",output[#Headers],0)),output[equipment_type],$C$199,output[year],I$200,output[control_strategy],"ASD Control",output[sensitivity],"Base")-SUMIFS(INDEX(output[#Data],0,MATCH("num_motors_Program",output[#Headers],0)),output[equipment_type],$C$199,output[year],I$200,output[control_strategy],"ASD Control",output[sensitivity],"Base")-SUM($D$201:H201) -> 672.4806599
C202: Regional Program Incented Motors Installed | D202: =SUMIFS(INDEX(output[#Data],0,MATCH("num_motors_Program",output[#Headers],0)),output[equipment_type],$C$199,output[year],D$200,output[control_strategy],"ASD Control",output[sensitivity],"Base")-SUMIFS(INDEX(output[#Data],0,MATCH("num_motors_Baseline",output[#Headers],0)),output[equipment_type],$C$199,output[year],D$200,output[control_strategy],"ASD Control",output[sensitivity],"Base") -> 133.6788088 | E202: =SUMIFS(INDEX(output[#Data],0,MATCH("num_motors_Program",output[#Headers],0)),output[equipment_type],$C$199,output[year],E$200,output[control_strategy],"ASD Control",output[sensitivity],"Base")-SUMIFS(INDEX(output[#Data],0,MATCH("num_motors_Baseline",output[#Headers],0)),output[equipment_type],$C$199,output[year],E$200,output[control_strategy],"ASD Control",output[sensitivity],"Base")-SUM($D$202:D202) -> 103.6158743 | F202: =SUMIFS(INDEX(output[#Data],0,MATCH("num_motors_Program",output[#Headers],0)),output[equipment_type],$C$199,output[year],F$200,output[control_strategy],"ASD Control",output[sensitivity],"Base")-SUMIFS(INDEX(output[#Data],0,MATCH("num_motors_Baseline",output[#Headers],0)),output[equipment_type],$C$199,output[year],F$200,output[control_strategy],"ASD Control",output[sensitivity],"Base")-SUM($D$202:E202) -> 143.2004369 | G202: =SUMIFS(INDEX(output[#Data],0,MATCH("num_motors_Program",output[#Headers],0)),output[equipment_type],$C$199,output[year],G$200,output[control_strategy],"ASD Control",output[sensitivity],"Base")-SUMIFS(INDEX(output[#Data],0,MATCH("num_motors_Baseline",output[#Headers],0)),output[equipment_type],$C$199,output[year],G$200,output[control_strategy],"ASD Control",output[sensitivity],"Base")-SUM($D$202:F202) -> 208.9803966 | H202: =SUMIFS(INDEX(output[#Data],0,MATCH("num_motors_Program",output[#Headers],0)),output[equipment_type],$C$199,output[year],H$200,output[control_strategy],"ASD Control",output[sensitivity],"Base")-SUMIFS(INDEX(output[#Data],0,MATCH("num_motors_Baseline",output[#Headers],0)),output[equipment_type],$C$199,output[year],H$200,output[control_strategy],"ASD Control",output[sensitivity],"Base")-SUM($D$202:G202) -> 69.85019487 | I202: =SUMIFS(INDEX(output[#Data],0,MATCH("num_motors_Program",output[#Headers],0)),output[equipment_type],$C$199,output[year],I$200,output[control_strategy],"ASD Control",output[sensitivity],"Base")-SUMIFS(INDEX(output[#Data],0,MATCH("num_motors_Baseline",output[#Headers],0)),output[equipment_type],$C$199,output[year],I$200,output[control_strategy],"ASD Control",output[sensitivity],"Base")-SUM($D$202:H202) -> 69.85019487
C204: Figure 13: Total ASD-Controlled Fans Installed Above Baseline, by Facility Type, 2016 - 2021 (In-Service Motor HP) | H204: Figure 14: Total ASD-Controlled Fans Installed Above Baseline, by Facility Type, 2016 - 2021 (In-Service Motors)
C225: ="Table for "&C204 -> Table for Figure 13: Total ASD-Controlled Fans Installed Above Baseline, by Facility Type, 2016 - 2021 (In-Service Motor HP)
C226: Fans | E226: Primary Metal | F226: Wood Products | G226: Paper | H226: Computer - Elec | I226: Chemical | J226: Food | K226: Warehousing | L226: Refinery | M226: Fabricated Metal | N226: Transportation | O226: Misc Manf
C227: Regional Momentum | E227: =SUMIFS(INDEX(output[#Data],0,MATCH("ishp_Market",output[#Headers],0)),output[equipment_type],$C$226,output[year],2021,output[facility_type],E$226,output[control_strategy],"ASD Control",output[sensitivity],"Base")-SUMIFS(INDEX(output[#Data],0,MATCH("ishp_Program",output[#Headers],0)),output[equipment_type],$C$226,output[year],2021,output[facility_type],E$226,output[control_strategy],"ASD Control",output[sensitivity],"Base") -> 3490.280143 | F227: =SUMIFS(INDEX(output[#Data],0,MATCH("ishp_Market",output[#Headers],0)),output[equipment_type],$C$226,output[year],2021,output[facility_type],F$226,output[control_strategy],"ASD Control",output[sensitivity],"Base")-SUMIFS(INDEX(output[#Data],0,MATCH("ishp_Program",output[#Headers],0)),output[equipment_type],$C$226,output[year],2021,output[facility_type],F$226,output[control_strategy],"ASD Control",output[sensitivity],"Base") -> 3457.118629 | G227: =SUMIFS(INDEX(output[#Data],0,MATCH("ishp_Market",output[#Headers],0)),output[equipment_type],$C$226,output[year],2021,output[facility_type],G$226,output[control_strategy],"ASD Control",output[sensitivity],"Base")-SUMIFS(INDEX(output[#Data],0,MATCH("ishp_Program",output[#Headers],0)),output[equipment_type],$C$226,output[year],2021,output[facility_type],G$226,output[control_strategy],"ASD Control",output[sensitivity],"Base") -> 6351.795402 | H227: =SUMIFS(INDEX(output[#Data],0,MATCH("ishp_Market",output[#Headers],0)),output[equipment_type],$C$226,output[year],2021,output[facility_type],H$226,output[control_strategy],"ASD Control",output[sensitivity],"Base")-SUMIFS(INDEX(output[#Data],0,MATCH("ishp_Program",output[#Headers],0)),output[equipment_type],$C$226,output[year],2021,output[facility_type],H$226,output[control_strategy],"ASD Control",output[sensitivity],"Base") -> 6485.374637 | I227: =SUMIFS(INDEX(output[#Data],0,MATCH("ishp_Market",output[#Headers],0)),output[equipment_type],$C$226,output[year],2021,output[facility_type],I$226,output[control_strategy],"ASD Control",output[sensitivity],"Base")-SUMIFS(INDEX(output[#Data],0,MATCH("ishp_Program",output[#Headers],0)),output[equipment_type],$C$226,output[year],2021,output[facility_type],I$226,output[control_strategy],"ASD Control",output[sensitivity],"Base") -> 2486.619911 | J227: =SUMIFS(INDEX(output[#Data],0,MATCH("ishp_Market",output[#Headers],0)),output[equipment_type],$C$226,output[year],2021,output[facility_type],J$226,output[control_strategy],"ASD Control",output[sensitivity],"Base")-SUMIFS(INDEX(output[#Data],0,MATCH("ishp_Program",output[#Headers],0)),output[equipment_type],$C$226,output[year],2021,output[facility_type],J$226,output[control_strategy],"ASD Control",output[sensitivity],"Base") -> 3682.891663 | K227: =SUMIFS(INDEX(output[#Data],0,MATCH("ishp_Market",output[#Headers],0)),output[equipment_type],$C$226,output[year],2021,output[facility_type],K$226,output[control_strategy],"ASD Control",output[sensitivity],"Base")-SUMIFS(INDEX(output[#Data],0,MATCH("ishp_Program",output[#Headers],0)),output[equipment_type],$C$226,output[year],2021,output[facility_type],K$226,output[control_strategy],"ASD Control",output[sensitivity],"Base") -> 1712.939474 | L227: =SUMIFS(INDEX(output[#Data],0,MATCH("ishp_Market",output[#Headers],0)),output[equipment_type],$C$226,output[year],2021,output[facility_type],L$226,output[control_strategy],"ASD Control",output[sensitivity],"Base")-SUMIFS(INDEX(output[#Data],0,MATCH("ishp_Program",output[#Headers],0)),output[equipment_type],$C$226,output[year],2021,output[facility_type],L$226,output[control_strategy],"ASD Control",output[sensitivity],"Base") -> 3786.926188 | M227: =SUMIFS(INDEX(output[#Data],0,MATCH("ishp_Market",output[#Headers],0)),output[equipment_type],$C$226,output[year],2021,output[facility_type],M$226,output[control_strategy],"ASD Control",output[sensitivity],"Base")-SUMIFS(INDEX(output[#Data],0,MATCH("ishp_Program",output[#Headers],0)),output[equipment_type],$C$226,output[year],2021,output[facility_type],M$226,output[control_strategy],"ASD Control",output[sensitivity],"Base") -> 947.5344902 | N227: =SUMIFS(INDEX(output[#Data],0,MATCH("ishp_Market",output[#Headers],0)),output[equipment_type],$C$226,output[year],2021,output[facility_type],N$226,output[control_strategy],"ASD Control",output[sensitivity],"Base")-SUMIFS(INDEX(output[#Data],0,MATCH("ishp_Program",output[#Headers],0)),output[equipment_type],$C$226,output[year],2021,output[facility_type],N$226,output[control_strategy],"ASD Control",output[sensitivity],"Base") -> 2351.495421 | O227: =SUMIFS(INDEX(output[#Data],0,MATCH("ishp_Market",output[#Headers],0)),output[equipment_type],$C$226,output[year],2021,output[facility_type],O$226,output[control_strategy],"ASD Control",output[sensitivity],"Base")-SUMIFS(INDEX(output[#Data],0,MATCH("ishp_Program",output[#Headers],0)),output[equipment_type],$C$226,output[year],2021,output[facility_type],O$226,output[control_strategy],"ASD Control",output[sensitivity],"Base") -> 6303.102653
C228: Regional Program Incented | E228: =SUMIFS(INDEX(output[#Data],0,MATCH("ishp_Program",output[#Headers],0)),output[equipment_type],$C$226,output[year],2021,output[facility_type],E$226,output[control_strategy],"ASD Control",output[sensitivity],"Base")-SUMIFS(INDEX(output[#Data],0,MATCH("ishp_Baseline",output[#Headers],0)),output[equipment_type],$C$226,output[year],2021,output[facility_type],E$226,output[control_strategy],"ASD Control",output[sensitivity],"Base") -> 0 | F228: =SUMIFS(INDEX(output[#Data],0,MATCH("ishp_Program",output[#Headers],0)),output[equipment_type],$C$226,output[year],2021,output[facility_type],F$226,output[control_strategy],"ASD Control",output[sensitivity],"Base")-SUMIFS(INDEX(output[#Data],0,MATCH("ishp_Baseline",output[#Headers],0)),output[equipment_type],$C$226,output[year],2021,output[facility_type],F$226,output[control_strategy],"ASD Control",output[sensitivity],"Base") -> 5071.210762 | G228: =SUMIFS(INDEX(output[#Data],0,MATCH("ishp_Program",output[#Headers],0)),output[equipment_type],$C$226,output[year],2021,output[facility_type],G$226,output[control_strategy],"ASD Control",output[sensitivity],"Base")-SUMIFS(INDEX(output[#Data],0,MATCH("ishp_Baseline",output[#Headers],0)),output[equipment_type],$C$226,output[year],2021,output[facility_type],G$226,output[control_strategy],"ASD Control",output[sensitivity],"Base") -> 290.3534389 | H228: =SUMIFS(INDEX(output[#Data],0,MATCH("ishp_Program",output[#Headers],0)),output[equipment_type],$C$226,output[year],2021,output[facility_type],H$226,output[control_strategy],"ASD Control",output[sensitivity],"Base")-SUMIFS(INDEX(output[#Data],0,MATCH("ishp_Baseline",output[#Headers],0)),output[equipment_type],$C$226,output[year],2021,output[facility_type],H$226,output[control_strategy],"ASD Control",output[sensitivity],"Base") -> 341.0647439 | I228: =SUMIFS(INDEX(output[#Data],0,MATCH("ishp_Program",output[#Headers],0)),output[equipment_type],$C$226,output[year],2021,output[facility_type],I$226,output[control_strategy],"ASD Control",output[sensitivity],"Base")-SUMIFS(INDEX(output[#Data],0,MATCH("ishp_Baseline",output[#Headers],0)),output[equipment_type],$C$226,output[year],2021,output[facility_type],I$226,output[control_strategy],"ASD Control",output[sensitivity],"Base") -> 4294.190562 | J228: =SUMIFS(INDEX(output[#Data],0,MATCH("ishp_Program",output[#Headers],0)),output[equipment_type],$C$226,output[year],2021,output[facility_type],J$226,output[control_strategy],"ASD Control",output[sensitivity],"Base")-SUMIFS(INDEX(output[#Data],0,MATCH("ishp_Baseline",output[#Headers],0)),output[equipment_type],$C$226,output[year],2021,output[facility_type],J$226,output[control_strategy],"ASD Control",output[sensitivity],"Base") -> 15123.57629 | K228: =SUMIFS(INDEX(output[#Data],0,MATCH("ishp_Program",output[#Headers],0)),output[equipment_type],$C$226,output[year],2021,output[facility_type],K$226,output[control_strategy],"ASD Control",output[sensitivity],"Base")-SUMIFS(INDEX(output[#Data],0,MATCH("ishp_Baseline",output[#Headers],0)),output[equipment_type],$C$226,output[year],2021,output[facility_type],K$226,output[control_strategy],"ASD Control",output[sensitivity],"Base") -> 2695.517905 | L228: =SUMIFS(INDEX(output[#Data],0,MATCH("ishp_Program",output[#Headers],0)),output[equipment_type],$C$226,output[year],2021,output[facility_type],L$226,output[control_strategy],"ASD Control",output[sensitivity],"Base")-SUMIFS(INDEX(output[#Data],0,MATCH("ishp_Baseline",output[#Headers],0)),output[equipment_type],$C$226,output[year],2021,output[facility_type],L$226,output[control_strategy],"ASD Control",output[sensitivity],"Base") -> 289.6105343 | M228: =SUMIFS(INDEX(output[#Data],0,MATCH("ishp_Program",output[#Headers],0)),output[equipment_type],$C$226,output[year],2021,output[facility_type],M$226,output[control_strategy],"ASD Control",output[sensitivity],"Base")-SUMIFS(INDEX(output[#Data],0,MATCH("ishp_Baseline",output[#Headers],0)),output[equipment_type],$C$226,output[year],2021,output[facility_type],M$226,output[control_strategy],"ASD Control",output[sensitivity],"Base") -> 102.5964844 | N228: =SUMIFS(INDEX(output[#Data],0,MATCH("ishp_Program",output[#Headers],0)),output[equipment_type],$C$226,output[year],2021,output[facility_type],N$226,output[control_strategy],"ASD Control",output[sensitivity],"Base")-SUMIFS(INDEX(output[#Data],0,MATCH("ishp_Baseline",output[#Headers],0)),output[equipment_type],$C$226,output[year],2021,output[facility_type],N$226,output[control_strategy],"ASD Control",output[sensitivity],"Base") -> 2.544674017 | O228: =SUMIFS(INDEX(output[#Data],0,MATCH("ishp_Program",output[#Headers],0)),output[equipment_type],$C$226,output[year],2021,output[facility_type],O$226,output[control_strategy],"ASD Control",output[sensitivity],"Base")-SUMIFS(INDEX(output[#Data],0,MATCH("ishp_Baseline",output[#Headers],0)),output[equipment_type],$C$226,output[year],2021,output[facility_type],O$226,output[control_strategy],"ASD Control",output[sensitivity],"Base") -> 2125.57425
C231: ="Table for "&H204 -> Table for Figure 14: Total ASD-Controlled Fans Installed Above Baseline, by Facility Type, 2016 - 2021 (In-Service Motors)
C232: Fans | E232: Primary Metal | F232: Wood Products | G232: Paper | H232: Computer - Elec | I232: Chemical | J232: Food | K232: Warehousing | L232: Refinery | M232: Fabricated Metal | N232: Transportation | O232: Misc Manf
C233: Regional Momentum | E233: =SUMIFS(INDEX(output[#Data],0,MATCH("num_motors_Market",output[#Headers],0)),output[equipment_type],$C$232,output[year],2021,output[facility_type],E$232,output[control_strategy],"ASD Control",output[sensitivity],"Base")-SUMIFS(INDEX(output[#Data],0,MATCH("num_motors_Program",output[#Headers],0)),output[equipment_type],$C$232,output[year],2021,output[facility_type],E$232,output[control_strategy],"ASD Control",output[sensitivity],"Base") -> 53.80944133 | F233: =SUMIFS(INDEX(output[#Data],0,MATCH("num_motors_Market",output[#Headers],0)),output[equipment_type],$C$232,output[year],2021,output[facility_type],F$232,output[control_strategy],"ASD Control",output[sensitivity],"Base")-SUMIFS(INDEX(output[#Data],0,MATCH("num_motors_Program",output[#Headers],0)),output[equipment_type],$C$232,output[year],2021,output[facility_type],F$232,output[control_strategy],"ASD Control",output[sensitivity],"Base") -> 126.4977536 | G233: =SUMIFS(INDEX(output[#Data],0,MATCH("num_motors_Market",output[#Headers],0)),output[equipment_type],$C$232,output[year],2021,output[facility_type],G$232,output[control_strategy],"ASD Control",output[sensitivity],"Base")-SUMIFS(INDEX(output[#Data],0,MATCH("num_motors_Program",output[#Headers],0)),output[equipment_type],$C$232,output[year],2021,output[facility_type],G$232,output[control_strategy],"ASD Control",output[sensitivity],"Base") -> 115.71419 | H233: =SUMIFS(INDEX(output[#Data],0,MATCH("num_motors_Market",output[#Headers],0)),output[equipment_type],$C$232,output[year],2021,output[facility_type],H$232,output[control_strategy],"ASD Control",output[sensitivity],"Base")-SUMIFS(INDEX(output[#Data],0,MATCH("num_motors_Program",output[#Headers],0)),output[equipment_type],$C$232,output[year],2021,output[facility_type],H$232,output[control_strategy],"ASD Control",output[sensitivity],"Base") -> 787.671006 | I233: =SUMIFS(INDEX(output[#Data],0,MATCH("num_motors_Market",output[#Headers],0)),output[equipment_type],$C$232,output[year],2021,output[facility_type],I$232,output[control_strategy],"ASD Control",output[sensitivity],"Base")-SUMIFS(INDEX(output[#Data],0,MATCH("num_motors_Program",output[#Headers],0)),output[equipment_type],$C$232,output[year],2021,output[facility_type],I$232,output[control_strategy],"ASD Control",output[sensitivity],"Base") -> 239.3898113 | J233: =SUMIFS(INDEX(output[#Data],0,MATCH("num_motors_Market",output[#Headers],0)),output[equipment_type],$C$232,output[year],2021,output[facility_type],J$232,output[control_strategy],"ASD Control",output[sensitivity],"Base")-SUMIFS(INDEX(output[#Data],0,MATCH("num_motors_Program",output[#Headers],0)),output[equipment_type],$C$232,output[year],2021,output[facility_type],J$232,output[control_strategy],"ASD Control",output[sensitivity],"Base") -> 1441.100672 | K233: =SUMIFS(INDEX(output[#Data],0,MATCH("num_motors_Market",output[#Headers],0)),output[equipment_type],$C$232,output[year],2021,output[facility_type],K$232,output[control_strategy],"ASD Control",output[sensitivity],"Base")-SUMIFS(INDEX(output[#Data],0,MATCH("num_motors_Program",output[#Headers],0)),output[equipment_type],$C$232,output[year],2021,output[facility_type],K$232,output[control_strategy],"ASD Control",output[sensitivity],"Base") -> 999.9994366 | L233: =SUMIFS(INDEX(output[#Data],0,MATCH("num_motors_Market",output[#Headers],0)),output[equipment_type],$C$232,output[year],2021,output[facility_type],L$232,output[control_strategy],"ASD Control",output[sensitivity],"Base")-SUMIFS(INDEX(output[#Data],0,MATCH("num_motors_Program",output[#Headers],0)),output[equipment_type],$C$232,output[year],2021,output[facility_type],L$232,output[control_strategy],"ASD Control",output[sensitivity],"Base") -> 80.32210368 | M233: =SUMIFS(INDEX(output[#Data],0,MATCH("num_motors_Market",output[#Headers],0)),output[equipment_type],$C$232,output[year],2021,output[facility_type],M$232,output[control_strategy],"ASD Control",output[sensitivity],"Base")-SUMIFS(INDEX(output[#Data],0,MATCH("num_motors_Program",output[#Headers],0)),output[equipment_type],$C$232,output[year],2021,output[facility_type],M$232,output[control_strategy],"ASD Control",output[sensitivity],"Base") -> 71.41984968 | N233: =SUMIFS(INDEX(output[#Data],0,MATCH("num_motors_Market",output[#Headers],0)),output[equipment_type],$C$232,output[year],2021,output[facility_type],N$232,output[control_strategy],"ASD Control",output[sensitivity],"Base")-SUMIFS(INDEX(output[#Data],0,MATCH("num_motors_Program",output[#Headers],0)),output[equipment_type],$C$232,output[year],2021,output[facility_type],N$232,output[control_strategy],"ASD Control",output[sensitivity],"Base") -> 104.0482438 | O233: =SUMIFS(INDEX(output[#Data],0,MATCH("num_motors_Market",output[#Headers],0)),output[equipment_type],$C$232,output[year],2021,output[facility_type],O$232,output[control_strategy],"ASD Control",output[sensitivity],"Base")-SUMIFS(INDEX(output[#Data],0,MATCH("num_motors_Program",output[#Headers],0)),output[equipment_type],$C$232,output[year],2021,output[facility_type],O$232,output[control_strategy],"ASD Control",output[sensitivity],"Base") -> 620.1985964
C234: Regional Program Incented | E234: =SUMIFS(INDEX(output[#Data],0,MATCH("num_motors_Program",output[#Headers],0)),output[equipment_type],$C$232,output[year],2021,output[facility_type],E$232,output[control_strategy],"ASD Control",output[sensitivity],"Base")-SUMIFS(INDEX(output[#Data],0,MATCH("num_motors_Baseline",output[#Headers],0)),output[equipment_type],$C$232,output[year],2021,output[facility_type],E$232,output[control_strategy],"ASD Control",output[sensitivity],"Base") -> 0 | F234: =SUMIFS(INDEX(output[#Data],0,MATCH("num_motors_Program",output[#Headers],0)),output[equipment_type],$C$232,output[year],2021,output[facility_type],F$232,output[control_strategy],"ASD Control",output[sensitivity],"Base")-SUMIFS(INDEX(output[#Data],0,MATCH("num_motors_Baseline",output[#Headers],0)),output[equipment_type],$C$232,output[year],2021,output[facility_type],F$232,output[control_strategy],"ASD Control",output[sensitivity],"Base") -> 132.7810672 | G234: =SUMIFS(INDEX(output[#Data],0,MATCH("num_motors_Program",output[#Headers],0)),output[equipment_type],$C$232,output[year],2021,output[facility_type],G$232,output[control_strategy],"ASD Control",output[sensitivity],"Base")-SUMIFS(INDEX(output[#Data],0,MATCH("num_motors_Baseline",output[#Headers],0)),output[equipment_type],$C$232,output[year],2021,output[facility_type],G$232,output[control_strategy],"ASD Control",output[sensitivity],"Base") -> 4.089269142 | H234: =SUMIFS(INDEX(output[#Data],0,MATCH("num_motors_Program",output[#Headers],0)),output[equipment_type],$C$232,output[year],2021,output[facility_type],H$232,output[control_strategy],"ASD Control",output[sensitivity],"Base")-SUMIFS(INDEX(output[#Data],0,MATCH("num_motors_Baseline",output[#Headers],0)),output[equipment_type],$C$232,output[year],2021,output[facility_type],H$232,output[control_strategy],"ASD Control",output[sensitivity],"Base") -> 7.43317364 | I234: =SUMIFS(INDEX(output[#Data],0,MATCH("num_motors_Program",output[#Headers],0)),output[equipment_type],$C$232,output[year],2021,output[facility_type],I$232,output[control_strategy],"ASD Control",output[sensitivity],"Base")-SUMIFS(INDEX(output[#Data],0,MATCH("num_motors_Baseline",output[#Headers],0)),output[equipment_type],$C$232,output[year],2021,output[facility_type],I$232,output[control_strategy],"ASD Control",output[sensitivity],"Base") -> 72.18522498 | J234: =SUMIFS(INDEX(output[#Data],0,MATCH("num_motors_Program",output[#Headers],0)),output[equipment_type],$C$232,output[year],2021,output[facility_type],J$232,output[control_strategy],"ASD Control",output[sensitivity],"Base")-SUMIFS(INDEX(output[#Data],0,MATCH("num_motors_Baseline",output[#Headers],0)),output[equipment_type],$C$232,output[year],2021,output[facility_type],J$232,output[control_strategy],"ASD Control",output[sensitivity],"Base") -> 254.2269006 | K234: =SUMIFS(INDEX(output[#Data],0,MATCH("num_motors_Program",output[#Headers],0)),output[equipment_type],$C$232,output[year],2021,output[facility_type],K$232,output[control_strategy],"ASD Control",output[sensitivity],"Base")-SUMIFS(INDEX(output[#Data],0,MATCH("num_motors_Baseline",output[#Headers],0)),output[equipment_type],$C$232,output[year],2021,output[facility_type],K$232,output[control_strategy],"ASD Control",output[sensitivity],"Base") -> 200.593443 | L234: =SUMIFS(INDEX(output[#Data],0,MATCH("num_motors_Program",output[#Headers],0)),output[equipment_type],$C$232,output[year],2021,output[facility_type],L$232,output[control_strategy],"ASD Control",output[sensitivity],"Base")-SUMIFS(INDEX(output[#Data],0,MATCH("num_motors_Baseline",output[#Headers],0)),output[equipment_type],$C$232,output[year],2021,output[facility_type],L$232,output[control_strategy],"ASD Control",output[sensitivity],"Base") -> 4.868345098 | M234: =SUMIFS(INDEX(output[#Data],0,MATCH("num_motors_Program",output[#Headers],0)),output[equipment_type],$C$232,output[year],2021,output[facility_type],M$232,output[control_strategy],"ASD Control",output[sensitivity],"Base")-SUMIFS(INDEX(output[#Data],0,MATCH("num_motors_Baseline",output[#Headers],0)),output[equipment_type],$C$232,output[year],2021,output[facility_type],M$232,output[control_strategy],"ASD Control",output[sensitivity],"Base") -> 1.889931384 | N234: =SUMIFS(INDEX(output[#Data],0,MATCH("num_motors_Program",output[#Headers],0)),output[equipment_type],$C$232,output[year],2021,output[facility_type],N$232,output[control_strategy],"ASD Control",output[sensitivity],"Base")-SUMIFS(INDEX(output[#Data],0,MATCH("num_motors_Baseline",output[#Headers],0)),output[equipment_type],$C$232,output[year],2021,output[facility_type],N$232,output[control_strategy],"ASD Control",output[sensitivity],"Base") -> 0.04277590009 | O234: =SUMIFS(INDEX(output[#Data],0,MATCH("num_motors_Program",output[#Headers],0)),output[equipment_type],$C$232,output[year],2021,output[facility_type],O$232,output[control_strategy],"ASD Control",output[sensitivity],"Base")-SUMIFS(INDEX(output[#Data],0,MATCH("num_motors_Baseline",output[#Headers],0)),output[equipment_type],$C$232,output[year],2021,output[facility_type],O$232,output[control_strategy],"ASD Control",output[sensitivity],"Base") -> 51.0657755
C237: Figure 15: Installed Stock of Pumps, by Year (Installed Motor HP) | H237: Figure 16: Installed Stock of Pumps, by Year (Installed Motors)
C255: ="Table for "&C237 -> Table for Figure 15: Installed Stock of Pumps, by Year (Installed Motor HP)
C256: Pumps | D256: Year
D257: 2015 | E257: 2016 | F257: 2017 | G257: 2018 | H257: 2019 | I257: 2020 | J257: 2021
C258: In-Service Motor HP | D258: =SUMIFS(INDEX(output[#Data],0,MATCH("ishp_Market",output[#Headers],0)),output[equipment_type],$C$256,output[year],D$257,output[sensitivity],"Base") -> 1120687.79 | E258: =SUMIFS(INDEX(output[#Data],0,MATCH("ishp_Market",output[#Headers],0)),output[equipment_type],$C$256,output[year],E$257,output[sensitivity],"Base") -> 1174402.207 | F258: =SUMIFS(INDEX(output[#Data],0,MATCH("ishp_Market",output[#Headers],0)),output[equipment_type],$C$256,output[year],F$257,output[sensitivity],"Base") -> 1182255.352 | G258: =SUMIFS(INDEX(output[#Data],0,MATCH("ishp_Market",output[#Headers],0)),output[equipment_type],$C$256,output[year],G$257,output[sensitivity],"Base") -> 1230777.822 | H258: =SUMIFS(INDEX(output[#Data],0,MATCH("ishp_Market",output[#Headers],0)),output[equipment_type],$C$256,output[year],H$257,output[sensitivity],"Base") -> 1234071.472 | I258: =SUMIFS(INDEX(output[#Data],0,MATCH("ishp_Market",output[#Headers],0)),output[equipment_type],$C$256,output[year],I$257,output[sensitivity],"Base") -> 1201163.374 | J258: =SUMIFS(INDEX(output[#Data],0,MATCH("ishp_Market",output[#Headers],0)),output[equipment_type],$C$256,output[year],J$257,output[sensitivity],"Base") -> 1198669.937
C259: Out-of-Service Motor HP | D259: =SUMIFS(INDEX(output[#Data],0,MATCH("ooshp_Market",output[#Headers],0)),output[equipment_type],$C$256,output[year],D$257,output[sensitivity],"Base") -> 296838.6095 | E259: =SUMIFS(INDEX(output[#Data],0,MATCH("ooshp_Market",output[#Headers],0)),output[equipment_type],$C$256,output[year],E$257,output[sensitivity],"Base") -> 307871.5291 | F259: =SUMIFS(INDEX(output[#Data],0,MATCH("ooshp_Market",output[#Headers],0)),output[equipment_type],$C$256,output[year],F$257,output[sensitivity],"Base") -> 315684.2902 | G259: =SUMIFS(INDEX(output[#Data],0,MATCH("ooshp_Market",output[#Headers],0)),output[equipment_type],$C$256,output[year],G$257,output[sensitivity],"Base") -> 297743.0006 | H259: =SUMIFS(INDEX(output[#Data],0,MATCH("ooshp_Market",output[#Headers],0)),output[equipment_type],$C$256,output[year],H$257,output[sensitivity],"Base") -> 304213.9788 | I259: =SUMIFS(INDEX(output[#Data],0,MATCH("ooshp_Market",output[#Headers],0)),output[equipment_type],$C$256,output[year],I$257,output[sensitivity],"Base") -> 339670.5953 | J259: =SUMIFS(INDEX(output[#Data],0,MATCH("ooshp_Market",output[#Headers],0)),output[equipment_type],$C$256,output[year],J$257,output[sensitivity],"Base") -> 349418.3117
C260: Total Motor HP | D260: =SUM(D258:D259) -> 1417526.4 | E260: =SUM(E258:E259) -> 1482273.736 | F260: 1497939.642 | G260: 1528520.823 | H260: 1538285.451 | I260: 1540833.969 | J260: 1548088.249
C262: ="Table for "&H237 -> Table for Figure 16: Installed Stock of Pumps, by Year (Installed Motors)
C263: Pumps | D263: Year
D264: 2015 | E264: 2016 | F264: 2017 | G264: 2018 | H264: 2019 | I264: 2020 | J264: 2021
C265: Number of In-Service Motors | D265: =SUMIFS(INDEX(output[#Data],0,MATCH("num_motors_Market",output[#Headers],0)),output[equipment_type],$C$263,output[year],D$264,output[sensitivity],"Base") -> 36778.10975 | E265: =SUMIFS(INDEX(output[#Data],0,MATCH("num_motors_Market",output[#Headers],0)),output[equipment_type],$C$263,output[year],E$264,output[sensitivity],"Base") -> 36660.20605 | F265: =SUMIFS(INDEX(output[#Data],0,MATCH("num_motors_Market",output[#Headers],0)),output[equipment_type],$C$263,output[year],F$264,output[sensitivity],"Base") -> 35791.95073 | G265: =SUMIFS(INDEX(output[#Data],0,MATCH("num_motors_Market",output[#Headers],0)),output[equipment_type],$C$263,output[year],G$264,output[sensitivity],"Base") -> 36396.74024 | H265: =SUMIFS(INDEX(output[#Data],0,MATCH("num_motors_Market",output[#Headers],0)),output[equipment_type],$C$263,output[year],H$264,output[sensitivity],"Base") -> 35713.04054 | I265: =SUMIFS(INDEX(output[#Data],0,MATCH("num_motors_Market",output[#Headers],0)),output[equipment_type],$C$263,output[year],I$264,output[sensitivity],"Base") -> 34092.18135 | J265: =SUMIFS(INDEX(output[#Data],0,MATCH("num_motors_Market",output[#Headers],0)),output[equipment_type],$C$263,output[year],J$264,output[sensitivity],"Base") -> 32464.16798
C266: Number of Out-of-Service Motors | D266: =SUMIFS(INDEX(output[#Data],0,MATCH("num_motors_ooshp_Market",output[#Headers],0)),output[equipment_type],$C$263,output[year],D$264,output[sensitivity],"Base") -> 11173.51816 | E266: =SUMIFS(INDEX(output[#Data],0,MATCH("num_motors_ooshp_Market",output[#Headers],0)),output[equipment_type],$C$263,output[year],E$264,output[sensitivity],"Base") -> 11440.20684 | F266: =SUMIFS(INDEX(output[#Data],0,MATCH("num_motors_ooshp_Market",output[#Headers],0)),output[equipment_type],$C$263,output[year],F$264,output[sensitivity],"Base") -> 11618.53744 | G266: =SUMIFS(INDEX(output[#Data],0,MATCH("num_motors_ooshp_Market",output[#Headers],0)),output[equipment_type],$C$263,output[year],G$264,output[sensitivity],"Base") -> 10925.68185 | H266: =SUMIFS(INDEX(output[#Data],0,MATCH("num_motors_ooshp_Market",output[#Headers],0)),output[equipment_type],$C$263,output[year],H$264,output[sensitivity],"Base") -> 10861.07421 | I266: =SUMIFS(INDEX(output[#Data],0,MATCH("num_motors_ooshp_Market",output[#Headers],0)),output[equipment_type],$C$263,output[year],I$264,output[sensitivity],"Base") -> 11438.20066 | J266: =SUMIFS(INDEX(output[#Data],0,MATCH("num_motors_ooshp_Market",output[#Headers],0)),output[equipment_type],$C$263,output[year],J$264,output[sensitivity],"Base") -> 12229.52877
C267: Total Number of Motors | D267: =SUM(D265:D266) -> 47951.62791 | E267: =SUM(E265:E266) -> 48100.41289 | F267: 47410.48818 | G267: 47322.42209 | H267: 46574.11475 | I267: 45530.38201 | J267: 44693.69675
C269: Figure 17: In-Service Stock of Pumps, by Facility Type, 2020 (In-Service Motor HP) | H269: Figure 18: In-Service Stock of Pumps, by Facility Type, 2020 (In-Service Motors)
C290: ="Table for "&C269 -> Table for Figure 17: In-Service Stock of Pumps, by Facility Type, 2020 (In-Service Motor HP)
C291: Pumps | D291: Primary Metal | E291: Wood Products | F291: Paper | G291: Computer - Elec | H291: Chemical | I291: Food | J291: Warehousing | K291: Refinery | L291: Fabricated Metal | M291: Transportation | N291: Misc Manf
C292: In-Service Motor HP | D292: =SUMIFS(INDEX(output[#Data],0,MATCH("ishp_Market",output[#Headers],0)),output[equipment_type],$C$291,output[year],2020,output[facility_type],D$291,output[sensitivity],"Base") -> 140395.6941 | E292: =SUMIFS(INDEX(output[#Data],0,MATCH("ishp_Market",output[#Headers],0)),output[equipment_type],$C$291,output[year],2020,output[facility_type],E$291,output[sensitivity],"Base") -> 61158.53445 | F292: =SUMIFS(INDEX(output[#Data],0,MATCH("ishp_Market",output[#Headers],0)),output[equipment_type],$C$291,output[year],2020,output[facility_type],F$291,output[sensitivity],"Base") -> 232176.3047 | G292: =SUMIFS(INDEX(output[#Data],0,MATCH("ishp_Market",output[#Headers],0)),output[equipment_type],$C$291,output[year],2020,output[facility_type],G$291,output[sensitivity],"Base") -> 72145.61097 | H292: =SUMIFS(INDEX(output[#Data],0,MATCH("ishp_Market",output[#Headers],0)),output[equipment_type],$C$291,output[year],2020,output[facility_type],H$291,output[sensitivity],"Base") -> 74319.21918 | I292: =SUMIFS(INDEX(output[#Data],0,MATCH("ishp_Market",output[#Headers],0)),output[equipment_type],$C$291,output[year],2020,output[facility_type],I$291,output[sensitivity],"Base") -> 179766.507 | J292: =SUMIFS(INDEX(output[#Data],0,MATCH("ishp_Market",output[#Headers],0)),output[equipment_type],$C$291,output[year],2020,output[facility_type],J$291,output[sensitivity],"Base") -> 6162.417745 | K292: =SUMIFS(INDEX(output[#Data],0,MATCH("ishp_Market",output[#Headers],0)),output[equipment_type],$C$291,output[year],2020,output[facility_type],K$291,output[sensitivity],"Base") -> 270543.5769 | L292: =SUMIFS(INDEX(output[#Data],0,MATCH("ishp_Market",output[#Headers],0)),output[equipment_type],$C$291,output[year],2020,output[facility_type],L$291,output[sensitivity],"Base") -> 8023.621809 | M292: =SUMIFS(INDEX(output[#Data],0,MATCH("ishp_Market",output[#Headers],0)),output[equipment_type],$C$291,output[year],2020,output[facility_type],M$291,output[sensitivity],"Base") -> 28431.82743 | N292: =SUMIFS(INDEX(output[#Data],0,MATCH("ishp_Market",output[#Headers],0)),output[equipment_type],$C$291,output[year],2020,output[facility_type],N$291,output[sensitivity],"Base") -> 128040.0595
C294: ="Table for "&H269 -> Table for Figure 18: In-Service Stock of Pumps, by Facility Type, 2020 (In-Service Motors)
C295: Pumps | D295: Primary Metal | E295: Wood Products | F295: Paper | G295: Computer - Elec | H295: Chemical | I295: Food | J295: Warehousing | K295: Refinery | L295: Fabricated Metal | M295: Transportation | N295: Misc Manf
C296: Number of In-Service Motors | D296: =SUMIFS(INDEX(output[#Data],0,MATCH("num_motors_Market",output[#Headers],0)),output[equipment_type],$C$295,output[year],2020,output[facility_type],D$295,output[sensitivity],"Base") -> 2916.08354 | E296: =SUMIFS(INDEX(output[#Data],0,MATCH("num_motors_Market",output[#Headers],0)),output[equipment_type],$C$295,output[year],2020,output[facility_type],E$295,output[sensitivity],"Base") -> 3111.958379 | F296: =SUMIFS(INDEX(output[#Data],0,MATCH("num_motors_Market",output[#Headers],0)),output[equipment_type],$C$295,output[year],2020,output[facility_type],F$295,output[sensitivity],"Base") -> 4086.932681 | G296: =SUMIFS(INDEX(output[#Data],0,MATCH("num_motors_Market",output[#Headers],0)),output[equipment_type],$C$295,output[year],2020,output[facility_type],G$295,output[sensitivity],"Base") -> 2875.471567 | H296: =SUMIFS(INDEX(output[#Data],0,MATCH("num_motors_Market",output[#Headers],0)),output[equipment_type],$C$295,output[year],2020,output[facility_type],H$295,output[sensitivity],"Base") -> 2339.017152 | I296: =SUMIFS(INDEX(output[#Data],0,MATCH("num_motors_Market",output[#Headers],0)),output[equipment_type],$C$295,output[year],2020,output[facility_type],I$295,output[sensitivity],"Base") -> 5120.431123 | J296: =SUMIFS(INDEX(output[#Data],0,MATCH("num_motors_Market",output[#Headers],0)),output[equipment_type],$C$295,output[year],2020,output[facility_type],J$295,output[sensitivity],"Base") -> 838.6436636 | K296: =SUMIFS(INDEX(output[#Data],0,MATCH("num_motors_Market",output[#Headers],0)),output[equipment_type],$C$295,output[year],2020,output[facility_type],K$295,output[sensitivity],"Base") -> 4020.358802 | L296: =SUMIFS(INDEX(output[#Data],0,MATCH("num_motors_Market",output[#Headers],0)),output[equipment_type],$C$295,output[year],2020,output[facility_type],L$295,output[sensitivity],"Base") -> 1014.827299 | M296: =SUMIFS(INDEX(output[#Data],0,MATCH("num_motors_Market",output[#Headers],0)),output[equipment_type],$C$295,output[year],2020,output[facility_type],M$295,output[sensitivity],"Base") -> 995.415204 | N296: =SUMIFS(INDEX(output[#Data],0,MATCH("num_motors_Market",output[#Headers],0)),output[equipment_type],$C$295,output[year],2020,output[facility_type],N$295,output[sensitivity],"Base") -> 6773.041941
C298: Table B: Average Motor Horsepower of In-Service Pumps, by Facility Type in 2020 (Motor HP)
C299: Pumps | D299: Primary Metal | E299: Wood Products | F299: Paper | G299: Computer - Elec | H299: Chemical | I299: Food | J299: Warehousing | K299: Refinery | L299: Fabricated Metal | M299: Transportation | N299: Misc Manf
C300: Average In-Service Motor HP | D300: =D292/D296 -> 48.14529218 | E300: =E292/E296 -> 19.6527482 | F300: 56.80942721 | G300: 25.09001021 | H300: 31.77369569 | I300: 35.10768971 | J300: 7.348076439 | K300: 67.29339103 | L300: 7.906391383 | M300: 28.56278196 | N300: 18.90436536
C303: Figure 19: In-Service Pumps, by Control Strategy and Year (In-Service Motor HP) | H303: Figure 20: In-Service Pumps, by Control Strategy and Year (In-Service Motors)
C321: ="Table for "&C303 -> Table for Figure 19: In-Service Pumps, by Control Strategy and Year (In-Service Motor HP)
C322: Pumps | D322: Year
D323: 2015 | E323: 2016 | F323: 2017 | G323: 2018 | H323: 2019 | I323: 2020 | J323: 2021
C324: In-Service Non ASD-Controlled Motor HP | D324: =SUMIFS(INDEX(output[#Data],0,MATCH("ishp_Market",output[#Headers],0)),output[equipment_type],$C$322,output[year],D$323,output[control_strategy], "Non ASD Control",output[sensitivity],"Base") -> 674109.1857 | E324: =SUMIFS(INDEX(output[#Data],0,MATCH("ishp_Market",output[#Headers],0)),output[equipment_type],$C$322,output[year],E$323,output[control_strategy], "Non ASD Control",output[sensitivity],"Base") -> 676219.5882 | F324: =SUMIFS(INDEX(output[#Data],0,MATCH("ishp_Market",output[#Headers],0)),output[equipment_type],$C$322,output[year],F$323,output[control_strategy], "Non ASD Control",output[sensitivity],"Base") -> 645025.8978 | G324: =SUMIFS(INDEX(output[#Data],0,MATCH("ishp_Market",output[#Headers],0)),output[equipment_type],$C$322,output[year],G$323,output[control_strategy], "Non ASD Control",output[sensitivity],"Base") -> 636401.8842 | H324: =SUMIFS(INDEX(output[#Data],0,MATCH("ishp_Market",output[#Headers],0)),output[equipment_type],$C$322,output[year],H$323,output[control_strategy], "Non ASD Control",output[sensitivity],"Base") -> 597388.3289 | I324: =SUMIFS(INDEX(output[#Data],0,MATCH("ishp_Market",output[#Headers],0)),output[equipment_type],$C$322,output[year],I$323,output[control_strategy], "Non ASD Control",output[sensitivity],"Base") -> 537236.8802 | J324: =SUMIFS(INDEX(output[#Data],0,MATCH("ishp_Market",output[#Headers],0)),output[equipment_type],$C$322,output[year],J$323,output[control_strategy], "Non ASD Control",output[sensitivity],"Base") -> 513346.0618
C325: In-Service ASD-Controlled Motor HP | D325: =SUMIFS(INDEX(output[#Data],0,MATCH("ishp_Market",output[#Headers],0)),output[equipment_type],$C$322,output[year],D$323,output[control_strategy], "ASD Control",output[sensitivity],"Base") -> 446578.6043 | E325: =SUMIFS(INDEX(output[#Data],0,MATCH("ishp_Market",output[#Headers],0)),output[equipment_type],$C$322,output[year],E$323,output[control_strategy], "ASD Control",output[sensitivity],"Base") -> 498182.6187 | F325: =SUMIFS(INDEX(output[#Data],0,MATCH("ishp_Market",output[#Headers],0)),output[equipment_type],$C$322,output[year],F$323,output[control_strategy], "ASD Control",output[sensitivity],"Base") -> 537229.454 | G325: =SUMIFS(INDEX(output[#Data],0,MATCH("ishp_Market",output[#Headers],0)),output[equipment_type],$C$322,output[year],G$323,output[control_strategy], "ASD Control",output[sensitivity],"Base") -> 594375.9382 | H325: =SUMIFS(INDEX(output[#Data],0,MATCH("ishp_Market",output[#Headers],0)),output[equipment_type],$C$322,output[year],H$323,output[control_strategy], "ASD Control",output[sensitivity],"Base") -> 636683.1428 | I325: =SUMIFS(INDEX(output[#Data],0,MATCH("ishp_Market",output[#Headers],0)),output[equipment_type],$C$322,output[year],I$323,output[control_strategy], "ASD Control",output[sensitivity],"Base") -> 663926.4936 | J325: =SUMIFS(INDEX(output[#Data],0,MATCH("ishp_Market",output[#Headers],0)),output[equipment_type],$C$322,output[year],J$323,output[control_strategy], "ASD Control",output[sensitivity],"Base") -> 685323.8754
C326: ASD Saturation (% of Motor HP) | D326: =D325/SUM(D324:D325) -> 0.3984861871 | E326: =E325/SUM(E324:E325) -> 0.424201024 | F326: 0.4544106763 | G326: 0.4829270786 | H326: 0.5159208015 | I326: 0.5527362123 | J326: 0.5717369345
C328: ="Table for "&H303 -> Table for Figure 20: In-Service Pumps, by Control Strategy and Year (In-Service Motors)
C329: Pumps | D329: Year
D330: 2015 | E330: 2016 | F330: 2017 | G330: 2018 | H330: 2019 | I330: 2020 | J330: 2021
C331: Number of In-Service Non ASD-Controlled Motors | D331: =SUMIFS(INDEX(output[#Data],0,MATCH("num_motors_Market",output[#Headers],0)),output[equipment_type],$C$329,output[year],D$330,output[control_strategy], "Non ASD Control",output[sensitivity],"Base") -> 26432.52244 | E331: =SUMIFS(INDEX(output[#Data],0,MATCH("num_motors_Market",output[#Headers],0)),output[equipment_type],$C$329,output[year],E$330,output[control_strategy], "Non ASD Control",output[sensitivity],"Base") -> 25153.72389 | F331: =SUMIFS(INDEX(output[#Data],0,MATCH("num_motors_Market",output[#Headers],0)),output[equipment_type],$C$329,output[year],F$330,output[control_strategy], "Non ASD Control",output[sensitivity],"Base") -> 23356.4634 | G331: =SUMIFS(INDEX(output[#Data],0,MATCH("num_motors_Market",output[#Headers],0)),output[equipment_type],$C$329,output[year],G$330,output[control_strategy], "Non ASD Control",output[sensitivity],"Base") -> 22609.53006 | H331: =SUMIFS(INDEX(output[#Data],0,MATCH("num_motors_Market",output[#Headers],0)),output[equipment_type],$C$329,output[year],H$330,output[control_strategy], "Non ASD Control",output[sensitivity],"Base") -> 20763.73887 | I331: =SUMIFS(INDEX(output[#Data],0,MATCH("num_motors_Market",output[#Headers],0)),output[equipment_type],$C$329,output[year],I$330,output[control_strategy], "Non ASD Control",output[sensitivity],"Base") -> 18403.88688 | J331: =SUMIFS(INDEX(output[#Data],0,MATCH("num_motors_Market",output[#Headers],0)),output[equipment_type],$C$329,output[year],J$330,output[control_strategy], "Non ASD Control",output[sensitivity],"Base") -> 16391.06432
C332: Number of In-Service ASD-Controlled Motors | D332: =SUMIFS(INDEX(output[#Data],0,MATCH("num_motors_Market",output[#Headers],0)),output[equipment_type],$C$329,output[year],D$330,output[control_strategy], "ASD Control",output[sensitivity],"Base") -> 10345.58731 | E332: =SUMIFS(INDEX(output[#Data],0,MATCH("num_motors_Market",output[#Headers],0)),output[equipment_type],$C$329,output[year],E$330,output[control_strategy], "ASD Control",output[sensitivity],"Base") -> 11506.48216 | F332: =SUMIFS(INDEX(output[#Data],0,MATCH("num_motors_Market",output[#Headers],0)),output[equipment_type],$C$329,output[year],F$330,output[control_strategy], "ASD Control",output[sensitivity],"Base") -> 12435.48733 | G332: =SUMIFS(INDEX(output[#Data],0,MATCH("num_motors_Market",output[#Headers],0)),output[equipment_type],$C$329,output[year],G$330,output[control_strategy], "ASD Control",output[sensitivity],"Base") -> 13787.21017 | H332: =SUMIFS(INDEX(output[#Data],0,MATCH("num_motors_Market",output[#Headers],0)),output[equipment_type],$C$329,output[year],H$330,output[control_strategy], "ASD Control",output[sensitivity],"Base") -> 14949.30167 | I332: =SUMIFS(INDEX(output[#Data],0,MATCH("num_motors_Market",output[#Headers],0)),output[equipment_type],$C$329,output[year],I$330,output[control_strategy], "ASD Control",output[sensitivity],"Base") -> 15688.29447 | J332: =SUMIFS(INDEX(output[#Data],0,MATCH("num_motors_Market",output[#Headers],0)),output[equipment_type],$C$329,output[year],J$330,output[control_strategy], "ASD Control",output[sensitivity],"Base") -> 16073.10366
C333: ASD Saturation (% of Motors) | D333: =D332/SUM(D331:D332) -> 0.281297418 | E333: =E332/SUM(E331:E332) -> 0.3138684531 | F333: =F332/SUM(F331:F332) -> 0.3474380993 | G333: =G332/SUM(G331:G332) -> 0.3788034336 | H333: =H332/SUM(H331:H332) -> 0.418595041 | I333: =I332/SUM(I331:I332) -> 0.4601727978 | J333: =J332/SUM(J331:J332) -> 0.4951028983
C335: Figure 21: In-Service Pumps, by Facility Type and Control Strategy in 2020 (In-Service Motor HP) | H335: Figure 22: In-Service Pumps, by Facility Type and Control Strategy in 2020 (In-Service Motors)
C355: ="Table for "&C335 -> Table for Figure 21: In-Service Pumps, by Facility Type and Control Strategy in 2020 (In-Service Motor HP)
C356: Pumps | D356: Primary Metal | E356: Wood Products | F356: Paper | G356: Computer - Elec | H356: Chemical | I356: Food | J356: Warehousing | K356: Refinery | L356: Fabricated Metal | M356: Transportation | N356: Misc Manf
C357: In-Service Non ASD-Controlled Motor HP | D357: =SUMIFS(INDEX(output[#Data],0,MATCH("ishp_Market",output[#Headers],0)),output[equipment_type],$C$356,output[year],2020,output[facility_type],D$356,output[control_strategy],"Non ASD Control",output[sensitivity],"Base") -> 55719.42826 | E357: =SUMIFS(INDEX(output[#Data],0,MATCH("ishp_Market",output[#Headers],0)),output[equipment_type],$C$356,output[year],2020,output[facility_type],E$356,output[control_strategy],"Non ASD Control",output[sensitivity],"Base") -> 43024.88868 | F357: =SUMIFS(INDEX(output[#Data],0,MATCH("ishp_Market",output[#Headers],0)),output[equipment_type],$C$356,output[year],2020,output[facility_type],F$356,output[control_strategy],"Non ASD Control",output[sensitivity],"Base") -> 147462.3689 | G357: =SUMIFS(INDEX(output[#Data],0,MATCH("ishp_Market",output[#Headers],0)),output[equipment_type],$C$356,output[year],2020,output[facility_type],G$356,output[control_strategy],"Non ASD Control",output[sensitivity],"Base") -> 15779.09793 | H357: =SUMIFS(INDEX(output[#Data],0,MATCH("ishp_Market",output[#Headers],0)),output[equipment_type],$C$356,output[year],2020,output[facility_type],H$356,output[control_strategy],"Non ASD Control",output[sensitivity],"Base") -> 20338.80015 | I357: =SUMIFS(INDEX(output[#Data],0,MATCH("ishp_Market",output[#Headers],0)),output[equipment_type],$C$356,output[year],2020,output[facility_type],I$356,output[control_strategy],"Non ASD Control",output[sensitivity],"Base") -> 33990.53869 | J357: =SUMIFS(INDEX(output[#Data],0,MATCH("ishp_Market",output[#Headers],0)),output[equipment_type],$C$356,output[year],2020,output[facility_type],J$356,output[control_strategy],"Non ASD Control",output[sensitivity],"Base") -> 2630.670475 | K357: =SUMIFS(INDEX(output[#Data],0,MATCH("ishp_Market",output[#Headers],0)),output[equipment_type],$C$356,output[year],2020,output[facility_type],K$356,output[control_strategy],"Non ASD Control",output[sensitivity],"Base") -> 170379.456 | L357: =SUMIFS(INDEX(output[#Data],0,MATCH("ishp_Market",output[#Headers],0)),output[equipment_type],$C$356,output[year],2020,output[facility_type],L$356,output[control_strategy],"Non ASD Control",output[sensitivity],"Base") -> 2811.988205 | M357: =SUMIFS(INDEX(output[#Data],0,MATCH("ishp_Market",output[#Headers],0)),output[equipment_type],$C$356,output[year],2020,output[facility_type],M$356,output[control_strategy],"Non ASD Control",output[sensitivity],"Base") -> 15635.72837 | N357: =SUMIFS(INDEX(output[#Data],0,MATCH("ishp_Market",output[#Headers],0)),output[equipment_type],$C$356,output[year],2020,output[facility_type],N$356,output[control_strategy],"Non ASD Control",output[sensitivity],"Base") -> 29463.91455
C358: In-Service ASD-Controlled Motor HP | D358: =SUMIFS(INDEX(output[#Data],0,MATCH("ishp_Market",output[#Headers],0)),output[equipment_type],$C$356,output[year],2020,output[facility_type],D$356,output[control_strategy],"ASD Control",output[sensitivity],"Base") -> 84676.26581 | E358: =SUMIFS(INDEX(output[#Data],0,MATCH("ishp_Market",output[#Headers],0)),output[equipment_type],$C$356,output[year],2020,output[facility_type],E$356,output[control_strategy],"ASD Control",output[sensitivity],"Base") -> 18133.64577 | F358: =SUMIFS(INDEX(output[#Data],0,MATCH("ishp_Market",output[#Headers],0)),output[equipment_type],$C$356,output[year],2020,output[facility_type],F$356,output[control_strategy],"ASD Control",output[sensitivity],"Base") -> 84713.93581 | G358: =SUMIFS(INDEX(output[#Data],0,MATCH("ishp_Market",output[#Headers],0)),output[equipment_type],$C$356,output[year],2020,output[facility_type],G$356,output[control_strategy],"ASD Control",output[sensitivity],"Base") -> 56366.51304 | H358: =SUMIFS(INDEX(output[#Data],0,MATCH("ishp_Market",output[#Headers],0)),output[equipment_type],$C$356,output[year],2020,output[facility_type],H$356,output[control_strategy],"ASD Control",output[sensitivity],"Base") -> 53980.41904 | I358: =SUMIFS(INDEX(output[#Data],0,MATCH("ishp_Market",output[#Headers],0)),output[equipment_type],$C$356,output[year],2020,output[facility_type],I$356,output[control_strategy],"ASD Control",output[sensitivity],"Base") -> 145775.9683 | J358: =SUMIFS(INDEX(output[#Data],0,MATCH("ishp_Market",output[#Headers],0)),output[equipment_type],$C$356,output[year],2020,output[facility_type],J$356,output[control_strategy],"ASD Control",output[sensitivity],"Base") -> 3531.74727 | K358: =SUMIFS(INDEX(output[#Data],0,MATCH("ishp_Market",output[#Headers],0)),output[equipment_type],$C$356,output[year],2020,output[facility_type],K$356,output[control_strategy],"ASD Control",output[sensitivity],"Base") -> 100164.1209 | L358: =SUMIFS(INDEX(output[#Data],0,MATCH("ishp_Market",output[#Headers],0)),output[equipment_type],$C$356,output[year],2020,output[facility_type],L$356,output[control_strategy],"ASD Control",output[sensitivity],"Base") -> 5211.633604 | M358: =SUMIFS(INDEX(output[#Data],0,MATCH("ishp_Market",output[#Headers],0)),output[equipment_type],$C$356,output[year],2020,output[facility_type],M$356,output[control_strategy],"ASD Control",output[sensitivity],"Base") -> 12796.09905 | N358: =SUMIFS(INDEX(output[#Data],0,MATCH("ishp_Market",output[#Headers],0)),output[equipment_type],$C$356,output[year],2020,output[facility_type],N$356,output[control_strategy],"ASD Control",output[sensitivity],"Base") -> 98576.14492
C360: ="Table for "&H335 -> Table for Figure 22: In-Service Pumps, by Facility Type and Control Strategy in 2020 (In-Service Motors)
C361: Pumps | D361: Primary Metal | E361: Wood Products | F361: Paper | G361: Computer - Elec | H361: Chemical | I361: Food | J361: Warehousing | K361: Refinery | L361: Fabricated Metal | M361: Transportation | N361: Misc Manf
C362: In-Service Non ASD-Controlled Motors | D362: =SUMIFS(INDEX(output[#Data],0,MATCH("num_motors_Market",output[#Headers],0)),output[equipment_type],$C$361,output[year],2020,output[facility_type],D$361,output[control_strategy],"Non ASD Control",output[sensitivity],"Base") -> 2128.331211 | E362: =SUMIFS(INDEX(output[#Data],0,MATCH("num_motors_Market",output[#Headers],0)),output[equipment_type],$C$361,output[year],2020,output[facility_type],E$361,output[control_strategy],"Non ASD Control",output[sensitivity],"Base") -> 2185.940224 | F362: =SUMIFS(INDEX(output[#Data],0,MATCH("num_motors_Market",output[#Headers],0)),output[equipment_type],$C$361,output[year],2020,output[facility_type],F$361,output[control_strategy],"Non ASD Control",output[sensitivity],"Base") -> 2593.656891 | G362: =SUMIFS(INDEX(output[#Data],0,MATCH("num_motors_Market",output[#Headers],0)),output[equipment_type],$C$361,output[year],2020,output[facility_type],G$361,output[control_strategy],"Non ASD Control",output[sensitivity],"Base") -> 1374.33949 | H362: =SUMIFS(INDEX(output[#Data],0,MATCH("num_motors_Market",output[#Headers],0)),output[equipment_type],$C$361,output[year],2020,output[facility_type],H$361,output[control_strategy],"Non ASD Control",output[sensitivity],"Base") -> 638.8785967 | I362: =SUMIFS(INDEX(output[#Data],0,MATCH("num_motors_Market",output[#Headers],0)),output[equipment_type],$C$361,output[year],2020,output[facility_type],I$361,output[control_strategy],"Non ASD Control",output[sensitivity],"Base") -> 2703.231068 | J362: =SUMIFS(INDEX(output[#Data],0,MATCH("num_motors_Market",output[#Headers],0)),output[equipment_type],$C$361,output[year],2020,output[facility_type],J$361,output[control_strategy],"Non ASD Control",output[sensitivity],"Base") -> 503.9821279 | K362: =SUMIFS(INDEX(output[#Data],0,MATCH("num_motors_Market",output[#Headers],0)),output[equipment_type],$C$361,output[year],2020,output[facility_type],K$361,output[control_strategy],"Non ASD Control",output[sensitivity],"Base") -> 2959.330216 | L362: =SUMIFS(INDEX(output[#Data],0,MATCH("num_motors_Market",output[#Headers],0)),output[equipment_type],$C$361,output[year],2020,output[facility_type],L$361,output[control_strategy],"Non ASD Control",output[sensitivity],"Base") -> 294.2609705 | M362: =SUMIFS(INDEX(output[#Data],0,MATCH("num_motors_Market",output[#Headers],0)),output[equipment_type],$C$361,output[year],2020,output[facility_type],M$361,output[control_strategy],"Non ASD Control",output[sensitivity],"Base") -> 652.6817586 | N362: =SUMIFS(INDEX(output[#Data],0,MATCH("num_motors_Market",output[#Headers],0)),output[equipment_type],$C$361,output[year],2020,output[facility_type],N$361,output[control_strategy],"Non ASD Control",output[sensitivity],"Base") -> 2369.254325
C363: In-Service ASD-Controlled Motors | D363: =SUMIFS(INDEX(output[#Data],0,MATCH("num_motors_Market",output[#Headers],0)),output[equipment_type],$C$361,output[year],2020,output[facility_type],D$361,output[control_strategy],"ASD Control",output[sensitivity],"Base") -> 787.7523296 | E363: =SUMIFS(INDEX(output[#Data],0,MATCH("num_motors_Market",output[#Headers],0)),output[equipment_type],$C$361,output[year],2020,output[facility_type],E$361,output[control_strategy],"ASD Control",output[sensitivity],"Base") -> 926.0181554 | F363: =SUMIFS(INDEX(output[#Data],0,MATCH("num_motors_Market",output[#Headers],0)),output[equipment_type],$C$361,output[year],2020,output[facility_type],F$361,output[control_strategy],"ASD Control",output[sensitivity],"Base") -> 1493.27579 | G363: =SUMIFS(INDEX(output[#Data],0,MATCH("num_motors_Market",output[#Headers],0)),output[equipment_type],$C$361,output[year],2020,output[facility_type],G$361,output[control_strategy],"ASD Control",output[sensitivity],"Base") -> 1501.132078 | H363: =SUMIFS(INDEX(output[#Data],0,MATCH("num_motors_Market",output[#Headers],0)),output[equipment_type],$C$361,output[year],2020,output[facility_type],H$361,output[control_strategy],"ASD Control",output[sensitivity],"Base") -> 1700.138555 | I363: =SUMIFS(INDEX(output[#Data],0,MATCH("num_motors_Market",output[#Headers],0)),output[equipment_type],$C$361,output[year],2020,output[facility_type],I$361,output[control_strategy],"ASD Control",output[sensitivity],"Base") -> 2417.200055 | J363: =SUMIFS(INDEX(output[#Data],0,MATCH("num_motors_Market",output[#Headers],0)),output[equipment_type],$C$361,output[year],2020,output[facility_type],J$361,output[control_strategy],"ASD Control",output[sensitivity],"Base") -> 334.6615357 | K363: =SUMIFS(INDEX(output[#Data],0,MATCH("num_motors_Market",output[#Headers],0)),output[equipment_type],$C$361,output[year],2020,output[facility_type],K$361,output[control_strategy],"ASD Control",output[sensitivity],"Base") -> 1061.028585 | L363: =SUMIFS(INDEX(output[#Data],0,MATCH("num_motors_Market",output[#Headers],0)),output[equipment_type],$C$361,output[year],2020,output[facility_type],L$361,output[control_strategy],"ASD Control",output[sensitivity],"Base") -> 720.5663281 | M363: =SUMIFS(INDEX(output[#Data],0,MATCH("num_motors_Market",output[#Headers],0)),output[equipment_type],$C$361,output[year],2020,output[facility_type],M$361,output[control_strategy],"ASD Control",output[sensitivity],"Base") -> 342.7334454 | N363: =SUMIFS(INDEX(output[#Data],0,MATCH("num_motors_Market",output[#Headers],0)),output[equipment_type],$C$361,output[year],2020,output[facility_type],N$361,output[control_strategy],"ASD Control",output[sensitivity],"Base") -> 4403.787617
C367: Figure 23: ASD-Controlled Pumps, by Year (In-Service Motor HP) | H367: Figure 24: ASD-Controlled Pumps, by Year (In-Service Motors)
C384: ="Table for "&C367 -> Table for Figure 23: ASD-Controlled Pumps, by Year (In-Service Motor HP)
C385: Pumps | D385: Year
C386: Pumps | D386: 2015 | E386: 2016 | F386: 2017 | G386: 2018 | H386: 2019 | I386: 2020 | J386: 2021
C387: Baseline ASD-Equipped Motor HP | D387: =SUMIFS(INDEX(output[#Data],0,MATCH("ishp_baseline",output[#Headers],0)),output[equipment_type],$C$385,output[year],D$386,output[control_strategy],"ASD Control",output[sensitivity],"Base") -> 446578.6043 | E387: =SUMIFS(INDEX(output[#Data],0,MATCH("ishp_baseline",output[#Headers],0)),output[equipment_type],$C$385,output[year],E$386,output[control_strategy],"ASD Control",output[sensitivity],"Base") -> 476117.1985 | F387: =SUMIFS(INDEX(output[#Data],0,MATCH("ishp_baseline",output[#Headers],0)),output[equipment_type],$C$385,output[year],F$386,output[control_strategy],"ASD Control",output[sensitivity],"Base") -> 488786.008 | G387: =SUMIFS(INDEX(output[#Data],0,MATCH("ishp_baseline",output[#Headers],0)),output[equipment_type],$C$385,output[year],G$386,output[control_strategy],"ASD Control",output[sensitivity],"Base") -> 517567.3845 | H387: =SUMIFS(INDEX(output[#Data],0,MATCH("ishp_baseline",output[#Headers],0)),output[equipment_type],$C$385,output[year],H$386,output[control_strategy],"ASD Control",output[sensitivity],"Base") -> 530055.0642 | I387: =SUMIFS(INDEX(output[#Data],0,MATCH("ishp_baseline",output[#Headers],0)),output[equipment_type],$C$385,output[year],I$386,output[control_strategy],"ASD Control",output[sensitivity],"Base") -> 528362.5769 | J387: =SUMIFS(INDEX(output[#Data],0,MATCH("ishp_baseline",output[#Headers],0)),output[equipment_type],$C$385,output[year],J$386,output[control_strategy],"ASD Control",output[sensitivity],"Base") -> 526203.0571
C388: Market ASD-Equipped Motor HP | D388: =SUMIFS(INDEX(output[#Data],0,MATCH("ishp_Market",output[#Headers],0)),output[equipment_type],$C$385,output[year],D$386,output[control_strategy],"ASD Control",output[sensitivity],"Base") -> 446578.6043 | E388: =SUMIFS(INDEX(output[#Data],0,MATCH("ishp_Market",output[#Headers],0)),output[equipment_type],$C$385,output[year],E$386,output[control_strategy],"ASD Control",output[sensitivity],"Base") -> 498182.6187 | F388: =SUMIFS(INDEX(output[#Data],0,MATCH("ishp_Market",output[#Headers],0)),output[equipment_type],$C$385,output[year],F$386,output[control_strategy],"ASD Control",output[sensitivity],"Base") -> 537229.454 | G388: =SUMIFS(INDEX(output[#Data],0,MATCH("ishp_Market",output[#Headers],0)),output[equipment_type],$C$385,output[year],G$386,output[control_strategy],"ASD Control",output[sensitivity],"Base") -> 594375.9382 | H388: =SUMIFS(INDEX(output[#Data],0,MATCH("ishp_Market",output[#Headers],0)),output[equipment_type],$C$385,output[year],H$386,output[control_strategy],"ASD Control",output[sensitivity],"Base") -> 636683.1428 | I388: =SUMIFS(INDEX(output[#Data],0,MATCH("ishp_Market",output[#Headers],0)),output[equipment_type],$C$385,output[year],I$386,output[control_strategy],"ASD Control",output[sensitivity],"Base") -> 663926.4936 | J388: =SUMIFS(INDEX(output[#Data],0,MATCH("ishp_Market",output[#Headers],0)),output[equipment_type],$C$385,output[year],J$386,output[control_strategy],"ASD Control",output[sensitivity],"Base") -> 685323.8754
C390: ="Table for "&H367 -> Table for Figure 24: ASD-Controlled Pumps, by Year (In-Service Motors)
C391: Pumps | D391: Year
C392: Pumps | D392: 2015 | E392: 2016 | F392: 2017 | G392: 2018 | H392: 2019 | I392: 2020 | J392: 2021
C393: Baseline ASD-Equipped Motors | D393: =SUMIFS(INDEX(output[#Data],0,MATCH("num_motors_Baseline",output[#Headers],0)),output[equipment_type],$C$385,output[year],D$392,output[control_strategy],"ASD Control",output[sensitivity],"Base") -> 10345.58731 | E393: =SUMIFS(INDEX(output[#Data],0,MATCH("num_motors_Baseline",output[#Headers],0)),output[equipment_type],$C$385,output[year],E$392,output[control_strategy],"ASD Control",output[sensitivity],"Base") -> 10706.73435 | F393: =SUMIFS(INDEX(output[#Data],0,MATCH("num_motors_Baseline",output[#Headers],0)),output[equipment_type],$C$385,output[year],F$392,output[control_strategy],"ASD Control",output[sensitivity],"Base") -> 10731.18946 | G393: =SUMIFS(INDEX(output[#Data],0,MATCH("num_motors_Baseline",output[#Headers],0)),output[equipment_type],$C$385,output[year],G$392,output[control_strategy],"ASD Control",output[sensitivity],"Base") -> 11098.18268 | H393: =SUMIFS(INDEX(output[#Data],0,MATCH("num_motors_Baseline",output[#Headers],0)),output[equipment_type],$C$385,output[year],H$392,output[control_strategy],"ASD Control",output[sensitivity],"Base") -> 11219.56555 | I393: =SUMIFS(INDEX(output[#Data],0,MATCH("num_motors_Baseline",output[#Headers],0)),output[equipment_type],$C$385,output[year],I$392,output[control_strategy],"ASD Control",output[sensitivity],"Base") -> 11012.81727 | J393: =SUMIFS(INDEX(output[#Data],0,MATCH("num_motors_Baseline",output[#Headers],0)),output[equipment_type],$C$385,output[year],J$392,output[control_strategy],"ASD Control",output[sensitivity],"Base") -> 10606.29068
C394: Market ASD-Equipped Motors | D394: =SUMIFS(INDEX(output[#Data],0,MATCH("num_motors_Market",output[#Headers],0)),output[equipment_type],$C$385,output[year],D$392,output[control_strategy],"ASD Control",output[sensitivity],"Base") -> 10345.58731 | E394: =SUMIFS(INDEX(output[#Data],0,MATCH("num_motors_Market",output[#Headers],0)),output[equipment_type],$C$385,output[year],E$392,output[control_strategy],"ASD Control",output[sensitivity],"Base") -> 11506.48216 | F394: =SUMIFS(INDEX(output[#Data],0,MATCH("num_motors_Market",output[#Headers],0)),output[equipment_type],$C$385,output[year],F$392,output[control_strategy],"ASD Control",output[sensitivity],"Base") -> 12435.48733 | G394: =SUMIFS(INDEX(output[#Data],0,MATCH("num_motors_Market",output[#Headers],0)),output[equipment_type],$C$385,output[year],G$392,output[control_strategy],"ASD Control",output[sensitivity],"Base") -> 13787.21017 | H394: =SUMIFS(INDEX(output[#Data],0,MATCH("num_motors_Market",output[#Headers],0)),output[equipment_type],$C$385,output[year],H$392,output[control_strategy],"ASD Control",output[sensitivity],"Base") -> 14949.30167 | I394: =SUMIFS(INDEX(output[#Data],0,MATCH("num_motors_Market",output[#Headers],0)),output[equipment_type],$C$385,output[year],I$392,output[control_strategy],"ASD Control",output[sensitivity],"Base") -> 15688.29447 | J394: =SUMIFS(INDEX(output[#Data],0,MATCH("num_motors_Market",output[#Headers],0)),output[equipment_type],$C$385,output[year],J$392,output[control_strategy],"ASD Control",output[sensitivity],"Base") -> 16073.10366
C397: Figure 25: ASD-Controlled Pumps Installed Above Baseline, by Year (In-Service Motor HP) | H397: Figure 26: ASD-Controlled Pumps Installed Above Baseline, by Year (In-Service Motors)
C414: ="Table for "&C397 -> Table for Figure 25: ASD-Controlled Pumps Installed Above Baseline, by Year (In-Service Motor HP)
C415: Pumps | D415: Year
C416: Pumps | D416: 2016 | E416: 2017 | F416: 2018 | G416: 2019 | H416: 2020 | I416: 2021
C417: Regional Momentum ASD Motor HP Installed | D417: =SUMIFS(INDEX(output[#Data],0,MATCH("ishp_Market",output[#Headers],0)),output[equipment_type],$C$415,output[year],D$416,output[control_strategy],"ASD Control",output[sensitivity],"Base")-SUMIFS(INDEX(output[#Data],0,MATCH("ishp_Program",output[#Headers],0)),output[equipment_type],$C$415,output[year],D$416,output[control_strategy],"ASD Control",output[sensitivity],"Base") -> 18593.79844 | E417: =SUMIFS(INDEX(output[#Data],0,MATCH("ishp_Market",output[#Headers],0)),output[equipment_type],$C$415,output[year],E$416,output[control_strategy],"ASD Control",output[sensitivity],"Base")-SUMIFS(INDEX(output[#Data],0,MATCH("ishp_Program",output[#Headers],0)),output[equipment_type],$C$415,output[year],E$416,output[control_strategy],"ASD Control",output[sensitivity],"Base")-SUM($D$417:D417) -> 23892.20655 | F417: =SUMIFS(INDEX(output[#Data],0,MATCH("ishp_Market",output[#Headers],0)),output[equipment_type],$C$415,output[year],F$416,output[control_strategy],"ASD Control",output[sensitivity],"Base")-SUMIFS(INDEX(output[#Data],0,MATCH("ishp_Program",output[#Headers],0)),output[equipment_type],$C$415,output[year],F$416,output[control_strategy],"ASD Control",output[sensitivity],"Base")-SUM($D$417:E417) -> 26386.05011 | G417: =SUMIFS(INDEX(output[#Data],0,MATCH("ishp_Market",output[#Headers],0)),output[equipment_type],$C$415,output[year],G$416,output[control_strategy],"ASD Control",output[sensitivity],"Base")-SUMIFS(INDEX(output[#Data],0,MATCH("ishp_Program",output[#Headers],0)),output[equipment_type],$C$415,output[year],G$416,output[control_strategy],"ASD Control",output[sensitivity],"Base")-SUM($D$417:F417) -> 23522.69491 | H417: =SUMIFS(INDEX(output[#Data],0,MATCH("ishp_Market",output[#Headers],0)),output[equipment_type],$C$415,output[year],H$416,output[control_strategy],"ASD Control",output[sensitivity],"Base")-SUMIFS(INDEX(output[#Data],0,MATCH("ishp_Program",output[#Headers],0)),output[equipment_type],$C$415,output[year],H$416,output[control_strategy],"ASD Control",output[sensitivity],"Base")-SUM($D$417:G417) -> 27324.94258 | I417: =SUMIFS(INDEX(output[#Data],0,MATCH("ishp_Market",output[#Headers],0)),output[equipment_type],$C$415,output[year],I$416,output[control_strategy],"ASD Control",output[sensitivity],"Base")-SUMIFS(INDEX(output[#Data],0,MATCH("ishp_Program",output[#Headers],0)),output[equipment_type],$C$415,output[year],I$416,output[control_strategy],"ASD Control",output[sensitivity],"Base")-SUM($D$417:H417) -> 21946.00628
C418: Regional Program Incented Motor HP Installed | D418: =SUMIFS(INDEX(output[#Data],0,MATCH("ishp_Program",output[#Headers],0)),output[equipment_type],$C$415,output[year],D$416,output[control_strategy],"ASD Control",output[sensitivity],"Base")-SUMIFS(INDEX(output[#Data],0,MATCH("ishp_Baseline",output[#Headers],0)),output[equipment_type],$C$415,output[year],D$416,output[control_strategy],"ASD Control",output[sensitivity],"Base") -> 3471.621762 | E418: =SUMIFS(INDEX(output[#Data],0,MATCH("ishp_Program",output[#Headers],0)),output[equipment_type],$C$415,output[year],E$416,output[control_strategy],"ASD Control",output[sensitivity],"Base")-SUMIFS(INDEX(output[#Data],0,MATCH("ishp_Baseline",output[#Headers],0)),output[equipment_type],$C$415,output[year],E$416,output[control_strategy],"ASD Control",output[sensitivity],"Base")-SUM($D$418:D418) -> 2485.819203 | F418: =SUMIFS(INDEX(output[#Data],0,MATCH("ishp_Program",output[#Headers],0)),output[equipment_type],$C$415,output[year],F$416,output[control_strategy],"ASD Control",output[sensitivity],"Base")-SUMIFS(INDEX(output[#Data],0,MATCH("ishp_Baseline",output[#Headers],0)),output[equipment_type],$C$415,output[year],F$416,output[control_strategy],"ASD Control",output[sensitivity],"Base")-SUM($D$418:E418) -> 1979.057615 | G418: =SUMIFS(INDEX(output[#Data],0,MATCH("ishp_Program",output[#Headers],0)),output[equipment_type],$C$415,output[year],G$416,output[control_strategy],"ASD Control",output[sensitivity],"Base")-SUMIFS(INDEX(output[#Data],0,MATCH("ishp_Baseline",output[#Headers],0)),output[equipment_type],$C$415,output[year],G$416,output[control_strategy],"ASD Control",output[sensitivity],"Base")-SUM($D$418:F418) -> 6296.830057 | H418: =SUMIFS(INDEX(output[#Data],0,MATCH("ishp_Program",output[#Headers],0)),output[equipment_type],$C$415,output[year],H$416,output[control_strategy],"ASD Control",output[sensitivity],"Base")-SUMIFS(INDEX(output[#Data],0,MATCH("ishp_Baseline",output[#Headers],0)),output[equipment_type],$C$415,output[year],H$416,output[control_strategy],"ASD Control",output[sensitivity],"Base")-SUM($D$418:G418) -> 1610.895416 | I418: =SUMIFS(INDEX(output[#Data],0,MATCH("ishp_Program",output[#Headers],0)),output[equipment_type],$C$415,output[year],I$416,output[control_strategy],"ASD Control",output[sensitivity],"Base")-SUMIFS(INDEX(output[#Data],0,MATCH("ishp_Baseline",output[#Headers],0)),output[equipment_type],$C$415,output[year],I$416,output[control_strategy],"ASD Control",output[sensitivity],"Base")-SUM($D$418:H418) -> 1610.895416
C420: ="Table for "&H397 -> Table for Figure 26: ASD-Controlled Pumps Installed Above Baseline, by Year (In-Service Motors)
C421: Pumps | D421: Year
C422: Pumps | D422: 2016 | E422: 2017 | F422: 2018 | G422: 2019 | H422: 2020 | I422: 2021
C423: Regional Momentum ASDs Installed | D423: =SUMIFS(INDEX(output[#Data],0,MATCH("num_motors_Market",output[#Headers],0)),output[equipment_type],$C$421,output[year],D$422,output[control_strategy],"ASD Control",output[sensitivity],"Base")-SUMIFS(INDEX(output[#Data],0,MATCH("num_motors_Program",output[#Headers],0)),output[equipment_type],$C$421,output[year],D$422,output[control_strategy],"ASD Control",output[sensitivity],"Base") -> 775.0443901 | E423: =SUMIFS(INDEX(output[#Data],0,MATCH("num_motors_Market",output[#Headers],0)),output[equipment_type],$C$421,output[year],E$422,output[control_strategy],"ASD Control",output[sensitivity],"Base")-SUMIFS(INDEX(output[#Data],0,MATCH("num_motors_Program",output[#Headers],0)),output[equipment_type],$C$421,output[year],E$422,output[control_strategy],"ASD Control",output[sensitivity],"Base")-SUM($D$423:D423) -> 886.8614303 | F423: =SUMIFS(INDEX(output[#Data],0,MATCH("num_motors_Market",output[#Headers],0)),output[equipment_type],$C$421,output[year],F$422,output[control_strategy],"ASD Control",output[sensitivity],"Base")-SUMIFS(INDEX(output[#Data],0,MATCH("num_motors_Program",output[#Headers],0)),output[equipment_type],$C$421,output[year],F$422,output[control_strategy],"ASD Control",output[sensitivity],"Base")-SUM($D$423:E423) -> 970.6470144 | G423: =SUMIFS(INDEX(output[#Data],0,MATCH("num_motors_Market",output[#Headers],0)),output[equipment_type],$C$421,output[year],G$422,output[control_strategy],"ASD Control",output[sensitivity],"Base")-SUMIFS(INDEX(output[#Data],0,MATCH("num_motors_Program",output[#Headers],0)),output[equipment_type],$C$421,output[year],G$422,output[control_strategy],"ASD Control",output[sensitivity],"Base")-SUM($D$423:F423) -> 995.9015413 | H423: =SUMIFS(INDEX(output[#Data],0,MATCH("num_motors_Market",output[#Headers],0)),output[equipment_type],$C$421,output[year],H$422,output[control_strategy],"ASD Control",output[sensitivity],"Base")-SUMIFS(INDEX(output[#Data],0,MATCH("num_motors_Program",output[#Headers],0)),output[equipment_type],$C$421,output[year],H$422,output[control_strategy],"ASD Control",output[sensitivity],"Base")-SUM($D$423:G423) -> 934.2782481 | I423: =SUMIFS(INDEX(output[#Data],0,MATCH("num_motors_Market",output[#Headers],0)),output[equipment_type],$C$421,output[year],I$422,output[control_strategy],"ASD Control",output[sensitivity],"Base")-SUMIFS(INDEX(output[#Data],0,MATCH("num_motors_Program",output[#Headers],0)),output[equipment_type],$C$421,output[year],I$422,output[control_strategy],"ASD Control",output[sensitivity],"Base")-SUM($D$423:H423) -> 779.8729489
C424: Regional Program Incented ASDs Installed | D424: =SUMIFS(INDEX(output[#Data],0,MATCH("num_motors_Program",output[#Headers],0)),output[equipment_type],$C$415,output[year],D$416,output[control_strategy],"ASD Control",output[sensitivity],"Base")-SUMIFS(INDEX(output[#Data],0,MATCH("num_motors_Baseline",output[#Headers],0)),output[equipment_type],$C$415,output[year],D$416,output[control_strategy],"ASD Control",output[sensitivity],"Base") -> 24.70342032 | E424: =SUMIFS(INDEX(output[#Data],0,MATCH("num_motors_Program",output[#Headers],0)),output[equipment_type],$C$415,output[year],E$416,output[control_strategy],"ASD Control",output[sensitivity],"Base")-SUMIFS(INDEX(output[#Data],0,MATCH("num_motors_Baseline",output[#Headers],0)),output[equipment_type],$C$415,output[year],E$416,output[control_strategy],"ASD Control",output[sensitivity],"Base")-SUM($D$424:D424) -> 17.68863108 | F424: =SUMIFS(INDEX(output[#Data],0,MATCH("num_motors_Program",output[#Headers],0)),output[equipment_type],$C$415,output[year],F$416,output[control_strategy],"ASD Control",output[sensitivity],"Base")-SUMIFS(INDEX(output[#Data],0,MATCH("num_motors_Baseline",output[#Headers],0)),output[equipment_type],$C$415,output[year],F$416,output[control_strategy],"ASD Control",output[sensitivity],"Base")-SUM($D$424:E424) -> 14.08260907 | G424: =SUMIFS(INDEX(output[#Data],0,MATCH("num_motors_Program",output[#Headers],0)),output[equipment_type],$C$415,output[year],G$416,output[control_strategy],"ASD Control",output[sensitivity],"Base")-SUMIFS(INDEX(output[#Data],0,MATCH("num_motors_Baseline",output[#Headers],0)),output[equipment_type],$C$415,output[year],G$416,output[control_strategy],"ASD Control",output[sensitivity],"Base")-SUM($D$424:F424) -> 44.8070816 | H424: =SUMIFS(INDEX(output[#Data],0,MATCH("num_motors_Program",output[#Headers],0)),output[equipment_type],$C$415,output[year],H$416,output[control_strategy],"ASD Control",output[sensitivity],"Base")-SUMIFS(INDEX(output[#Data],0,MATCH("num_motors_Baseline",output[#Headers],0)),output[equipment_type],$C$415,output[year],H$416,output[control_strategy],"ASD Control",output[sensitivity],"Base")-SUM($D$424:G424) -> 11.46283474 | I424: =SUMIFS(INDEX(output[#Data],0,MATCH("num_motors_Program",output[#Headers],0)),output[equipment_type],$C$415,output[year],I$416,output[control_strategy],"ASD Control",output[sensitivity],"Base")-SUMIFS(INDEX(output[#Data],0,MATCH("num_motors_Baseline",output[#Headers],0)),output[equipment_type],$C$415,output[year],I$416,output[control_strategy],"ASD Control",output[sensitivity],"Base")-SUM($D$424:H424) -> 11.46283474
C426: Figure 27: Total ASD-Controlled Pumps Installed Above Baseline, by Facility Type, from 2016 to 2021 (In-Service Motor HP) | H426: Figure 28: Total ASD-Controlled Pumps Installed Above Baseline, by Facility Type, from 2016 to 2021 (In-Service Motors)
C446: ="Table for "&C426 -> Table for Figure 27: Total ASD-Controlled Pumps Installed Above Baseline, by Facility Type, from 2016 to 2021 (In-Service Motor HP)
C447: Pumps | E447: Primary Metal | F447: Wood Products | G447: Paper | H447: Computer - Elec | I447: Chemical | J447: Food | K447: Warehousing | L447: Refinery | M447: Fabricated Metal | N447: Transportation | O447: Misc Manf
C448: Regional Momentum | E448: =SUMIFS(INDEX(output[#Data],0,MATCH("ishp_Market",output[#Headers],0)),output[equipment_type],$C$447,output[year],2021,output[facility_type],E$447,output[control_strategy],"ASD Control",output[sensitivity],"Base")-SUMIFS(INDEX(output[#Data],0,MATCH("ishp_Program",output[#Headers],0)),output[equipment_type],$C$447,output[year],2021,output[facility_type],E$447,output[control_strategy],"ASD Control",output[sensitivity],"Base") -> 17018.48917 | F448: =SUMIFS(INDEX(output[#Data],0,MATCH("ishp_Market",output[#Headers],0)),output[equipment_type],$C$447,output[year],2021,output[facility_type],F$447,output[control_strategy],"ASD Control",output[sensitivity],"Base")-SUMIFS(INDEX(output[#Data],0,MATCH("ishp_Program",output[#Headers],0)),output[equipment_type],$C$447,output[year],2021,output[facility_type],F$447,output[control_strategy],"ASD Control",output[sensitivity],"Base") -> 3631.527771 | G448: =SUMIFS(INDEX(output[#Data],0,MATCH("ishp_Market",output[#Headers],0)),output[equipment_type],$C$447,output[year],2021,output[facility_type],G$447,output[control_strategy],"ASD Control",output[sensitivity],"Base")-SUMIFS(INDEX(output[#Data],0,MATCH("ishp_Program",output[#Headers],0)),output[equipment_type],$C$447,output[year],2021,output[facility_type],G$447,output[control_strategy],"ASD Control",output[sensitivity],"Base") -> 9443.055667 | H448: =SUMIFS(INDEX(output[#Data],0,MATCH("ishp_Market",output[#Headers],0)),output[equipment_type],$C$447,output[year],2021,output[facility_type],H$447,output[control_strategy],"ASD Control",output[sensitivity],"Base")-SUMIFS(INDEX(output[#Data],0,MATCH("ishp_Program",output[#Headers],0)),output[equipment_type],$C$447,output[year],2021,output[facility_type],H$447,output[control_strategy],"ASD Control",output[sensitivity],"Base") -> 16047.55811 | I448: =SUMIFS(INDEX(output[#Data],0,MATCH("ishp_Market",output[#Headers],0)),output[equipment_type],$C$447,output[year],2021,output[facility_type],I$447,output[control_strategy],"ASD Control",output[sensitivity],"Base")-SUMIFS(INDEX(output[#Data],0,MATCH("ishp_Program",output[#Headers],0)),output[equipment_type],$C$447,output[year],2021,output[facility_type],I$447,output[control_strategy],"ASD Control",output[sensitivity],"Base") -> 12396.51818 | J448: =SUMIFS(INDEX(output[#Data],0,MATCH("ishp_Market",output[#Headers],0)),output[equipment_type],$C$447,output[year],2021,output[facility_type],J$447,output[control_strategy],"ASD Control",output[sensitivity],"Base")-SUMIFS(INDEX(output[#Data],0,MATCH("ishp_Program",output[#Headers],0)),output[equipment_type],$C$447,output[year],2021,output[facility_type],J$447,output[control_strategy],"ASD Control",output[sensitivity],"Base") -> 22731.98483 | K448: =SUMIFS(INDEX(output[#Data],0,MATCH("ishp_Market",output[#Headers],0)),output[equipment_type],$C$447,output[year],2021,output[facility_type],K$447,output[control_strategy],"ASD Control",output[sensitivity],"Base")-SUMIFS(INDEX(output[#Data],0,MATCH("ishp_Program",output[#Headers],0)),output[equipment_type],$C$447,output[year],2021,output[facility_type],K$447,output[control_strategy],"ASD Control",output[sensitivity],"Base") -> 572.3995391 | L448: =SUMIFS(INDEX(output[#Data],0,MATCH("ishp_Market",output[#Headers],0)),output[equipment_type],$C$447,output[year],2021,output[facility_type],L$447,output[control_strategy],"ASD Control",output[sensitivity],"Base")-SUMIFS(INDEX(output[#Data],0,MATCH("ishp_Program",output[#Headers],0)),output[equipment_type],$C$447,output[year],2021,output[facility_type],L$447,output[control_strategy],"ASD Control",output[sensitivity],"Base") -> 20107.92763 | M448: =SUMIFS(INDEX(output[#Data],0,MATCH("ishp_Market",output[#Headers],0)),output[equipment_type],$C$447,output[year],2021,output[facility_type],M$447,output[control_strategy],"ASD Control",output[sensitivity],"Base")-SUMIFS(INDEX(output[#Data],0,MATCH("ishp_Program",output[#Headers],0)),output[equipment_type],$C$447,output[year],2021,output[facility_type],M$447,output[control_strategy],"ASD Control",output[sensitivity],"Base") -> 1188.611341 | N448: =SUMIFS(INDEX(output[#Data],0,MATCH("ishp_Market",output[#Headers],0)),output[equipment_type],$C$447,output[year],2021,output[facility_type],N$447,output[control_strategy],"ASD Control",output[sensitivity],"Base")-SUMIFS(INDEX(output[#Data],0,MATCH("ishp_Program",output[#Headers],0)),output[equipment_type],$C$447,output[year],2021,output[facility_type],N$447,output[control_strategy],"ASD Control",output[sensitivity],"Base") -> 3154.545973 | O448: =SUMIFS(INDEX(output[#Data],0,MATCH("ishp_Market",output[#Headers],0)),output[equipment_type],$C$447,output[year],2021,output[facility_type],O$447,output[control_strategy],"ASD Control",output[sensitivity],"Base")-SUMIFS(INDEX(output[#Data],0,MATCH("ishp_Program",output[#Headers],0)),output[equipment_type],$C$447,output[year],2021,output[facility_type],O$447,output[control_strategy],"ASD Control",output[sensitivity],"Base") -> 35373.08067
C449: Regional Program Incented | E449: =SUMIFS(INDEX(output[#Data],0,MATCH("ishp_Program",output[#Headers],0)),output[equipment_type],$C$447,output[year],2021,output[facility_type],E$447,output[control_strategy],"ASD Control",output[sensitivity],"Base")-SUMIFS(INDEX(output[#Data],0,MATCH("ishp_Baseline",output[#Headers],0)),output[equipment_type],$C$447,output[year],2021,output[facility_type],E$447,output[control_strategy],"ASD Control",output[sensitivity],"Base") -> 1457.855132 | F449: =SUMIFS(INDEX(output[#Data],0,MATCH("ishp_Program",output[#Headers],0)),output[equipment_type],$C$447,output[year],2021,output[facility_type],F$447,output[control_strategy],"ASD Control",output[sensitivity],"Base")-SUMIFS(INDEX(output[#Data],0,MATCH("ishp_Baseline",output[#Headers],0)),output[equipment_type],$C$447,output[year],2021,output[facility_type],F$447,output[control_strategy],"ASD Control",output[sensitivity],"Base") -> 193.2605344 | G449: =SUMIFS(INDEX(output[#Data],0,MATCH("ishp_Program",output[#Headers],0)),output[equipment_type],$C$447,output[year],2021,output[facility_type],G$447,output[control_strategy],"ASD Control",output[sensitivity],"Base")-SUMIFS(INDEX(output[#Data],0,MATCH("ishp_Baseline",output[#Headers],0)),output[equipment_type],$C$447,output[year],2021,output[facility_type],G$447,output[control_strategy],"ASD Control",output[sensitivity],"Base") -> 5267.949922 | H449: =SUMIFS(INDEX(output[#Data],0,MATCH("ishp_Program",output[#Headers],0)),output[equipment_type],$C$447,output[year],2021,output[facility_type],H$447,output[control_strategy],"ASD Control",output[sensitivity],"Base")-SUMIFS(INDEX(output[#Data],0,MATCH("ishp_Baseline",output[#Headers],0)),output[equipment_type],$C$447,output[year],2021,output[facility_type],H$447,output[control_strategy],"ASD Control",output[sensitivity],"Base") -> 7.77398294 | I449: =SUMIFS(INDEX(output[#Data],0,MATCH("ishp_Program",output[#Headers],0)),output[equipment_type],$C$447,output[year],2021,output[facility_type],I$447,output[control_strategy],"ASD Control",output[sensitivity],"Base")-SUMIFS(INDEX(output[#Data],0,MATCH("ishp_Baseline",output[#Headers],0)),output[equipment_type],$C$447,output[year],2021,output[facility_type],I$447,output[control_strategy],"ASD Control",output[sensitivity],"Base") -> 3587.255964 | J449: =SUMIFS(INDEX(output[#Data],0,MATCH("ishp_Program",output[#Headers],0)),output[equipment_type],$C$447,output[year],2021,output[facility_type],J$447,output[control_strategy],"ASD Control",output[sensitivity],"Base")-SUMIFS(INDEX(output[#Data],0,MATCH("ishp_Baseline",output[#Headers],0)),output[equipment_type],$C$447,output[year],2021,output[facility_type],J$447,output[control_strategy],"ASD Control",output[sensitivity],"Base") -> 6916.388094 | K449: =SUMIFS(INDEX(output[#Data],0,MATCH("ishp_Program",output[#Headers],0)),output[equipment_type],$C$447,output[year],2021,output[facility_type],K$447,output[control_strategy],"ASD Control",output[sensitivity],"Base")-SUMIFS(INDEX(output[#Data],0,MATCH("ishp_Baseline",output[#Headers],0)),output[equipment_type],$C$447,output[year],2021,output[facility_type],K$447,output[control_strategy],"ASD Control",output[sensitivity],"Base") -> 0 | L449: =SUMIFS(INDEX(output[#Data],0,MATCH("ishp_Program",output[#Headers],0)),output[equipment_type],$C$447,output[year],2021,output[facility_type],L$447,output[control_strategy],"ASD Control",output[sensitivity],"Base")-SUMIFS(INDEX(output[#Data],0,MATCH("ishp_Baseline",output[#Headers],0)),output[equipment_type],$C$447,output[year],2021,output[facility_type],L$447,output[control_strategy],"ASD Control",output[sensitivity],"Base") -> 0 | M449: =SUMIFS(INDEX(output[#Data],0,MATCH("ishp_Program",output[#Headers],0)),output[equipment_type],$C$447,output[year],2021,output[facility_type],M$447,output[control_strategy],"ASD Control",output[sensitivity],"Base")-SUMIFS(INDEX(output[#Data],0,MATCH("ishp_Baseline",output[#Headers],0)),output[equipment_type],$C$447,output[year],2021,output[facility_type],M$447,output[control_strategy],"ASD Control",output[sensitivity],"Base") -> 0 | N449: =SUMIFS(INDEX(output[#Data],0,MATCH("ishp_Program",output[#Headers],0)),output[equipment_type],$C$447,output[year],2021,output[facility_type],N$447,output[control_strategy],"ASD Control",output[sensitivity],"Base")-SUMIFS(INDEX(output[#Data],0,MATCH("ishp_Baseline",output[#Headers],0)),output[equipment_type],$C$447,output[year],2021,output[facility_type],N$447,output[control_strategy],"ASD Control",output[sensitivity],"Base") -> 0 | O449: =SUMIFS(INDEX(output[#Data],0,MATCH("ishp_Program",output[#Headers],0)),output[equipment_type],$C$447,output[year],2021,output[facility_type],O$447,output[control_strategy],"ASD Control",output[sensitivity],"Base")-SUMIFS(INDEX(output[#Data],0,MATCH("ishp_Baseline",output[#Headers],0)),output[equipment_type],$C$447,output[year],2021,output[facility_type],O$447,output[control_strategy],"ASD Control",output[sensitivity],"Base") -> 24.63584055
C451: ="Table for "&H426 -> Table for Figure 28: Total ASD-Controlled Pumps Installed Above Baseline, by Facility Type, from 2016 to 2021 (In-Service Motors)
C452: Pumps | E452: Primary Metal | F452: Wood Products | G452: Paper | H452: Computer - Elec | I452: Chemical | J452: Food | K452: Warehousing | L452: Refinery | M452: Fabricated Metal | N452: Transportation | O452: Misc Manf
C453: Regional Momentum | E453: =SUMIFS(INDEX(output[#Data],0,MATCH("num_motors_Market",output[#Headers],0)),output[equipment_type],$C$452,output[year],2021,output[facility_type],E$452,output[control_strategy],"ASD Control",output[sensitivity],"Base")-SUMIFS(INDEX(output[#Data],0,MATCH("num_motors_Program",output[#Headers],0)),output[equipment_type],$C$452,output[year],2021,output[facility_type],E$452,output[control_strategy],"ASD Control",output[sensitivity],"Base") -> 248.8872294 | F453: =SUMIFS(INDEX(output[#Data],0,MATCH("num_motors_Market",output[#Headers],0)),output[equipment_type],$C$452,output[year],2021,output[facility_type],F$452,output[control_strategy],"ASD Control",output[sensitivity],"Base")-SUMIFS(INDEX(output[#Data],0,MATCH("num_motors_Program",output[#Headers],0)),output[equipment_type],$C$452,output[year],2021,output[facility_type],F$452,output[control_strategy],"ASD Control",output[sensitivity],"Base") -> 254.2468892 | G453: =SUMIFS(INDEX(output[#Data],0,MATCH("num_motors_Market",output[#Headers],0)),output[equipment_type],$C$452,output[year],2021,output[facility_type],G$452,output[control_strategy],"ASD Control",output[sensitivity],"Base")-SUMIFS(INDEX(output[#Data],0,MATCH("num_motors_Program",output[#Headers],0)),output[equipment_type],$C$452,output[year],2021,output[facility_type],G$452,output[control_strategy],"ASD Control",output[sensitivity],"Base") -> 255.4638698 | H453: =SUMIFS(INDEX(output[#Data],0,MATCH("num_motors_Market",output[#Headers],0)),output[equipment_type],$C$452,output[year],2021,output[facility_type],H$452,output[control_strategy],"ASD Control",output[sensitivity],"Base")-SUMIFS(INDEX(output[#Data],0,MATCH("num_motors_Program",output[#Headers],0)),output[equipment_type],$C$452,output[year],2021,output[facility_type],H$452,output[control_strategy],"ASD Control",output[sensitivity],"Base") -> 623.6028742 | I453: =SUMIFS(INDEX(output[#Data],0,MATCH("num_motors_Market",output[#Headers],0)),output[equipment_type],$C$452,output[year],2021,output[facility_type],I$452,output[control_strategy],"ASD Control",output[sensitivity],"Base")-SUMIFS(INDEX(output[#Data],0,MATCH("num_motors_Program",output[#Headers],0)),output[equipment_type],$C$452,output[year],2021,output[facility_type],I$452,output[control_strategy],"ASD Control",output[sensitivity],"Base") -> 516.5907223 | J453: =SUMIFS(INDEX(output[#Data],0,MATCH("num_motors_Market",output[#Headers],0)),output[equipment_type],$C$452,output[year],2021,output[facility_type],J$452,output[control_strategy],"ASD Control",output[sensitivity],"Base")-SUMIFS(INDEX(output[#Data],0,MATCH("num_motors_Program",output[#Headers],0)),output[equipment_type],$C$452,output[year],2021,output[facility_type],J$452,output[control_strategy],"ASD Control",output[sensitivity],"Base") -> 951.896784 | K453: =SUMIFS(INDEX(output[#Data],0,MATCH("num_motors_Market",output[#Headers],0)),output[equipment_type],$C$452,output[year],2021,output[facility_type],K$452,output[control_strategy],"ASD Control",output[sensitivity],"Base")-SUMIFS(INDEX(output[#Data],0,MATCH("num_motors_Program",output[#Headers],0)),output[equipment_type],$C$452,output[year],2021,output[facility_type],K$452,output[control_strategy],"ASD Control",output[sensitivity],"Base") -> 54.23947246 | L453: =SUMIFS(INDEX(output[#Data],0,MATCH("num_motors_Market",output[#Headers],0)),output[equipment_type],$C$452,output[year],2021,output[facility_type],L$452,output[control_strategy],"ASD Control",output[sensitivity],"Base")-SUMIFS(INDEX(output[#Data],0,MATCH("num_motors_Program",output[#Headers],0)),output[equipment_type],$C$452,output[year],2021,output[facility_type],L$452,output[control_strategy],"ASD Control",output[sensitivity],"Base") -> 258.8599567 | M453: =SUMIFS(INDEX(output[#Data],0,MATCH("num_motors_Market",output[#Headers],0)),output[equipment_type],$C$452,output[year],2021,output[facility_type],M$452,output[control_strategy],"ASD Control",output[sensitivity],"Base")-SUMIFS(INDEX(output[#Data],0,MATCH("num_motors_Program",output[#Headers],0)),output[equipment_type],$C$452,output[year],2021,output[facility_type],M$452,output[control_strategy],"ASD Control",output[sensitivity],"Base") -> 179.0431755 | N453: =SUMIFS(INDEX(output[#Data],0,MATCH("num_motors_Market",output[#Headers],0)),output[equipment_type],$C$452,output[year],2021,output[facility_type],N$452,output[control_strategy],"ASD Control",output[sensitivity],"Base")-SUMIFS(INDEX(output[#Data],0,MATCH("num_motors_Program",output[#Headers],0)),output[equipment_type],$C$452,output[year],2021,output[facility_type],N$452,output[control_strategy],"ASD Control",output[sensitivity],"Base") -> 95.80579552 | O453: =SUMIFS(INDEX(output[#Data],0,MATCH("num_motors_Market",output[#Headers],0)),output[equipment_type],$C$452,output[year],2021,output[facility_type],O$452,output[control_strategy],"ASD Control",output[sensitivity],"Base")-SUMIFS(INDEX(output[#Data],0,MATCH("num_motors_Program",output[#Headers],0)),output[equipment_type],$C$452,output[year],2021,output[facility_type],O$452,output[control_strategy],"ASD Control",output[sensitivity],"Base") -> 1903.968804
C454: Regional Program Incented | E454: =SUMIFS(INDEX(output[#Data],0,MATCH("num_motors_Program",output[#Headers],0)),output[equipment_type],$C$452,output[year],2021,output[facility_type],E$452,output[control_strategy],"ASD Control",output[sensitivity],"Base")-SUMIFS(INDEX(output[#Data],0,MATCH("num_motors_Baseline",output[#Headers],0)),output[equipment_type],$C$452,output[year],2021,output[facility_type],E$452,output[control_strategy],"ASD Control",output[sensitivity],"Base") -> 9.905091679 | F454: =SUMIFS(INDEX(output[#Data],0,MATCH("num_motors_Program",output[#Headers],0)),output[equipment_type],$C$452,output[year],2021,output[facility_type],F$452,output[control_strategy],"ASD Control",output[sensitivity],"Base")-SUMIFS(INDEX(output[#Data],0,MATCH("num_motors_Baseline",output[#Headers],0)),output[equipment_type],$C$452,output[year],2021,output[facility_type],F$452,output[control_strategy],"ASD Control",output[sensitivity],"Base") -> 2.166621594 | G454: =SUMIFS(INDEX(output[#Data],0,MATCH("num_motors_Program",output[#Headers],0)),output[equipment_type],$C$452,output[year],2021,output[facility_type],G$452,output[control_strategy],"ASD Control",output[sensitivity],"Base")-SUMIFS(INDEX(output[#Data],0,MATCH("num_motors_Baseline",output[#Headers],0)),output[equipment_type],$C$452,output[year],2021,output[facility_type],G$452,output[control_strategy],"ASD Control",output[sensitivity],"Base") -> 35.79198357 | H454: =SUMIFS(INDEX(output[#Data],0,MATCH("num_motors_Program",output[#Headers],0)),output[equipment_type],$C$452,output[year],2021,output[facility_type],H$452,output[control_strategy],"ASD Control",output[sensitivity],"Base")-SUMIFS(INDEX(output[#Data],0,MATCH("num_motors_Baseline",output[#Headers],0)),output[equipment_type],$C$452,output[year],2021,output[facility_type],H$452,output[control_strategy],"ASD Control",output[sensitivity],"Base") -> 0.05596585035 | I454: =SUMIFS(INDEX(output[#Data],0,MATCH("num_motors_Program",output[#Headers],0)),output[equipment_type],$C$452,output[year],2021,output[facility_type],I$452,output[control_strategy],"ASD Control",output[sensitivity],"Base")-SUMIFS(INDEX(output[#Data],0,MATCH("num_motors_Baseline",output[#Headers],0)),output[equipment_type],$C$452,output[year],2021,output[facility_type],I$452,output[control_strategy],"ASD Control",output[sensitivity],"Base") -> 25.82509275 | J454: =SUMIFS(INDEX(output[#Data],0,MATCH("num_motors_Program",output[#Headers],0)),output[equipment_type],$C$452,output[year],2021,output[facility_type],J$452,output[control_strategy],"ASD Control",output[sensitivity],"Base")-SUMIFS(INDEX(output[#Data],0,MATCH("num_motors_Baseline",output[#Headers],0)),output[equipment_type],$C$452,output[year],2021,output[facility_type],J$452,output[control_strategy],"ASD Control",output[sensitivity],"Base") -> 49.79192056 | K454: =SUMIFS(INDEX(output[#Data],0,MATCH("num_motors_Program",output[#Headers],0)),output[equipment_type],$C$452,output[year],2021,output[facility_type],K$452,output[control_strategy],"ASD Control",output[sensitivity],"Base")-SUMIFS(INDEX(output[#Data],0,MATCH("num_motors_Baseline",output[#Headers],0)),output[equipment_type],$C$452,output[year],2021,output[facility_type],K$452,output[control_strategy],"ASD Control",output[sensitivity],"Base") -> 0 | L454: =SUMIFS(INDEX(output[#Data],0,MATCH("num_motors_Program",output[#Headers],0)),output[equipment_type],$C$452,output[year],2021,output[facility_type],L$452,output[control_strategy],"ASD Control",output[sensitivity],"Base")-SUMIFS(INDEX(output[#Data],0,MATCH("num_motors_Baseline",output[#Headers],0)),output[equipment_type],$C$452,output[year],2021,output[facility_type],L$452,output[control_strategy],"ASD Control",output[sensitivity],"Base") -> 0 | M454: =SUMIFS(INDEX(output[#Data],0,MATCH("num_motors_Program",output[#Headers],0)),output[equipment_type],$C$452,output[year],2021,output[facility_type],M$452,output[control_strategy],"ASD Control",output[sensitivity],"Base")-SUMIFS(INDEX(output[#Data],0,MATCH("num_motors_Baseline",output[#Headers],0)),output[equipment_type],$C$452,output[year],2021,output[facility_type],M$452,output[control_strategy],"ASD Control",output[sensitivity],"Base") -> 0 | N454: =SUMIFS(INDEX(output[#Data],0,MATCH("num_motors_Program",output[#Headers],0)),output[equipment_type],$C$452,output[year],2021,output[facility_type],N$452,output[control_strategy],"ASD Control",output[sensitivity],"Base")-SUMIFS(INDEX(output[#Data],0,MATCH("num_motors_Baseline",output[#Headers],0)),output[equipment_type],$C$452,output[year],2021,output[facility_type],N$452,output[control_strategy],"ASD Control",output[sensitivity],"Base") -> 0 | O454: =SUMIFS(INDEX(output[#Data],0,MATCH("num_motors_Program",output[#Headers],0)),output[equipment_type],$C$452,output[year],2021,output[facility_type],O$452,output[control_strategy],"ASD Control",output[sensitivity],"Base")-SUMIFS(INDEX(output[#Data],0,MATCH("num_motors_Baseline",output[#Headers],0)),output[equipment_type],$C$452,output[year],2021,output[facility_type],O$452,output[control_strategy],"ASD Control",output[sensitivity],"Base") -> 0.6707355423
C456: Market Characteristics
C458: This section presents the distribution of the installed stock of pumps, fans, and ASDs in the industrial sector. Distributions by control type, load type, and motor size are shown in the figures below. All values are based on the market scenario.
C460: Figure 29: Distribution of Fans by Control Type and Load Type, by Year (In-Service Motor HP) | H460: Figure 30: Distribution of Fans by Control Type and Load Type, by Year (In-Service Motors)
C476: ="Table for "&C460 -> Table for Figure 29: Distribution of Fans by Control Type and Load Type, by Year (In-Service Motor HP)
C477: Fans | D477: Year
D478: 2015 | E478: 2016 | F478: 2017 | G478: 2018 | H478: 2019 | I478: 2020 | J478: 2021
C479: Constant Load Non-ASD Control | D479: =SUMIFS(INDEX(output[#Data],0,MATCH("ishp_Market",output[#Headers],0)),output[equipment_type],$C$477,output[control_strategy],"Non ASD Control",output[load_type],"Constant",output[year],D$478,output[sensitivity],"Base")/SUMIFS(INDEX(output[#Data],0,MATCH("ishp_Market",output[#Headers],0)),output[equipment_type],$C$477,output[year],D$478,output[sensitivity],"Base") -> 0.4347807035 | E479: =SUMIFS(INDEX(output[#Data],0,MATCH("ishp_Market",output[#Headers],0)),output[equipment_type],$C$477,output[control_strategy],"Non ASD Control",output[load_type],"Constant",output[year],E$478,output[sensitivity],"Base")/SUMIFS(INDEX(output[#Data],0,MATCH("ishp_Market",output[#Headers],0)),output[equipment_type],$C$477,output[year],E$478,output[sensitivity],"Base") -> 0.4209736042 | F479: =SUMIFS(INDEX(output[#Data],0,MATCH("ishp_Market",output[#Headers],0)),output[equipment_type],$C$477,output[control_strategy],"Non ASD Control",output[load_type],"Constant",output[year],F$478,output[sensitivity],"Base")/SUMIFS(INDEX(output[#Data],0,MATCH("ishp_Market",output[#Headers],0)),output[equipment_type],$C$477,output[year],F$478,output[sensitivity],"Base") -> 0.4086013846 | G479: =SUMIFS(INDEX(output[#Data],0,MATCH("ishp_Market",output[#Headers],0)),output[equipment_type],$C$477,output[control_strategy],"Non ASD Control",output[load_type],"Constant",output[year],G$478,output[sensitivity],"Base")/SUMIFS(INDEX(output[#Data],0,MATCH("ishp_Market",output[#Headers],0)),output[equipment_type],$C$477,output[year],G$478,output[sensitivity],"Base") -> 0.3956661145 | H479: =SUMIFS(INDEX(output[#Data],0,MATCH("ishp_Market",output[#Headers],0)),output[equipment_type],$C$477,output[control_strategy],"Non ASD Control",output[load_type],"Constant",output[year],H$478,output[sensitivity],"Base")/SUMIFS(INDEX(output[#Data],0,MATCH("ishp_Market",output[#Headers],0)),output[equipment_type],$C$477,output[year],H$478,output[sensitivity],"Base") -> 0.3806907647 | I479: =SUMIFS(INDEX(output[#Data],0,MATCH("ishp_Market",output[#Headers],0)),output[equipment_type],$C$477,output[control_strategy],"Non ASD Control",output[load_type],"Constant",output[year],I$478,output[sensitivity],"Base")/SUMIFS(INDEX(output[#Data],0,MATCH("ishp_Market",output[#Headers],0)),output[equipment_type],$C$477,output[year],I$478,output[sensitivity],"Base") -> 0.3696710113 | J479: =SUMIFS(INDEX(output[#Data],0,MATCH("ishp_Market",output[#Headers],0)),output[equipment_type],$C$477,output[control_strategy],"Non ASD Control",output[load_type],"Constant",output[year],J$478,output[sensitivity],"Base")/SUMIFS(INDEX(output[#Data],0,MATCH("ishp_Market",output[#Headers],0)),output[equipment_type],$C$477,output[year],J$478,output[sensitivity],"Base") -> 0.3601771497
C480: Variable Load Non-ASD Control | D480: =SUMIFS(INDEX(output[#Data],0,MATCH("ishp_Market",output[#Headers],0)),output[equipment_type],$C$477,output[control_strategy],"Non ASD Control",output[load_type],"Variable",output[year],D$478,output[sensitivity],"Base")/SUMIFS(INDEX(output[#Data],0,MATCH("ishp_Market",output[#Headers],0)),output[equipment_type],$C$477,output[year],D$478,output[sensitivity],"Base") -> 0.2589358423 | E480: =SUMIFS(INDEX(output[#Data],0,MATCH("ishp_Market",output[#Headers],0)),output[equipment_type],$C$477,output[control_strategy],"Non ASD Control",output[load_type],"Variable",output[year],E$478,output[sensitivity],"Base")/SUMIFS(INDEX(output[#Data],0,MATCH("ishp_Market",output[#Headers],0)),output[equipment_type],$C$477,output[year],E$478,output[sensitivity],"Base") -> 0.2507129546 | F480: =SUMIFS(INDEX(output[#Data],0,MATCH("ishp_Market",output[#Headers],0)),output[equipment_type],$C$477,output[control_strategy],"Non ASD Control",output[load_type],"Variable",output[year],F$478,output[sensitivity],"Base")/SUMIFS(INDEX(output[#Data],0,MATCH("ishp_Market",output[#Headers],0)),output[equipment_type],$C$477,output[year],F$478,output[sensitivity],"Base") -> 0.2433446169 | G480: =SUMIFS(INDEX(output[#Data],0,MATCH("ishp_Market",output[#Headers],0)),output[equipment_type],$C$477,output[control_strategy],"Non ASD Control",output[load_type],"Variable",output[year],G$478,output[sensitivity],"Base")/SUMIFS(INDEX(output[#Data],0,MATCH("ishp_Market",output[#Headers],0)),output[equipment_type],$C$477,output[year],G$478,output[sensitivity],"Base") -> 0.2356409515 | H480: =SUMIFS(INDEX(output[#Data],0,MATCH("ishp_Market",output[#Headers],0)),output[equipment_type],$C$477,output[control_strategy],"Non ASD Control",output[load_type],"Variable",output[year],H$478,output[sensitivity],"Base")/SUMIFS(INDEX(output[#Data],0,MATCH("ishp_Market",output[#Headers],0)),output[equipment_type],$C$477,output[year],H$478,output[sensitivity],"Base") -> 0.2267223063 | I480: =SUMIFS(INDEX(output[#Data],0,MATCH("ishp_Market",output[#Headers],0)),output[equipment_type],$C$477,output[control_strategy],"Non ASD Control",output[load_type],"Variable",output[year],I$478,output[sensitivity],"Base")/SUMIFS(INDEX(output[#Data],0,MATCH("ishp_Market",output[#Headers],0)),output[equipment_type],$C$477,output[year],I$478,output[sensitivity],"Base") -> 0.2201594365 | J480: =SUMIFS(INDEX(output[#Data],0,MATCH("ishp_Market",output[#Headers],0)),output[equipment_type],$C$477,output[control_strategy],"Non ASD Control",output[load_type],"Variable",output[year],J$478,output[sensitivity],"Base")/SUMIFS(INDEX(output[#Data],0,MATCH("ishp_Market",output[#Headers],0)),output[equipment_type],$C$477,output[year],J$478,output[sensitivity],"Base") -> 0.2145053193
C481: Constant Load ASD Control | D481: =SUMIFS(INDEX(output[#Data],0,MATCH("ishp_Market",output[#Headers],0)),output[equipment_type],$C$477,output[control_strategy],"ASD Control",output[load_type],"Constant",output[year],D$478,output[sensitivity],"Base")/SUMIFS(INDEX(output[#Data],0,MATCH("ishp_Market",output[#Headers],0)),output[equipment_type],$C$477,output[year],D$478,output[sensitivity],"Base") -> 0.02053672801 | E481: =SUMIFS(INDEX(output[#Data],0,MATCH("ishp_Market",output[#Headers],0)),output[equipment_type],$C$477,output[control_strategy],"ASD Control",output[load_type],"Constant",output[year],E$478,output[sensitivity],"Base")/SUMIFS(INDEX(output[#Data],0,MATCH("ishp_Market",output[#Headers],0)),output[equipment_type],$C$477,output[year],E$478,output[sensitivity],"Base") -> 0.02201386902 | F481: =SUMIFS(INDEX(output[#Data],0,MATCH("ishp_Market",output[#Headers],0)),output[equipment_type],$C$477,output[control_strategy],"ASD Control",output[load_type],"Constant",output[year],F$478,output[sensitivity],"Base")/SUMIFS(INDEX(output[#Data],0,MATCH("ishp_Market",output[#Headers],0)),output[equipment_type],$C$477,output[year],F$478,output[sensitivity],"Base") -> 0.02333750061 | G481: =SUMIFS(INDEX(output[#Data],0,MATCH("ishp_Market",output[#Headers],0)),output[equipment_type],$C$477,output[control_strategy],"ASD Control",output[load_type],"Constant",output[year],G$478,output[sensitivity],"Base")/SUMIFS(INDEX(output[#Data],0,MATCH("ishp_Market",output[#Headers],0)),output[equipment_type],$C$477,output[year],G$478,output[sensitivity],"Base") -> 0.0247213697 | H481: =SUMIFS(INDEX(output[#Data],0,MATCH("ishp_Market",output[#Headers],0)),output[equipment_type],$C$477,output[control_strategy],"ASD Control",output[load_type],"Constant",output[year],H$478,output[sensitivity],"Base")/SUMIFS(INDEX(output[#Data],0,MATCH("ishp_Market",output[#Headers],0)),output[equipment_type],$C$477,output[year],H$478,output[sensitivity],"Base") -> 0.02632349502 | I481: =SUMIFS(INDEX(output[#Data],0,MATCH("ishp_Market",output[#Headers],0)),output[equipment_type],$C$477,output[control_strategy],"ASD Control",output[load_type],"Constant",output[year],I$478,output[sensitivity],"Base")/SUMIFS(INDEX(output[#Data],0,MATCH("ishp_Market",output[#Headers],0)),output[equipment_type],$C$477,output[year],I$478,output[sensitivity],"Base") -> 0.02750243415 | J481: =SUMIFS(INDEX(output[#Data],0,MATCH("ishp_Market",output[#Headers],0)),output[equipment_type],$C$477,output[control_strategy],"ASD Control",output[load_type],"Constant",output[year],J$478,output[sensitivity],"Base")/SUMIFS(INDEX(output[#Data],0,MATCH("ishp_Market",output[#Headers],0)),output[equipment_type],$C$477,output[year],J$478,output[sensitivity],"Base") -> 0.02851812702
C482: Variable Load ASD Control | D482: =SUMIFS(INDEX(output[#Data],0,MATCH("ishp_Market",output[#Headers],0)),output[equipment_type],$C$477,output[control_strategy],"ASD Control",output[load_type],"Variable",output[year],D$478,output[sensitivity],"Base")/SUMIFS(INDEX(output[#Data],0,MATCH("ishp_Market",output[#Headers],0)),output[equipment_type],$C$477,output[year],D$478,output[sensitivity],"Base") -> 0.2857467262 | E482: =SUMIFS(INDEX(output[#Data],0,MATCH("ishp_Market",output[#Headers],0)),output[equipment_type],$C$477,output[control_strategy],"ASD Control",output[load_type],"Variable",output[year],E$478,output[sensitivity],"Base")/SUMIFS(INDEX(output[#Data],0,MATCH("ishp_Market",output[#Headers],0)),output[equipment_type],$C$477,output[year],E$478,output[sensitivity],"Base") -> 0.3062995722 | F482: =SUMIFS(INDEX(output[#Data],0,MATCH("ishp_Market",output[#Headers],0)),output[equipment_type],$C$477,output[control_strategy],"ASD Control",output[load_type],"Variable",output[year],F$478,output[sensitivity],"Base")/SUMIFS(INDEX(output[#Data],0,MATCH("ishp_Market",output[#Headers],0)),output[equipment_type],$C$477,output[year],F$478,output[sensitivity],"Base") -> 0.3247164979 | G482: =SUMIFS(INDEX(output[#Data],0,MATCH("ishp_Market",output[#Headers],0)),output[equipment_type],$C$477,output[control_strategy],"ASD Control",output[load_type],"Variable",output[year],G$478,output[sensitivity],"Base")/SUMIFS(INDEX(output[#Data],0,MATCH("ishp_Market",output[#Headers],0)),output[equipment_type],$C$477,output[year],G$478,output[sensitivity],"Base") -> 0.3439715643 | H482: =SUMIFS(INDEX(output[#Data],0,MATCH("ishp_Market",output[#Headers],0)),output[equipment_type],$C$477,output[control_strategy],"ASD Control",output[load_type],"Variable",output[year],H$478,output[sensitivity],"Base")/SUMIFS(INDEX(output[#Data],0,MATCH("ishp_Market",output[#Headers],0)),output[equipment_type],$C$477,output[year],H$478,output[sensitivity],"Base") -> 0.366263434 | I482: =SUMIFS(INDEX(output[#Data],0,MATCH("ishp_Market",output[#Headers],0)),output[equipment_type],$C$477,output[control_strategy],"ASD Control",output[load_type],"Variable",output[year],I$478,output[sensitivity],"Base")/SUMIFS(INDEX(output[#Data],0,MATCH("ishp_Market",output[#Headers],0)),output[equipment_type],$C$477,output[year],I$478,output[sensitivity],"Base") -> 0.3826671181 | J482: =SUMIFS(INDEX(output[#Data],0,MATCH("ishp_Market",output[#Headers],0)),output[equipment_type],$C$477,output[control_strategy],"ASD Control",output[load_type],"Variable",output[year],J$478,output[sensitivity],"Base")/SUMIFS(INDEX(output[#Data],0,MATCH("ishp_Market",output[#Headers],0)),output[equipment_type],$C$477,output[year],J$478,output[sensitivity],"Base") -> 0.396799404
C484: ="Table for "&H460 -> Table for Figure 30: Distribution of Fans by Control Type and Load Type, by Year (In-Service Motors)
C485: Fans | D485: Year
D486: 2015 | E486: 2016 | F486: 2017 | G486: 2018 | H486: 2019 | I486: 2020 | J486: 2021
C487: Constant Load Non-ASD Control | D487: =SUMIFS(INDEX(output[#Data],0,MATCH("num_motors_Market",output[#Headers],0)),output[equipment_type],$C$477,output[control_strategy],"Non ASD Control",output[load_type],"Constant",output[year],D$478,output[sensitivity],"Base")/SUMIFS(INDEX(output[#Data],0,MATCH("num_motors_Market",output[#Headers],0)),output[equipment_type],$C$477,output[year],D$478,output[sensitivity],"Base") -> 0.4690574538 | E487: =SUMIFS(INDEX(output[#Data],0,MATCH("num_motors_Market",output[#Headers],0)),output[equipment_type],$C$477,output[control_strategy],"Non ASD Control",output[load_type],"Constant",output[year],E$478,output[sensitivity],"Base")/SUMIFS(INDEX(output[#Data],0,MATCH("num_motors_Market",output[#Headers],0)),output[equipment_type],$C$477,output[year],E$478,output[sensitivity],"Base") -> 0.4566344875 | F487: =SUMIFS(INDEX(output[#Data],0,MATCH("num_motors_Market",output[#Headers],0)),output[equipment_type],$C$477,output[control_strategy],"Non ASD Control",output[load_type],"Constant",output[year],F$478,output[sensitivity],"Base")/SUMIFS(INDEX(output[#Data],0,MATCH("num_motors_Market",output[#Headers],0)),output[equipment_type],$C$477,output[year],F$478,output[sensitivity],"Base") -> 0.4427372232 | G487: =SUMIFS(INDEX(output[#Data],0,MATCH("num_motors_Market",output[#Headers],0)),output[equipment_type],$C$477,output[control_strategy],"Non ASD Control",output[load_type],"Constant",output[year],G$478,output[sensitivity],"Base")/SUMIFS(INDEX(output[#Data],0,MATCH("num_motors_Market",output[#Headers],0)),output[equipment_type],$C$477,output[year],G$478,output[sensitivity],"Base") -> 0.4326926437 | H487: =SUMIFS(INDEX(output[#Data],0,MATCH("num_motors_Market",output[#Headers],0)),output[equipment_type],$C$477,output[control_strategy],"Non ASD Control",output[load_type],"Constant",output[year],H$478,output[sensitivity],"Base")/SUMIFS(INDEX(output[#Data],0,MATCH("num_motors_Market",output[#Headers],0)),output[equipment_type],$C$477,output[year],H$478,output[sensitivity],"Base") -> 0.4174605733 | I487: =SUMIFS(INDEX(output[#Data],0,MATCH("num_motors_Market",output[#Headers],0)),output[equipment_type],$C$477,output[control_strategy],"Non ASD Control",output[load_type],"Constant",output[year],I$478,output[sensitivity],"Base")/SUMIFS(INDEX(output[#Data],0,MATCH("num_motors_Market",output[#Headers],0)),output[equipment_type],$C$477,output[year],I$478,output[sensitivity],"Base") -> 0.404900208 | J487: =SUMIFS(INDEX(output[#Data],0,MATCH("num_motors_Market",output[#Headers],0)),output[equipment_type],$C$477,output[control_strategy],"Non ASD Control",output[load_type],"Constant",output[year],J$478,output[sensitivity],"Base")/SUMIFS(INDEX(output[#Data],0,MATCH("num_motors_Market",output[#Headers],0)),output[equipment_type],$C$477,output[year],J$478,output[sensitivity],"Base") -> 0.401896418
C488: Variable Load Non-ASD Control | D488: =SUMIFS(INDEX(output[#Data],0,MATCH("num_motors_Market",output[#Headers],0)),output[equipment_type],$C$477,output[control_strategy],"Non ASD Control",output[load_type],"Variable",output[year],D$478,output[sensitivity],"Base")/SUMIFS(INDEX(output[#Data],0,MATCH("num_motors_Market",output[#Headers],0)),output[equipment_type],$C$477,output[year],D$478,output[sensitivity],"Base") -> 0.279349534 | E488: =SUMIFS(INDEX(output[#Data],0,MATCH("num_motors_Market",output[#Headers],0)),output[equipment_type],$C$477,output[control_strategy],"Non ASD Control",output[load_type],"Variable",output[year],E$478,output[sensitivity],"Base")/SUMIFS(INDEX(output[#Data],0,MATCH("num_motors_Market",output[#Headers],0)),output[equipment_type],$C$477,output[year],E$478,output[sensitivity],"Base") -> 0.2719509737 | F488: =SUMIFS(INDEX(output[#Data],0,MATCH("num_motors_Market",output[#Headers],0)),output[equipment_type],$C$477,output[control_strategy],"Non ASD Control",output[load_type],"Variable",output[year],F$478,output[sensitivity],"Base")/SUMIFS(INDEX(output[#Data],0,MATCH("num_motors_Market",output[#Headers],0)),output[equipment_type],$C$477,output[year],F$478,output[sensitivity],"Base") -> 0.2636743878 | G488: =SUMIFS(INDEX(output[#Data],0,MATCH("num_motors_Market",output[#Headers],0)),output[equipment_type],$C$477,output[control_strategy],"Non ASD Control",output[load_type],"Variable",output[year],G$478,output[sensitivity],"Base")/SUMIFS(INDEX(output[#Data],0,MATCH("num_motors_Market",output[#Headers],0)),output[equipment_type],$C$477,output[year],G$478,output[sensitivity],"Base") -> 0.2576922878 | H488: =SUMIFS(INDEX(output[#Data],0,MATCH("num_motors_Market",output[#Headers],0)),output[equipment_type],$C$477,output[control_strategy],"Non ASD Control",output[load_type],"Variable",output[year],H$478,output[sensitivity],"Base")/SUMIFS(INDEX(output[#Data],0,MATCH("num_motors_Market",output[#Headers],0)),output[equipment_type],$C$477,output[year],H$478,output[sensitivity],"Base") -> 0.2486207514 | I488: =SUMIFS(INDEX(output[#Data],0,MATCH("num_motors_Market",output[#Headers],0)),output[equipment_type],$C$477,output[control_strategy],"Non ASD Control",output[load_type],"Variable",output[year],I$478,output[sensitivity],"Base")/SUMIFS(INDEX(output[#Data],0,MATCH("num_motors_Market",output[#Headers],0)),output[equipment_type],$C$477,output[year],I$478,output[sensitivity],"Base") -> 0.2411403624 | J488: =SUMIFS(INDEX(output[#Data],0,MATCH("num_motors_Market",output[#Headers],0)),output[equipment_type],$C$477,output[control_strategy],"Non ASD Control",output[load_type],"Variable",output[year],J$478,output[sensitivity],"Base")/SUMIFS(INDEX(output[#Data],0,MATCH("num_motors_Market",output[#Headers],0)),output[equipment_type],$C$477,output[year],J$478,output[sensitivity],"Base") -> 0.2393514401
C489: Constant Load ASD Control | D489: =SUMIFS(INDEX(output[#Data],0,MATCH("num_motors_Market",output[#Headers],0)),output[equipment_type],$C$477,output[control_strategy],"ASD Control",output[load_type],"Constant",output[year],D$478,output[sensitivity],"Base")/SUMIFS(INDEX(output[#Data],0,MATCH("num_motors_Market",output[#Headers],0)),output[equipment_type],$C$477,output[year],D$478,output[sensitivity],"Base") -> 0.01686965845 | E489: =SUMIFS(INDEX(output[#Data],0,MATCH("num_motors_Market",output[#Headers],0)),output[equipment_type],$C$477,output[control_strategy],"ASD Control",output[load_type],"Constant",output[year],E$478,output[sensitivity],"Base")/SUMIFS(INDEX(output[#Data],0,MATCH("num_motors_Market",output[#Headers],0)),output[equipment_type],$C$477,output[year],E$478,output[sensitivity],"Base") -> 0.01819871914 | F489: =SUMIFS(INDEX(output[#Data],0,MATCH("num_motors_Market",output[#Headers],0)),output[equipment_type],$C$477,output[control_strategy],"ASD Control",output[load_type],"Constant",output[year],F$478,output[sensitivity],"Base")/SUMIFS(INDEX(output[#Data],0,MATCH("num_motors_Market",output[#Headers],0)),output[equipment_type],$C$477,output[year],F$478,output[sensitivity],"Base") -> 0.01968550638 | G489: =SUMIFS(INDEX(output[#Data],0,MATCH("num_motors_Market",output[#Headers],0)),output[equipment_type],$C$477,output[control_strategy],"ASD Control",output[load_type],"Constant",output[year],G$478,output[sensitivity],"Base")/SUMIFS(INDEX(output[#Data],0,MATCH("num_motors_Market",output[#Headers],0)),output[equipment_type],$C$477,output[year],G$478,output[sensitivity],"Base") -> 0.02076011735 | H489: =SUMIFS(INDEX(output[#Data],0,MATCH("num_motors_Market",output[#Headers],0)),output[equipment_type],$C$477,output[control_strategy],"ASD Control",output[load_type],"Constant",output[year],H$478,output[sensitivity],"Base")/SUMIFS(INDEX(output[#Data],0,MATCH("num_motors_Market",output[#Headers],0)),output[equipment_type],$C$477,output[year],H$478,output[sensitivity],"Base") -> 0.0223897077 | I489: =SUMIFS(INDEX(output[#Data],0,MATCH("num_motors_Market",output[#Headers],0)),output[equipment_type],$C$477,output[control_strategy],"ASD Control",output[load_type],"Constant",output[year],I$478,output[sensitivity],"Base")/SUMIFS(INDEX(output[#Data],0,MATCH("num_motors_Market",output[#Headers],0)),output[equipment_type],$C$477,output[year],I$478,output[sensitivity],"Base") -> 0.02373346791 | J489: =SUMIFS(INDEX(output[#Data],0,MATCH("num_motors_Market",output[#Headers],0)),output[equipment_type],$C$477,output[control_strategy],"ASD Control",output[load_type],"Constant",output[year],J$478,output[sensitivity],"Base")/SUMIFS(INDEX(output[#Data],0,MATCH("num_motors_Market",output[#Headers],0)),output[equipment_type],$C$477,output[year],J$478,output[sensitivity],"Base") -> 0.02405482588
C490: Variable Load ASD Control | D490: =SUMIFS(INDEX(output[#Data],0,MATCH("num_motors_Market",output[#Headers],0)),output[equipment_type],$C$477,output[control_strategy],"ASD Control",output[load_type],"Variable",output[year],D$478,output[sensitivity],"Base")/SUMIFS(INDEX(output[#Data],0,MATCH("num_motors_Market",output[#Headers],0)),output[equipment_type],$C$477,output[year],D$478,output[sensitivity],"Base") -> 0.2347233538 | E490: =SUMIFS(INDEX(output[#Data],0,MATCH("num_motors_Market",output[#Headers],0)),output[equipment_type],$C$477,output[control_strategy],"ASD Control",output[load_type],"Variable",output[year],E$478,output[sensitivity],"Base")/SUMIFS(INDEX(output[#Data],0,MATCH("num_motors_Market",output[#Headers],0)),output[equipment_type],$C$477,output[year],E$478,output[sensitivity],"Base") -> 0.2532158197 | F490: =SUMIFS(INDEX(output[#Data],0,MATCH("num_motors_Market",output[#Headers],0)),output[equipment_type],$C$477,output[control_strategy],"ASD Control",output[load_type],"Variable",output[year],F$478,output[sensitivity],"Base")/SUMIFS(INDEX(output[#Data],0,MATCH("num_motors_Market",output[#Headers],0)),output[equipment_type],$C$477,output[year],F$478,output[sensitivity],"Base") -> 0.2739028826 | G490: =SUMIFS(INDEX(output[#Data],0,MATCH("num_motors_Market",output[#Headers],0)),output[equipment_type],$C$477,output[control_strategy],"ASD Control",output[load_type],"Variable",output[year],G$478,output[sensitivity],"Base")/SUMIFS(INDEX(output[#Data],0,MATCH("num_motors_Market",output[#Headers],0)),output[equipment_type],$C$477,output[year],G$478,output[sensitivity],"Base") -> 0.2888549512 | H490: =SUMIFS(INDEX(output[#Data],0,MATCH("num_motors_Market",output[#Headers],0)),output[equipment_type],$C$477,output[control_strategy],"ASD Control",output[load_type],"Variable",output[year],H$478,output[sensitivity],"Base")/SUMIFS(INDEX(output[#Data],0,MATCH("num_motors_Market",output[#Headers],0)),output[equipment_type],$C$477,output[year],H$478,output[sensitivity],"Base") -> 0.3115289676 | I490: =SUMIFS(INDEX(output[#Data],0,MATCH("num_motors_Market",output[#Headers],0)),output[equipment_type],$C$477,output[control_strategy],"ASD Control",output[load_type],"Variable",output[year],I$478,output[sensitivity],"Base")/SUMIFS(INDEX(output[#Data],0,MATCH("num_motors_Market",output[#Headers],0)),output[equipment_type],$C$477,output[year],I$478,output[sensitivity],"Base") -> 0.3302259617 | J490: =SUMIFS(INDEX(output[#Data],0,MATCH("num_motors_Market",output[#Headers],0)),output[equipment_type],$C$477,output[control_strategy],"ASD Control",output[load_type],"Variable",output[year],J$478,output[sensitivity],"Base")/SUMIFS(INDEX(output[#Data],0,MATCH("num_motors_Market",output[#Headers],0)),output[equipment_type],$C$477,output[year],J$478,output[sensitivity],"Base") -> 0.334697316
C492: Figure 31: Distribution of Fans by Motor Size, 2020 (In-Service Motor HP) | H492: Figure 32: Distribution of Fans by Motor Size, 2020 (In-Service Motors)
C512: ="Table for "&C492 -> Table for Figure 31: Distribution of Fans by Motor Size, 2020 (In-Service Motor HP)
C513: Fans | D513: 1-5 HP | E513: 6-10 HP | F513: 11-20 HP | G513: 21-50 HP | H513: 51-100 HP | I513: 101-200 HP | J513: 201-500 HP | K513: 501-1,000 HP | L513: 1,001+ HP
D514: =SUMIFS(INDEX(output[#Data],0,MATCH("ishp_Market",output[#Headers],0)),output[equipment_type],$C$513,output[motor_size],D$513,output[year],2020,output[sensitivity],"Base")/SUMIFS(INDEX(output[#Data],0,MATCH("ishp_Market",output[#Headers],0)),output[equipment_type],$C$513,output[year],2020,output[sensitivity],"Base") -> 0.09750013087 | E514: =SUMIFS(INDEX(output[#Data],0,MATCH("ishp_Market",output[#Headers],0)),output[equipment_type],$C$513,output[motor_size],E$513,output[year],2020,output[sensitivity],"Base")/SUMIFS(INDEX(output[#Data],0,MATCH("ishp_Market",output[#Headers],0)),output[equipment_type],$C$513,output[year],2020,output[sensitivity],"Base") -> 0.07894566224 | F514: =SUMIFS(INDEX(output[#Data],0,MATCH("ishp_Market",output[#Headers],0)),output[equipment_type],$C$513,output[motor_size],F$513,output[year],2020,output[sensitivity],"Base")/SUMIFS(INDEX(output[#Data],0,MATCH("ishp_Market",output[#Headers],0)),output[equipment_type],$C$513,output[year],2020,output[sensitivity],"Base") -> 0.07894566224 | G514: =SUMIFS(INDEX(output[#Data],0,MATCH("ishp_Market",output[#Headers],0)),output[equipment_type],$C$513,output[motor_size],G$513,output[year],2020,output[sensitivity],"Base")/SUMIFS(INDEX(output[#Data],0,MATCH("ishp_Market",output[#Headers],0)),output[equipment_type],$C$513,output[year],2020,output[sensitivity],"Base") -> 0.1886973882 | H514: =SUMIFS(INDEX(output[#Data],0,MATCH("ishp_Market",output[#Headers],0)),output[equipment_type],$C$513,output[motor_size],H$513,output[year],2020,output[sensitivity],"Base")/SUMIFS(INDEX(output[#Data],0,MATCH("ishp_Market",output[#Headers],0)),output[equipment_type],$C$513,output[year],2020,output[sensitivity],"Base") -> 0.1743009997 | I514: =SUMIFS(INDEX(output[#Data],0,MATCH("ishp_Market",output[#Headers],0)),output[equipment_type],$C$513,output[motor_size],I$513,output[year],2020,output[sensitivity],"Base")/SUMIFS(INDEX(output[#Data],0,MATCH("ishp_Market",output[#Headers],0)),output[equipment_type],$C$513,output[year],2020,output[sensitivity],"Base") -> 0.09842845289 | J514: =SUMIFS(INDEX(output[#Data],0,MATCH("ishp_Market",output[#Headers],0)),output[equipment_type],$C$513,output[motor_size],J$513,output[year],2020,output[sensitivity],"Base")/SUMIFS(INDEX(output[#Data],0,MATCH("ishp_Market",output[#Headers],0)),output[equipment_type],$C$513,output[year],2020,output[sensitivity],"Base") -> 0.1503425657 | K514: =SUMIFS(INDEX(output[#Data],0,MATCH("ishp_Market",output[#Headers],0)),output[equipment_type],$C$513,output[motor_size],K$513,output[year],2020,output[sensitivity],"Base")/SUMIFS(INDEX(output[#Data],0,MATCH("ishp_Market",output[#Headers],0)),output[equipment_type],$C$513,output[year],2020,output[sensitivity],"Base") -> 0.051482007 | L514: =SUMIFS(INDEX(output[#Data],0,MATCH("ishp_Market",output[#Headers],0)),output[equipment_type],$C$513,output[motor_size],L$513,output[year],2020,output[sensitivity],"Base")/SUMIFS(INDEX(output[#Data],0,MATCH("ishp_Market",output[#Headers],0)),output[equipment_type],$C$513,output[year],2020,output[sensitivity],"Base") -> 0.08135713114
C516: ="Table for "&H492 -> Table for Figure 32: Distribution of Fans by Motor Size, 2020 (In-Service Motors)
C517: Fans | D517: 1-5 HP | E517: 6-10 HP | F517: 11-20 HP | G517: 21-50 HP | H517: 51-100 HP | I517: 101-200 HP | J517: 201-500 HP | K517: 501-1,000 HP | L517: 1,001+ HP
D518: =SUMIFS(INDEX(output[#Data],0,MATCH("num_motors_Market",output[#Headers],0)),output[equipment_type],$C$517,output[motor_size],D$517,output[year],2020,output[sensitivity],"Base")/SUMIFS(INDEX(output[#Data],0,MATCH("num_motors_Market",output[#Headers],0)),output[equipment_type],$C$517,output[year],2020,output[sensitivity],"Base") -> 0.5770761825 | E518: =SUMIFS(INDEX(output[#Data],0,MATCH("num_motors_Market",output[#Headers],0)),output[equipment_type],$C$517,output[motor_size],E$517,output[year],2020,output[sensitivity],"Base")/SUMIFS(INDEX(output[#Data],0,MATCH("num_motors_Market",output[#Headers],0)),output[equipment_type],$C$517,output[year],2020,output[sensitivity],"Base") -> 0.1752215394 | F518: =SUMIFS(INDEX(output[#Data],0,MATCH("num_motors_Market",output[#Headers],0)),output[equipment_type],$C$517,output[motor_size],F$517,output[year],2020,output[sensitivity],"Base")/SUMIFS(INDEX(output[#Data],0,MATCH("num_motors_Market",output[#Headers],0)),output[equipment_type],$C$517,output[year],2020,output[sensitivity],"Base") -> 0.09043692355 | G518: =SUMIFS(INDEX(output[#Data],0,MATCH("num_motors_Market",output[#Headers],0)),output[equipment_type],$C$517,output[motor_size],G$517,output[year],2020,output[sensitivity],"Base")/SUMIFS(INDEX(output[#Data],0,MATCH("num_motors_Market",output[#Headers],0)),output[equipment_type],$C$517,output[year],2020,output[sensitivity],"Base") -> 0.09438147111 | H518: =SUMIFS(INDEX(output[#Data],0,MATCH("num_motors_Market",output[#Headers],0)),output[equipment_type],$C$517,output[motor_size],H$517,output[year],2020,output[sensitivity],"Base")/SUMIFS(INDEX(output[#Data],0,MATCH("num_motors_Market",output[#Headers],0)),output[equipment_type],$C$517,output[year],2020,output[sensitivity],"Base") -> 0.04099228548 | I518: =SUMIFS(INDEX(output[#Data],0,MATCH("num_motors_Market",output[#Headers],0)),output[equipment_type],$C$517,output[motor_size],I$517,output[year],2020,output[sensitivity],"Base")/SUMIFS(INDEX(output[#Data],0,MATCH("num_motors_Market",output[#Headers],0)),output[equipment_type],$C$517,output[year],2020,output[sensitivity],"Base") -> 0.01161270424 | J518: =SUMIFS(INDEX(output[#Data],0,MATCH("num_motors_Market",output[#Headers],0)),output[equipment_type],$C$517,output[motor_size],J$517,output[year],2020,output[sensitivity],"Base")/SUMIFS(INDEX(output[#Data],0,MATCH("num_motors_Market",output[#Headers],0)),output[equipment_type],$C$517,output[year],2020,output[sensitivity],"Base") -> 0.007616284203 | K518: =SUMIFS(INDEX(output[#Data],0,MATCH("num_motors_Market",output[#Headers],0)),output[equipment_type],$C$517,output[motor_size],K$517,output[year],2020,output[sensitivity],"Base")/SUMIFS(INDEX(output[#Data],0,MATCH("num_motors_Market",output[#Headers],0)),output[equipment_type],$C$517,output[year],2020,output[sensitivity],"Base") -> 0.001218018765 | L518: =SUMIFS(INDEX(output[#Data],0,MATCH("num_motors_Market",output[#Headers],0)),output[equipment_type],$C$517,output[motor_size],L$517,output[year],2020,output[sensitivity],"Base")/SUMIFS(INDEX(output[#Data],0,MATCH("num_motors_Market",output[#Headers],0)),output[equipment_type],$C$517,output[year],2020,output[sensitivity],"Base") -> 0.001444590758
C520: Figure 33: Distribution of ASD-Controlled Fans by Motor Size, 2020 (In-Service Motor HP) | H520: Figure 34: Distribution of ASD-Controlled Fans by Motor Size, 2020 (In-Service Motors)
C537: ="Table for "&C520 -> Table for Figure 33: Distribution of ASD-Controlled Fans by Motor Size, 2020 (In-Service Motor HP)
C538: Fans | D538: 1-5 HP | E538: 6-10 HP | F538: 11-20 HP | G538: 21-50 HP | H538: 51-100 HP | I538: 101-200 HP | J538: 201-500 HP | K538: 501-1,000 HP | L538: 1,001+ HP
D539: =SUMIFS(INDEX(output[#Data],0,MATCH("ishp_Market",output[#Headers],0)),output[equipment_type],$C$538,output[motor_size],D$538,output[year],2020,output[control_strategy],"ASD Control",output[sensitivity],"Base")/SUMIFS(INDEX(output[#Data],0,MATCH("ishp_Market",output[#Headers],0)),output[equipment_type],$C$538,output[year],2020,output[control_strategy],"ASD Control",output[sensitivity],"Base") -> 0.05753855927 | E539: =SUMIFS(INDEX(output[#Data],0,MATCH("ishp_Market",output[#Headers],0)),output[equipment_type],$C$538,output[motor_size],E$538,output[year],2020,output[control_strategy],"ASD Control",output[sensitivity],"Base")/SUMIFS(INDEX(output[#Data],0,MATCH("ishp_Market",output[#Headers],0)),output[equipment_type],$C$538,output[year],2020,output[control_strategy],"ASD Control",output[sensitivity],"Base") -> 0.09744582911 | F539: =SUMIFS(INDEX(output[#Data],0,MATCH("ishp_Market",output[#Headers],0)),output[equipment_type],$C$538,output[motor_size],F$538,output[year],2020,output[control_strategy],"ASD Control",output[sensitivity],"Base")/SUMIFS(INDEX(output[#Data],0,MATCH("ishp_Market",output[#Headers],0)),output[equipment_type],$C$538,output[year],2020,output[control_strategy],"ASD Control",output[sensitivity],"Base") -> 0.09744582911 | G539: =SUMIFS(INDEX(output[#Data],0,MATCH("ishp_Market",output[#Headers],0)),output[equipment_type],$C$538,output[motor_size],G$538,output[year],2020,output[control_strategy],"ASD Control",output[sensitivity],"Base")/SUMIFS(INDEX(output[#Data],0,MATCH("ishp_Market",output[#Headers],0)),output[equipment_type],$C$538,output[year],2020,output[control_strategy],"ASD Control",output[sensitivity],"Base") -> 0.2400226944 | H539: =SUMIFS(INDEX(output[#Data],0,MATCH("ishp_Market",output[#Headers],0)),output[equipment_type],$C$538,output[motor_size],H$538,output[year],2020,output[control_strategy],"ASD Control",output[sensitivity],"Base")/SUMIFS(INDEX(output[#Data],0,MATCH("ishp_Market",output[#Headers],0)),output[equipment_type],$C$538,output[year],2020,output[control_strategy],"ASD Control",output[sensitivity],"Base") -> 0.2305910488 | I539: =SUMIFS(INDEX(output[#Data],0,MATCH("ishp_Market",output[#Headers],0)),output[equipment_type],$C$538,output[motor_size],I$538,output[year],2020,output[control_strategy],"ASD Control",output[sensitivity],"Base")/SUMIFS(INDEX(output[#Data],0,MATCH("ishp_Market",output[#Headers],0)),output[equipment_type],$C$538,output[year],2020,output[control_strategy],"ASD Control",output[sensitivity],"Base") -> 0.1020845098 | J539: =SUMIFS(INDEX(output[#Data],0,MATCH("ishp_Market",output[#Headers],0)),output[equipment_type],$C$538,output[motor_size],J$538,output[year],2020,output[control_strategy],"ASD Control",output[sensitivity],"Base")/SUMIFS(INDEX(output[#Data],0,MATCH("ishp_Market",output[#Headers],0)),output[equipment_type],$C$538,output[year],2020,output[control_strategy],"ASD Control",output[sensitivity],"Base") -> 0.150709227 | K539: =SUMIFS(INDEX(output[#Data],0,MATCH("ishp_Market",output[#Headers],0)),output[equipment_type],$C$538,output[motor_size],K$538,output[year],2020,output[control_strategy],"ASD Control",output[sensitivity],"Base")/SUMIFS(INDEX(output[#Data],0,MATCH("ishp_Market",output[#Headers],0)),output[equipment_type],$C$538,output[year],2020,output[control_strategy],"ASD Control",output[sensitivity],"Base") -> 0.01684754903 | L539: =SUMIFS(INDEX(output[#Data],0,MATCH("ishp_Market",output[#Headers],0)),output[equipment_type],$C$538,output[motor_size],L$538,output[year],2020,output[control_strategy],"ASD Control",output[sensitivity],"Base")/SUMIFS(INDEX(output[#Data],0,MATCH("ishp_Market",output[#Headers],0)),output[equipment_type],$C$538,output[year],2020,output[control_strategy],"ASD Control",output[sensitivity],"Base") -> 0.007314753469
C541: ="Table for "&H520 -> Table for Figure 34: Distribution of ASD-Controlled Fans by Motor Size, 2020 (In-Service Motors)
C542: Fans | D542: 1-5 HP | E542: 6-10 HP | F542: 11-20 HP | G542: 21-50 HP | H542: 51-100 HP | I542: 101-200 HP | J542: 201-500 HP | K542: 501-1,000 HP | L542: 1,001+ HP
D543: =SUMIFS(INDEX(output[#Data],0,MATCH("num_motors_Market",output[#Headers],0)),output[equipment_type],$C$542,output[motor_size],D$542,output[year],2020,output[control_strategy],"ASD Control",output[sensitivity],"Base")/SUMIFS(INDEX(output[#Data],0,MATCH("num_motors_Market",output[#Headers],0)),output[equipment_type],$C$542,output[year],2020,output[control_strategy],"ASD Control",output[sensitivity],"Base") -> 0.3946361511 | E543: =SUMIFS(INDEX(output[#Data],0,MATCH("num_motors_Market",output[#Headers],0)),output[equipment_type],$C$542,output[motor_size],E$542,output[year],2020,output[control_strategy],"ASD Control",output[sensitivity],"Base")/SUMIFS(INDEX(output[#Data],0,MATCH("num_motors_Market",output[#Headers],0)),output[equipment_type],$C$542,output[year],2020,output[control_strategy],"ASD Control",output[sensitivity],"Base") -> 0.2506296262 | F543: =SUMIFS(INDEX(output[#Data],0,MATCH("num_motors_Market",output[#Headers],0)),output[equipment_type],$C$542,output[motor_size],F$542,output[year],2020,output[control_strategy],"ASD Control",output[sensitivity],"Base")/SUMIFS(INDEX(output[#Data],0,MATCH("num_motors_Market",output[#Headers],0)),output[equipment_type],$C$542,output[year],2020,output[control_strategy],"ASD Control",output[sensitivity],"Base") -> 0.1293572264 | G543: =SUMIFS(INDEX(output[#Data],0,MATCH("num_motors_Market",output[#Headers],0)),output[equipment_type],$C$542,output[motor_size],G$542,output[year],2020,output[control_strategy],"ASD Control",output[sensitivity],"Base")/SUMIFS(INDEX(output[#Data],0,MATCH("num_motors_Market",output[#Headers],0)),output[equipment_type],$C$542,output[year],2020,output[control_strategy],"ASD Control",output[sensitivity],"Base") -> 0.1391179252 | H543: =SUMIFS(INDEX(output[#Data],0,MATCH("num_motors_Market",output[#Headers],0)),output[equipment_type],$C$542,output[motor_size],H$542,output[year],2020,output[control_strategy],"ASD Control",output[sensitivity],"Base")/SUMIFS(INDEX(output[#Data],0,MATCH("num_motors_Market",output[#Headers],0)),output[equipment_type],$C$542,output[year],2020,output[control_strategy],"ASD Control",output[sensitivity],"Base") -> 0.06284267038 | I543: =SUMIFS(INDEX(output[#Data],0,MATCH("num_motors_Market",output[#Headers],0)),output[equipment_type],$C$542,output[motor_size],I$542,output[year],2020,output[control_strategy],"ASD Control",output[sensitivity],"Base")/SUMIFS(INDEX(output[#Data],0,MATCH("num_motors_Market",output[#Headers],0)),output[equipment_type],$C$542,output[year],2020,output[control_strategy],"ASD Control",output[sensitivity],"Base") -> 0.01395669173 | J543: =SUMIFS(INDEX(output[#Data],0,MATCH("num_motors_Market",output[#Headers],0)),output[equipment_type],$C$542,output[motor_size],J$542,output[year],2020,output[control_strategy],"ASD Control",output[sensitivity],"Base")/SUMIFS(INDEX(output[#Data],0,MATCH("num_motors_Market",output[#Headers],0)),output[equipment_type],$C$542,output[year],2020,output[control_strategy],"ASD Control",output[sensitivity],"Base") -> 0.008847304163 | K543: =SUMIFS(INDEX(output[#Data],0,MATCH("num_motors_Market",output[#Headers],0)),output[equipment_type],$C$542,output[motor_size],K$542,output[year],2020,output[control_strategy],"ASD Control",output[sensitivity],"Base")/SUMIFS(INDEX(output[#Data],0,MATCH("num_motors_Market",output[#Headers],0)),output[equipment_type],$C$542,output[year],2020,output[control_strategy],"ASD Control",output[sensitivity],"Base") -> 0.000461897031 | L543: =SUMIFS(INDEX(output[#Data],0,MATCH("num_motors_Market",output[#Headers],0)),output[equipment_type],$C$542,output[motor_size],L$542,output[year],2020,output[control_strategy],"ASD Control",output[sensitivity],"Base")/SUMIFS(INDEX(output[#Data],0,MATCH("num_motors_Market",output[#Headers],0)),output[equipment_type],$C$542,output[year],2020,output[control_strategy],"ASD Control",output[sensitivity],"Base") -> 0.0001505077391
C547: Figure 35: Distribution of Pumps by Control Type and Load Type, by Year (In-Service Motor HP) | H547: Figure 36: Distribution of Pumps by Control Type and Load Type, by Year (In-Service Motors)
C563: ="Table for "&C547 -> Table for Figure 35: Distribution of Pumps by Control Type and Load Type, by Year (In-Service Motor HP)
C564: Pumps | D564: Year
D565: 2015 | E565: 2016 | F565: 2017 | G565: 2018 | H565: 2019 | I565: 2020 | J565: 2021
... 124 more rows

Sheet Facility Type Specific Results
C2: Facility Type Specific Model Results
C3: This tab presents the ASD Model results for specific industries. Use the drop down list in cell D13 to select change the industry type. These results are separated into four sections:
C4: 1. Installed Stock
C5: 2. Market Characteristics
C6: 3. Equipment Sales
C7: 4. Energy Consumption and Momentum Savings (all results at busbar)
C9: Regional Momentum Savings, 2016-2021 (aMW at busbar)
C10: Fans | D10: =F660 -> 0.5989578956
C11: Pumps | D11: =F679 -> 0.4074543319
C13: Select Industry Type → | D13: Wood Products
C15: Industry Definition
C16: =INDEX(FacilityDefinitions!$E$5:$E$15,MATCH(D13,FacilityDefinitions!$C$5:$C$15,0)) -> Establishments in the Wood Product Manufacturing subsector manufacture wood products, such as lumber, plywood, veneers, wood containers, wood flooring, wood trusses, manufactured homes (i.e., mobile homes), and prefabricated wood buildings. Certain wood products NAICS codes are carved out of the 7th Plan scope compared to the Model. Specifically 3219 is not included in the 7th Plan scope.
C18: Installed Stock
C20: ="This section presents the annual magnitude of the installed stock of pumps, fans, and ASDs in the "&D13&" industry. The model calculates the motor HP and the number of motors in the region in each year. Installed stock is grouped into two categories." -> This section presents the annual magnitude of the installed stock of pumps, fans, and ASDs in the Wood Products industry. The model calculates the motor HP and the number of motors in the region in each year. Installed stock is grouped into two categories.
C21: In-Service equipment operate (that is, consume energy) in the identified year. Out-of-Service equipment exist in the region but do not consume energy (e.g., a pump installed on a non-operational production line, a back-up pump that never sees service). Installed equipment equals in-service plus out-of-service equipment
C22: Motor HP can move between in-service and out-of-service, depending on the demand for production within a specific facility type. The information below is given in terms of both motor HP and number of motors.
C24: Figure 1: Installed Stock of Fans, by Year (Installed Motor HP) | H24: Figure 2: Installed Stock of Fans, by Year (Installed Motors)
C40: ="Table for "&C24 -> Table for Figure 1: Installed Stock of Fans, by Year (Installed Motor HP)
C41: Fans | D41: Year
D42: 2015 | E42: 2016 | F42: 2017 | G42: 2018 | H42: 2019 | I42: 2020 | J42: 2021
C43: In-Service Motor HP | D43: =SUMIFS(INDEX(output[#Data],0,MATCH("ishp_Market",output[#Headers],0)),output[equipment_type],$C$41,output[year],D$42,output[facility_type],$D$13,output[sensitivity],"Base") -> 330582.4688 | E43: =SUMIFS(INDEX(output[#Data],0,MATCH("ishp_Market",output[#Headers],0)),output[equipment_type],$C$41,output[year],E$42,output[facility_type],$D$13,output[sensitivity],"Base") -> 307070.2388 | F43: =SUMIFS(INDEX(output[#Data],0,MATCH("ishp_Market",output[#Headers],0)),output[equipment_type],$C$41,output[year],F$42,output[facility_type],$D$13,output[sensitivity],"Base") -> 303203.0792 | G43: =SUMIFS(INDEX(output[#Data],0,MATCH("ishp_Market",output[#Headers],0)),output[equipment_type],$C$41,output[year],G$42,output[facility_type],$D$13,output[sensitivity],"Base") -> 306607.0955 | H43: =SUMIFS(INDEX(output[#Data],0,MATCH("ishp_Market",output[#Headers],0)),output[equipment_type],$C$41,output[year],H$42,output[facility_type],$D$13,output[sensitivity],"Base") -> 302183.9218 | I43: =SUMIFS(INDEX(output[#Data],0,MATCH("ishp_Market",output[#Headers],0)),output[equipment_type],$C$41,output[year],I$42,output[facility_type],$D$13,output[sensitivity],"Base") -> 305511.2722 | J43: =SUMIFS(INDEX(output[#Data],0,MATCH("ishp_Market",output[#Headers],0)),output[equipment_type],$C$41,output[year],J$42,output[facility_type],$D$13,output[sensitivity],"Base") -> 274412.1424
C44: Out-of-Service Motor HP | D44: =SUMIFS(INDEX(output[#Data],0,MATCH("ooshp_Market",output[#Headers],0)),output[equipment_type],$C$41,output[year],D$42,output[facility_type],$D$13,output[sensitivity],"Base") -> 128355.4615 | E44: =SUMIFS(INDEX(output[#Data],0,MATCH("ooshp_Market",output[#Headers],0)),output[equipment_type],$C$41,output[year],E$42,output[facility_type],$D$13,output[sensitivity],"Base") -> 147352.2459 | F44: =SUMIFS(INDEX(output[#Data],0,MATCH("ooshp_Market",output[#Headers],0)),output[equipment_type],$C$41,output[year],F$42,output[facility_type],$D$13,output[sensitivity],"Base") -> 150883.1722 | G44: =SUMIFS(INDEX(output[#Data],0,MATCH("ooshp_Market",output[#Headers],0)),output[equipment_type],$C$41,output[year],G$42,output[facility_type],$D$13,output[sensitivity],"Base") -> 147520.7104 | H44: =SUMIFS(INDEX(output[#Data],0,MATCH("ooshp_Market",output[#Headers],0)),output[equipment_type],$C$41,output[year],H$42,output[facility_type],$D$13,output[sensitivity],"Base") -> 151849.8339 | I44: =SUMIFS(INDEX(output[#Data],0,MATCH("ooshp_Market",output[#Headers],0)),output[equipment_type],$C$41,output[year],I$42,output[facility_type],$D$13,output[sensitivity],"Base") -> 148597.4342 | J44: =SUMIFS(INDEX(output[#Data],0,MATCH("ooshp_Market",output[#Headers],0)),output[equipment_type],$C$41,output[year],J$42,output[facility_type],$D$13,output[sensitivity],"Base") -> 176551.3313
C45: Total Motor HP | D45: =SUM(D43:D44) -> 458937.9303 | E45: 454422.4847 | F45: 454086.2514 | G45: 454127.8059 | H45: 454033.7556 | I45: 454108.7064 | J45: 450963.4737
C48: ="Table for "&H24 -> Table for Figure 2: Installed Stock of Fans, by Year (Installed Motors)
C49: Fans | D49: Year
D50: 2015 | E50: 2016 | F50: 2017 | G50: 2018 | H50: 2019 | I50: 2020 | J50: 2021
C51: Number of In-Service Motors | D51: =SUMIFS(INDEX(output[#Data],0,MATCH("num_motors_Market",output[#Headers],0)),output[equipment_type],$C$49,output[year],D$50,output[facility_type],$D$13,output[sensitivity],"Base") -> 6370.188273 | E51: =SUMIFS(INDEX(output[#Data],0,MATCH("num_motors_Market",output[#Headers],0)),output[equipment_type],$C$49,output[year],E$50,output[facility_type],$D$13,output[sensitivity],"Base") -> 6067.927808 | F51: =SUMIFS(INDEX(output[#Data],0,MATCH("num_motors_Market",output[#Headers],0)),output[equipment_type],$C$49,output[year],F$50,output[facility_type],$D$13,output[sensitivity],"Base") -> 6125.435093 | G51: =SUMIFS(INDEX(output[#Data],0,MATCH("num_motors_Market",output[#Headers],0)),output[equipment_type],$C$49,output[year],G$50,output[facility_type],$D$13,output[sensitivity],"Base") -> 6425.616645 | H51: =SUMIFS(INDEX(output[#Data],0,MATCH("num_motors_Market",output[#Headers],0)),output[equipment_type],$C$49,output[year],H$50,output[facility_type],$D$13,output[sensitivity],"Base") -> 6560.993241 | I51: =SUMIFS(INDEX(output[#Data],0,MATCH("num_motors_Market",output[#Headers],0)),output[equipment_type],$C$49,output[year],I$50,output[facility_type],$D$13,output[sensitivity],"Base") -> 6863.821529 | J51: =SUMIFS(INDEX(output[#Data],0,MATCH("num_motors_Market",output[#Headers],0)),output[equipment_type],$C$49,output[year],J$50,output[facility_type],$D$13,output[sensitivity],"Base") -> 6372.240581
C52: Number of Out-of-Service Motors | D52: =SUMIFS(INDEX(output[#Data],0,MATCH("num_motors_ooshp_Market",output[#Headers],0)),output[equipment_type],$C$49,output[year],D$50,output[facility_type],$D$13,output[sensitivity],"Base") -> 2408.665733 | E52: =SUMIFS(INDEX(output[#Data],0,MATCH("num_motors_ooshp_Market",output[#Headers],0)),output[equipment_type],$C$49,output[year],E$50,output[facility_type],$D$13,output[sensitivity],"Base") -> 2782.013124 | F52: =SUMIFS(INDEX(output[#Data],0,MATCH("num_motors_ooshp_Market",output[#Headers],0)),output[equipment_type],$C$49,output[year],F$50,output[facility_type],$D$13,output[sensitivity],"Base") -> 2858.360959 | G52: =SUMIFS(INDEX(output[#Data],0,MATCH("num_motors_ooshp_Market",output[#Headers],0)),output[equipment_type],$C$49,output[year],G$50,output[facility_type],$D$13,output[sensitivity],"Base") -> 2802.137438 | H52: =SUMIFS(INDEX(output[#Data],0,MATCH("num_motors_ooshp_Market",output[#Headers],0)),output[equipment_type],$C$49,output[year],H$50,output[facility_type],$D$13,output[sensitivity],"Base") -> 2905.110342 | I52: =SUMIFS(INDEX(output[#Data],0,MATCH("num_motors_ooshp_Market",output[#Headers],0)),output[equipment_type],$C$49,output[year],I$50,output[facility_type],$D$13,output[sensitivity],"Base") -> 2846.31633 | J52: =SUMIFS(INDEX(output[#Data],0,MATCH("num_motors_ooshp_Market",output[#Headers],0)),output[equipment_type],$C$49,output[year],J$50,output[facility_type],$D$13,output[sensitivity],"Base") -> 3485.158733
C53: Total Number of Motors | D53: =SUM(D51:D52) -> 8778.854006 | E53: 8849.940931 | F53: 8983.796053 | G53: 9227.754084 | H53: 9466.103583 | I53: 9710.137859 | J53: 9857.399314
C56: Figure 3: In-Service Fans, by Control Strategy and Year (In-Service Motor HP) | H56: Figure 4: In-Service Fans, by Control Strategy and Year (In-Service Motors)
C74: ="Table for "&C56 -> Table for Figure 3: In-Service Fans, by Control Strategy and Year (In-Service Motor HP)
C75: Fans | D75: Year
D76: 2015 | E76: 2016 | F76: 2017 | G76: 2018 | H76: 2019 | I76: 2020 | J76: 2021
C77: In-Service Non ASD-Controlled Motor HP | D77: =SUMIFS(INDEX(output[#Data],0,MATCH("ishp_Market",output[#Headers],0)),output[equipment_type],$C$75,output[year],D$76,output[facility_type],$D$13,output[control_strategy],"Non ASD Control",output[sensitivity],"Base") -> 277536.7714 | E77: =SUMIFS(INDEX(output[#Data],0,MATCH("ishp_Market",output[#Headers],0)),output[equipment_type],$C$75,output[year],E$76,output[facility_type],$D$13,output[control_strategy],"Non ASD Control",output[sensitivity],"Base") -> 255143.5983 | F77: =SUMIFS(INDEX(output[#Data],0,MATCH("ishp_Market",output[#Headers],0)),output[equipment_type],$C$75,output[year],F$76,output[facility_type],$D$13,output[control_strategy],"Non ASD Control",output[sensitivity],"Base") -> 249573.7675 | G77: =SUMIFS(INDEX(output[#Data],0,MATCH("ishp_Market",output[#Headers],0)),output[equipment_type],$C$75,output[year],G$76,output[facility_type],$D$13,output[control_strategy],"Non ASD Control",output[sensitivity],"Base") -> 248303.6375 | H77: =SUMIFS(INDEX(output[#Data],0,MATCH("ishp_Market",output[#Headers],0)),output[equipment_type],$C$75,output[year],H$76,output[facility_type],$D$13,output[control_strategy],"Non ASD Control",output[sensitivity],"Base") -> 240708.2471 | I77: =SUMIFS(INDEX(output[#Data],0,MATCH("ishp_Market",output[#Headers],0)),output[equipment_type],$C$75,output[year],I$76,output[facility_type],$D$13,output[control_strategy],"Non ASD Control",output[sensitivity],"Base") -> 239301.1839 | J77: =SUMIFS(INDEX(output[#Data],0,MATCH("ishp_Market",output[#Headers],0)),output[equipment_type],$C$75,output[year],J$76,output[facility_type],$D$13,output[control_strategy],"Non ASD Control",output[sensitivity],"Base") -> 211297.3496
C78: In-Service ASD-Controlled Motor HP | D78: =SUMIFS(INDEX(output[#Data],0,MATCH("ishp_Market",output[#Headers],0)),output[equipment_type],$C$75,output[year],D$76,output[facility_type],$D$13,output[control_strategy],"ASD Control",output[sensitivity],"Base") -> 53045.69745 | E78: =SUMIFS(INDEX(output[#Data],0,MATCH("ishp_Market",output[#Headers],0)),output[equipment_type],$C$75,output[year],E$76,output[facility_type],$D$13,output[control_strategy],"ASD Control",output[sensitivity],"Base") -> 51926.6405 | F78: =SUMIFS(INDEX(output[#Data],0,MATCH("ishp_Market",output[#Headers],0)),output[equipment_type],$C$75,output[year],F$76,output[facility_type],$D$13,output[control_strategy],"ASD Control",output[sensitivity],"Base") -> 53629.31166 | G78: =SUMIFS(INDEX(output[#Data],0,MATCH("ishp_Market",output[#Headers],0)),output[equipment_type],$C$75,output[year],G$76,output[facility_type],$D$13,output[control_strategy],"ASD Control",output[sensitivity],"Base") -> 58303.45804 | H78: =SUMIFS(INDEX(output[#Data],0,MATCH("ishp_Market",output[#Headers],0)),output[equipment_type],$C$75,output[year],H$76,output[facility_type],$D$13,output[control_strategy],"ASD Control",output[sensitivity],"Base") -> 61475.67465 | I78: =SUMIFS(INDEX(output[#Data],0,MATCH("ishp_Market",output[#Headers],0)),output[equipment_type],$C$75,output[year],I$76,output[facility_type],$D$13,output[control_strategy],"ASD Control",output[sensitivity],"Base") -> 66210.0883 | J78: =SUMIFS(INDEX(output[#Data],0,MATCH("ishp_Market",output[#Headers],0)),output[equipment_type],$C$75,output[year],J$76,output[facility_type],$D$13,output[control_strategy],"ASD Control",output[sensitivity],"Base") -> 63114.79275
C79: ASD Saturation (% of Motor HP) | D79: =D78/SUM(D77:D78) -> 0.1604613144 | E79: =E78/SUM(E77:E78) -> 0.1691034622 | F79: 0.1768758807 | G79: 0.1901569105 | H79: 0.2034379404 | I79: 0.2167189702 | J79: 0.23
C81: ="Table for "&H56 -> Table for Figure 4: In-Service Fans, by Control Strategy and Year (In-Service Motors)
C82: Fans | D82: Year
D83: 2015 | E83: 2016 | F83: 2017 | G83: 2018 | H83: 2019 | I83: 2020 | J83: 2021
C84: Number of In-Service Non ASD-Controlled Motors | D84: =SUMIFS(INDEX(output[#Data],0,MATCH("num_motors_Market",output[#Headers],0)),output[equipment_type],$C$82,output[year],D$83,output[facility_type],$D$13,output[sensitivity],"Base") -> 6370.188273 | E84: =SUMIFS(INDEX(output[#Data],0,MATCH("num_motors_Market",output[#Headers],0)),output[equipment_type],$C$82,output[year],E$83,output[facility_type],$D$13,output[sensitivity],"Base") -> 6067.927808 | F84: =SUMIFS(INDEX(output[#Data],0,MATCH("num_motors_Market",output[#Headers],0)),output[equipment_type],$C$82,output[year],F$83,output[facility_type],$D$13,output[sensitivity],"Base") -> 6125.435093 | G84: =SUMIFS(INDEX(output[#Data],0,MATCH("num_motors_Market",output[#Headers],0)),output[equipment_type],$C$82,output[year],G$83,output[facility_type],$D$13,output[sensitivity],"Base") -> 6425.616645 | H84: =SUMIFS(INDEX(output[#Data],0,MATCH("num_motors_Market",output[#Headers],0)),output[equipment_type],$C$82,output[year],H$83,output[facility_type],$D$13,output[sensitivity],"Base") -> 6560.993241 | I84: =SUMIFS(INDEX(output[#Data],0,MATCH("num_motors_Market",output[#Headers],0)),output[equipment_type],$C$82,output[year],I$83,output[facility_type],$D$13,output[sensitivity],"Base") -> 6863.821529 | J84: =SUMIFS(INDEX(output[#Data],0,MATCH("num_motors_Market",output[#Headers],0)),output[equipment_type],$C$82,output[year],J$83,output[facility_type],$D$13,output[sensitivity],"Base") -> 6372.240581
C85: Number of In-Service ASD-Controlled Motors | D85: =SUMIFS(INDEX(output[#Data],0,MATCH("num_motors_Market",output[#Headers],0)),output[equipment_type],$C$75,output[year],D$76,output[facility_type],$D$13,output[control_strategy],"ASD Control",output[sensitivity],"Base") -> 3552.999879 | E85: =SUMIFS(INDEX(output[#Data],0,MATCH("num_motors_Market",output[#Headers],0)),output[equipment_type],$C$75,output[year],E$76,output[facility_type],$D$13,output[control_strategy],"ASD Control",output[sensitivity],"Base") -> 3478.045464 | F85: =SUMIFS(INDEX(output[#Data],0,MATCH("num_motors_Market",output[#Headers],0)),output[equipment_type],$C$75,output[year],F$76,output[facility_type],$D$13,output[control_strategy],"ASD Control",output[sensitivity],"Base") -> 3592.090349 | G85: =SUMIFS(INDEX(output[#Data],0,MATCH("num_motors_Market",output[#Headers],0)),output[equipment_type],$C$75,output[year],G$76,output[facility_type],$D$13,output[control_strategy],"ASD Control",output[sensitivity],"Base") -> 3905.16459 | H85: =SUMIFS(INDEX(output[#Data],0,MATCH("num_motors_Market",output[#Headers],0)),output[equipment_type],$C$75,output[year],H$76,output[facility_type],$D$13,output[control_strategy],"ASD Control",output[sensitivity],"Base") -> 4117.639603 | I85: =SUMIFS(INDEX(output[#Data],0,MATCH("num_motors_Market",output[#Headers],0)),output[equipment_type],$C$75,output[year],I$76,output[facility_type],$D$13,output[control_strategy],"ASD Control",output[sensitivity],"Base") -> 4434.750546 | J85: =SUMIFS(INDEX(output[#Data],0,MATCH("num_motors_Market",output[#Headers],0)),output[equipment_type],$C$75,output[year],J$76,output[facility_type],$D$13,output[control_strategy],"ASD Control",output[sensitivity],"Base") -> 4227.427704
C86: ASD Saturation (% of Motors) | D86: =D85/SUM(D84:D85) -> 0.358050238 | E86: =E85/SUM(E84:E85) -> 0.3643468681 | F86: 0.3696507274 | G86: 0.3780125144 | H86: 0.3855961398 | I86: 0.3925053995 | J86: 0.3988264152
C88: Figure 5: ASD-Controlled Fans, by Year (In-Service Motor HP) | H88: Figure 6: ASD-Controlled Fans, by Year (In-Service Motors)
C105: ="Table for "&C88 -> Table for Figure 5: ASD-Controlled Fans, by Year (In-Service Motor HP)
C106: Fans | D106: Year
C107: Pumps | D107: 2015 | E107: 2016 | F107: 2017 | G107: 2018 | H107: 2019 | I107: 2020 | J107: 2021
C108: Baseline ASD-Equipped Motor HP | D108: =SUMIFS(INDEX(output[#Data],0,MATCH("ishp_baseline",output[#Headers],0)),output[equipment_type],$C$106,output[year],D$107,output[control_strategy],"ASD Control",output[facility_type],$D$13,output[sensitivity],"Base") -> 53045.69745 | E108: =SUMIFS(INDEX(output[#Data],0,MATCH("ishp_baseline",output[#Headers],0)),output[equipment_type],$C$106,output[year],E$107,output[control_strategy],"ASD Control",output[facility_type],$D$13,output[sensitivity],"Base") -> 50740.61622 | F108: =SUMIFS(INDEX(output[#Data],0,MATCH("ishp_baseline",output[#Headers],0)),output[equipment_type],$C$106,output[year],F$107,output[control_strategy],"ASD Control",output[facility_type],$D$13,output[sensitivity],"Base") -> 51404.99208 | G108: =SUMIFS(INDEX(output[#Data],0,MATCH("ishp_baseline",output[#Headers],0)),output[equipment_type],$C$106,output[year],G$107,output[control_strategy],"ASD Control",output[facility_type],$D$13,output[sensitivity],"Base") -> 54234.26387 | H108: =SUMIFS(INDEX(output[#Data],0,MATCH("ishp_baseline",output[#Headers],0)),output[equipment_type],$C$106,output[year],H$107,output[control_strategy],"ASD Control",output[facility_type],$D$13,output[sensitivity],"Base") -> 55671.53526 | I108: =SUMIFS(INDEX(output[#Data],0,MATCH("ishp_baseline",output[#Headers],0)),output[equipment_type],$C$106,output[year],I$107,output[control_strategy],"ASD Control",output[facility_type],$D$13,output[sensitivity],"Base") -> 58528.64137 | J108: =SUMIFS(INDEX(output[#Data],0,MATCH("ishp_baseline",output[#Headers],0)),output[equipment_type],$C$106,output[year],J$107,output[control_strategy],"ASD Control",output[facility_type],$D$13,output[sensitivity],"Base") -> 54586.46336
C109: Market ASD-Equipped Motor HP | D109: =SUMIFS(INDEX(output[#Data],0,MATCH("ishp_Market",output[#Headers],0)),output[equipment_type],$C$106,output[year],D$107,output[control_strategy],"ASD Control",output[facility_type],$D$13,output[sensitivity],"Base") -> 53045.69745 | E109: =SUMIFS(INDEX(output[#Data],0,MATCH("ishp_Market",output[#Headers],0)),output[equipment_type],$C$106,output[year],E$107,output[control_strategy],"ASD Control",output[facility_type],$D$13,output[sensitivity],"Base") -> 51926.6405 | F109: =SUMIFS(INDEX(output[#Data],0,MATCH("ishp_Market",output[#Headers],0)),output[equipment_type],$C$106,output[year],F$107,output[control_strategy],"ASD Control",output[facility_type],$D$13,output[sensitivity],"Base") -> 53629.31166 | G109: =SUMIFS(INDEX(output[#Data],0,MATCH("ishp_Market",output[#Headers],0)),output[equipment_type],$C$106,output[year],G$107,output[control_strategy],"ASD Control",output[facility_type],$D$13,output[sensitivity],"Base") -> 58303.45804 | H109: =SUMIFS(INDEX(output[#Data],0,MATCH("ishp_Market",output[#Headers],0)),output[equipment_type],$C$106,output[year],H$107,output[control_strategy],"ASD Control",output[facility_type],$D$13,output[sensitivity],"Base") -> 61475.67465 | I109: =SUMIFS(INDEX(output[#Data],0,MATCH("ishp_Market",output[#Headers],0)),output[equipment_type],$C$106,output[year],I$107,output[control_strategy],"ASD Control",output[facility_type],$D$13,output[sensitivity],"Base") -> 66210.0883 | J109: =SUMIFS(INDEX(output[#Data],0,MATCH("ishp_Market",output[#Headers],0)),output[equipment_type],$C$106,output[year],J$107,output[control_strategy],"ASD Control",output[facility_type],$D$13,output[sensitivity],"Base") -> 63114.79275
C112: ="Table for "&H88 -> Table for Figure 6: ASD-Controlled Fans, by Year (In-Service Motors)
C113: Fans | D113: Year
C114: Pumps | D114: 2015 | E114: 2016 | F114: 2017 | G114: 2018 | H114: 2019 | I114: 2020 | J114: 2021
C115: Baseline ASD-Equipped Motors | D115: =SUMIFS(INDEX(output[#Data],0,MATCH("num_motors_Baseline",output[#Headers],0)),output[equipment_type],$C$113,output[year],D$114,output[control_strategy],"ASD Control",output[facility_type],$D$13,output[sensitivity],"Base") -> 3552.999879 | E115: =SUMIFS(INDEX(output[#Data],0,MATCH("num_motors_Baseline",output[#Headers],0)),output[equipment_type],$C$113,output[year],E$114,output[control_strategy],"ASD Control",output[facility_type],$D$13,output[sensitivity],"Base") -> 3441.987878 | F115: =SUMIFS(INDEX(output[#Data],0,MATCH("num_motors_Baseline",output[#Headers],0)),output[equipment_type],$C$113,output[year],F$114,output[control_strategy],"ASD Control",output[facility_type],$D$13,output[sensitivity],"Base") -> 3524.466441 | G115: =SUMIFS(INDEX(output[#Data],0,MATCH("num_motors_Baseline",output[#Headers],0)),output[equipment_type],$C$113,output[year],G$114,output[control_strategy],"ASD Control",output[facility_type],$D$13,output[sensitivity],"Base") -> 3781.452686 | H115: =SUMIFS(INDEX(output[#Data],0,MATCH("num_motors_Baseline",output[#Headers],0)),output[equipment_type],$C$113,output[year],H$114,output[control_strategy],"ASD Control",output[facility_type],$D$13,output[sensitivity],"Base") -> 3941.181783 | I115: =SUMIFS(INDEX(output[#Data],0,MATCH("num_motors_Baseline",output[#Headers],0)),output[equipment_type],$C$113,output[year],I$114,output[control_strategy],"ASD Control",output[facility_type],$D$13,output[sensitivity],"Base") -> 4201.2187 | J115: =SUMIFS(INDEX(output[#Data],0,MATCH("num_motors_Baseline",output[#Headers],0)),output[equipment_type],$C$113,output[year],J$114,output[control_strategy],"ASD Control",output[facility_type],$D$13,output[sensitivity],"Base") -> 3968.148883
C116: Market ASD-Equipped Motors | D116: =SUMIFS(INDEX(output[#Data],0,MATCH("num_motors_Market",output[#Headers],0)),output[equipment_type],$C$113,output[year],D$114,output[control_strategy],"ASD Control",output[facility_type],$D$13,output[sensitivity],"Base") -> 3552.999879 | E116: =SUMIFS(INDEX(output[#Data],0,MATCH("num_motors_Market",output[#Headers],0)),output[equipment_type],$C$113,output[year],E$114,output[control_strategy],"ASD Control",output[facility_type],$D$13,output[sensitivity],"Base") -> 3478.045464 | F116: =SUMIFS(INDEX(output[#Data],0,MATCH("num_motors_Market",output[#Headers],0)),output[equipment_type],$C$113,output[year],F$114,output[control_strategy],"ASD Control",output[facility_type],$D$13,output[sensitivity],"Base") -> 3592.090349 | G116: =SUMIFS(INDEX(output[#Data],0,MATCH("num_motors_Market",output[#Headers],0)),output[equipment_type],$C$113,output[year],G$114,output[control_strategy],"ASD Control",output[facility_type],$D$13,output[sensitivity],"Base") -> 3905.16459 | H116: =SUMIFS(INDEX(output[#Data],0,MATCH("num_motors_Market",output[#Headers],0)),output[equipment_type],$C$113,output[year],H$114,output[control_strategy],"ASD Control",output[facility_type],$D$13,output[sensitivity],"Base") -> 4117.639603 | I116: =SUMIFS(INDEX(output[#Data],0,MATCH("num_motors_Market",output[#Headers],0)),output[equipment_type],$C$113,output[year],I$114,output[control_strategy],"ASD Control",output[facility_type],$D$13,output[sensitivity],"Base") -> 4434.750546 | J116: =SUMIFS(INDEX(output[#Data],0,MATCH("num_motors_Market",output[#Headers],0)),output[equipment_type],$C$113,output[year],J$114,output[control_strategy],"ASD Control",output[facility_type],$D$13,output[sensitivity],"Base") -> 4227.427704
C119: Figure 7: ASD-Controlled Fans Installed Above Baseline, by Year (In-Service Motor HP) | H119: Figure 8: ASD-Controlled Fans Installed Above Baseline, by Year (In-Service Motors)
C135: ="Table for "&C119 -> Table for Figure 7: ASD-Controlled Fans Installed Above Baseline, by Year (In-Service Motor HP)
C136: Fans | D136: Year | J136: Total
C137: Pumps | D137: 2016 | E137: 2017 | F137: 2018 | G137: 2019 | H137: 2020 | I137: 2021
C138: Regional Momentum ASD Motor HP Installed | D138: =SUMIFS(INDEX(output[#Data],0,MATCH("ishp_Market",output[#Headers],0)),output[equipment_type],$C$136,output[year],D$137,output[control_strategy],"ASD Control",output[facility_type],$D$13,output[sensitivity],"Base")-SUMIFS(INDEX(output[#Data],0,MATCH("ishp_Program",output[#Headers],0)),output[equipment_type],$C$136,output[year],D$137,output[control_strategy],"ASD Control",output[facility_type],$D$13,output[sensitivity],"Base") -> 438.4863461 | E138: =SUMIFS(INDEX(output[#Data],0,MATCH("ishp_Market",output[#Headers],0)),output[equipment_type],$C$136,output[year],E$137,output[control_strategy],"ASD Control",output[facility_type],$D$13,output[sensitivity],"Base")-SUMIFS(INDEX(output[#Data],0,MATCH("ishp_Program",output[#Headers],0)),output[equipment_type],$C$136,output[year],E$137,output[control_strategy],"ASD Control",output[facility_type],$D$13,output[sensitivity],"Base")-SUM($D$138:D138) -> 208.9794126 | F138: =SUMIFS(INDEX(output[#Data],0,MATCH("ishp_Market",output[#Headers],0)),output[equipment_type],$C$136,output[year],F$137,output[control_strategy],"ASD Control",output[facility_type],$D$13,output[sensitivity],"Base")-SUMIFS(INDEX(output[#Data],0,MATCH("ishp_Program",output[#Headers],0)),output[equipment_type],$C$136,output[year],F$137,output[control_strategy],"ASD Control",output[facility_type],$D$13,output[sensitivity],"Base")-SUM($D$138:E138) -> 930.3530441 | G138: =SUMIFS(INDEX(output[#Data],0,MATCH("ishp_Market",output[#Headers],0)),output[equipment_type],$C$136,output[year],G$137,output[control_strategy],"ASD Control",output[facility_type],$D$13,output[sensitivity],"Base")-SUMIFS(INDEX(output[#Data],0,MATCH("ishp_Program",output[#Headers],0)),output[equipment_type],$C$136,output[year],G$137,output[control_strategy],"ASD Control",output[facility_type],$D$13,output[sensitivity],"Base")-SUM($D$138:F138) -> 253.1347024 | H138: =SUMIFS(INDEX(output[#Data],0,MATCH("ishp_Market",output[#Headers],0)),output[equipment_type],$C$136,output[year],H$137,output[control_strategy],"ASD Control",output[facility_type],$D$13,output[sensitivity],"Base")-SUMIFS(INDEX(output[#Data],0,MATCH("ishp_Program",output[#Headers],0)),output[equipment_type],$C$136,output[year],H$137,output[control_strategy],"ASD Control",output[facility_type],$D$13,output[sensitivity],"Base")-SUM($D$138:G138) -> 1328.295096 | I138: =SUMIFS(INDEX(output[#Data],0,MATCH("ishp_Market",output[#Headers],0)),output[equipment_type],$C$136,output[year],I$137,output[control_strategy],"ASD Control",output[facility_type],$D$13,output[sensitivity],"Base")-SUMIFS(INDEX(output[#Data],0,MATCH("ishp_Program",output[#Headers],0)),output[equipment_type],$C$136,output[year],I$137,output[control_strategy],"ASD Control",output[facility_type],$D$13,output[sensitivity],"Base")-SUM($D$138:H138) -> 297.8700281 | J138: =SUM(D138:I138) -> 3457.118629
C139: Regional Program Incented Motor HP Installed | D139: =SUMIFS(INDEX(output[#Data],0,MATCH("ishp_Program",output[#Headers],0)),output[equipment_type],$C$136,output[year],D$137,output[control_strategy],"ASD Control",output[facility_type],$D$13,output[sensitivity],"Base")-SUMIFS(INDEX(output[#Data],0,MATCH("ishp_Baseline",output[#Headers],0)),output[equipment_type],$C$136,output[year],D$137,output[control_strategy],"ASD Control",output[facility_type],$D$13,output[sensitivity],"Base") -> 747.5379323 | E139: =SUMIFS(INDEX(output[#Data],0,MATCH("ishp_Program",output[#Headers],0)),output[equipment_type],$C$136,output[year],E$137,output[control_strategy],"ASD Control",output[facility_type],$D$13,output[sensitivity],"Base")-SUMIFS(INDEX(output[#Data],0,MATCH("ishp_Baseline",output[#Headers],0)),output[equipment_type],$C$136,output[year],E$137,output[control_strategy],"ASD Control",output[facility_type],$D$13,output[sensitivity],"Base")-SUM($D$139:D139) -> 829.3158887 | F139: =SUMIFS(INDEX(output[#Data],0,MATCH("ishp_Program",output[#Headers],0)),output[equipment_type],$C$136,output[year],F$137,output[control_strategy],"ASD Control",output[facility_type],$D$13,output[sensitivity],"Base")-SUMIFS(INDEX(output[#Data],0,MATCH("ishp_Baseline",output[#Headers],0)),output[equipment_type],$C$136,output[year],F$137,output[control_strategy],"ASD Control",output[facility_type],$D$13,output[sensitivity],"Base")-SUM($D$139:E139) -> 914.5215442 | G139: =SUMIFS(INDEX(output[#Data],0,MATCH("ishp_Program",output[#Headers],0)),output[equipment_type],$C$136,output[year],G$137,output[control_strategy],"ASD Control",output[facility_type],$D$13,output[sensitivity],"Base")-SUMIFS(INDEX(output[#Data],0,MATCH("ishp_Baseline",output[#Headers],0)),output[equipment_type],$C$136,output[year],G$137,output[control_strategy],"ASD Control",output[facility_type],$D$13,output[sensitivity],"Base")-SUM($D$139:F139) -> 1481.81052 | H139: =SUMIFS(INDEX(output[#Data],0,MATCH("ishp_Program",output[#Headers],0)),output[equipment_type],$C$136,output[year],H$137,output[control_strategy],"ASD Control",output[facility_type],$D$13,output[sensitivity],"Base")-SUMIFS(INDEX(output[#Data],0,MATCH("ishp_Baseline",output[#Headers],0)),output[equipment_type],$C$136,output[year],H$137,output[control_strategy],"ASD Control",output[facility_type],$D$13,output[sensitivity],"Base")-SUM($D$139:G139) -> 549.0124383 | I139: =SUMIFS(INDEX(output[#Data],0,MATCH("ishp_Program",output[#Headers],0)),output[equipment_type],$C$136,output[year],I$137,output[control_strategy],"ASD Control",output[facility_type],$D$13,output[sensitivity],"Base")-SUMIFS(INDEX(output[#Data],0,MATCH("ishp_Baseline",output[#Headers],0)),output[equipment_type],$C$136,output[year],I$137,output[control_strategy],"ASD Control",output[facility_type],$D$13,output[sensitivity],"Base")-SUM($D$139:H139) -> 549.0124383 | J139: =SUM(D139:I139) -> 5071.210762
C141: ="Table for "&H119 -> Table for Figure 8: ASD-Controlled Fans Installed Above Baseline, by Year (In-Service Motors)
C142: Fans | D142: Year | J142: Total
C143: Pumps | D143: 2016 | E143: 2017 | F143: 2018 | G143: 2019 | H143: 2020 | I143: 2021
C144: Regional Momentum ASD Motors Installed | D144: =SUMIFS(INDEX(output[#Data],0,MATCH("num_motors_Market",output[#Headers],0)),output[equipment_type],$C$142,output[year],D$143,output[control_strategy],"ASD Control",output[facility_type],$D$13,output[sensitivity],"Base")-SUMIFS(INDEX(output[#Data],0,MATCH("num_motors_Program",output[#Headers],0)),output[equipment_type],$C$142,output[year],D$143,output[control_strategy],"ASD Control",output[facility_type],$D$13,output[sensitivity],"Base") -> 16.48457167 | E144: =SUMIFS(INDEX(output[#Data],0,MATCH("num_motors_Market",output[#Headers],0)),output[equipment_type],$C$142,output[year],E$143,output[control_strategy],"ASD Control",output[facility_type],$D$13,output[sensitivity],"Base")-SUMIFS(INDEX(output[#Data],0,MATCH("num_motors_Program",output[#Headers],0)),output[equipment_type],$C$142,output[year],E$143,output[control_strategy],"ASD Control",output[facility_type],$D$13,output[sensitivity],"Base")-SUM($D$144:D144) -> 9.852088444 | F144: =SUMIFS(INDEX(output[#Data],0,MATCH("num_motors_Market",output[#Headers],0)),output[equipment_type],$C$142,output[year],F$143,output[control_strategy],"ASD Control",output[facility_type],$D$13,output[sensitivity],"Base")-SUMIFS(INDEX(output[#Data],0,MATCH("num_motors_Program",output[#Headers],0)),output[equipment_type],$C$142,output[year],F$143,output[control_strategy],"ASD Control",output[facility_type],$D$13,output[sensitivity],"Base")-SUM($D$144:E144) -> 32.14279819 | G144: =SUMIFS(INDEX(output[#Data],0,MATCH("num_motors_Market",output[#Headers],0)),output[equipment_type],$C$142,output[year],G$143,output[control_strategy],"ASD Control",output[facility_type],$D$13,output[sensitivity],"Base")-SUMIFS(INDEX(output[#Data],0,MATCH("num_motors_Program",output[#Headers],0)),output[equipment_type],$C$142,output[year],G$143,output[control_strategy],"ASD Control",output[facility_type],$D$13,output[sensitivity],"Base")-SUM($D$144:F144) -> 13.94721721 | H144: =SUMIFS(INDEX(output[#Data],0,MATCH("num_motors_Market",output[#Headers],0)),output[equipment_type],$C$142,output[year],H$143,output[control_strategy],"ASD Control",output[facility_type],$D$13,output[sensitivity],"Base")-SUMIFS(INDEX(output[#Data],0,MATCH("num_motors_Program",output[#Headers],0)),output[equipment_type],$C$142,output[year],H$143,output[control_strategy],"ASD Control",output[facility_type],$D$13,output[sensitivity],"Base")-SUM($D$144:G144) -> 42.69906377 | I144: =SUMIFS(INDEX(output[#Data],0,MATCH("num_motors_Market",output[#Headers],0)),output[equipment_type],$C$142,output[year],I$143,output[control_strategy],"ASD Control",output[facility_type],$D$13,output[sensitivity],"Base")-SUMIFS(INDEX(output[#Data],0,MATCH("num_motors_Program",output[#Headers],0)),output[equipment_type],$C$142,output[year],I$143,output[control_strategy],"ASD Control",output[facility_type],$D$13,output[sensitivity],"Base")-SUM($D$144:H144) -> 11.37201432 | J144: =SUM(D144:I144) -> 126.4977536
C145: Regional Program Incented Motors Installed | D145: =SUMIFS(INDEX(output[#Data],0,MATCH("num_motors_Program",output[#Headers],0)),output[equipment_type],$C$136,output[year],D$137,output[control_strategy],"ASD Control",output[facility_type],$D$13,output[sensitivity],"Base")-SUMIFS(INDEX(output[#Data],0,MATCH("num_motors_Baseline",output[#Headers],0)),output[equipment_type],$C$136,output[year],D$137,output[control_strategy],"ASD Control",output[facility_type],$D$13,output[sensitivity],"Base") -> 19.57301503 | E145: =SUMIFS(INDEX(output[#Data],0,MATCH("num_motors_Program",output[#Headers],0)),output[equipment_type],$C$136,output[year],E$137,output[control_strategy],"ASD Control",output[facility_type],$D$13,output[sensitivity],"Base")-SUMIFS(INDEX(output[#Data],0,MATCH("num_motors_Baseline",output[#Headers],0)),output[equipment_type],$C$136,output[year],E$137,output[control_strategy],"ASD Control",output[facility_type],$D$13,output[sensitivity],"Base")-SUM($D$145:D145) -> 21.71423235 | F145: =SUMIFS(INDEX(output[#Data],0,MATCH("num_motors_Program",output[#Headers],0)),output[equipment_type],$C$136,output[year],F$137,output[control_strategy],"ASD Control",output[facility_type],$D$13,output[sensitivity],"Base")-SUMIFS(INDEX(output[#Data],0,MATCH("num_motors_Baseline",output[#Headers],0)),output[equipment_type],$C$136,output[year],F$137,output[control_strategy],"ASD Control",output[facility_type],$D$13,output[sensitivity],"Base")-SUM($D$145:E145) -> 23.94519817 | G145: =SUMIFS(INDEX(output[#Data],0,MATCH("num_motors_Program",output[#Headers],0)),output[equipment_type],$C$136,output[year],G$137,output[control_strategy],"ASD Control",output[facility_type],$D$13,output[sensitivity],"Base")-SUMIFS(INDEX(output[#Data],0,MATCH("num_motors_Baseline",output[#Headers],0)),output[equipment_type],$C$136,output[year],G$137,output[control_strategy],"ASD Control",output[facility_type],$D$13,output[sensitivity],"Base")-SUM($D$145:F145) -> 38.79869947 | H145: =SUMIFS(INDEX(output[#Data],0,MATCH("num_motors_Program",output[#Headers],0)),output[equipment_type],$C$136,output[year],H$137,output[control_strategy],"ASD Control",output[facility_type],$D$13,output[sensitivity],"Base")-SUMIFS(INDEX(output[#Data],0,MATCH("num_motors_Baseline",output[#Headers],0)),output[equipment_type],$C$136,output[year],H$137,output[control_strategy],"ASD Control",output[facility_type],$D$13,output[sensitivity],"Base")-SUM($D$145:G145) -> 14.37496111 | I145: =SUMIFS(INDEX(output[#Data],0,MATCH("num_motors_Program",output[#Headers],0)),output[equipment_type],$C$136,output[year],I$137,output[control_strategy],"ASD Control",output[facility_type],$D$13,output[sensitivity],"Base")-SUMIFS(INDEX(output[#Data],0,MATCH("num_motors_Baseline",output[#Headers],0)),output[equipment_type],$C$136,output[year],I$137,output[control_strategy],"ASD Control",output[facility_type],$D$13,output[sensitivity],"Base")-SUM($D$145:H145) -> 14.37496111 | J145: =SUM(D145:I145) -> 132.7810672
C147: Figure 9: Installed Stock of Pumps, by Year (Installed Motor HP) | H147: Figure 10: Installed Stock of Pumps, by Year (Installed Motors)
C163: ="Table for "&C147 -> Table for Figure 9: Installed Stock of Pumps, by Year (Installed Motor HP)
C164: Pumps | D164: Year
C165: Pumps | D165: 2015 | E165: 2016 | F165: 2017 | G165: 2018 | H165: 2019 | I165: 2020 | J165: 2021
C166: In-Service Motor HP | D166: =SUMIFS(INDEX(output[#Data],0,MATCH("ishp_Market",output[#Headers],0)),output[equipment_type],$C$164,output[year],D$165,output[facility_type],$D$13,output[sensitivity],"Base") -> 66177.39228 | E166: =SUMIFS(INDEX(output[#Data],0,MATCH("ishp_Market",output[#Headers],0)),output[equipment_type],$C$164,output[year],E$165,output[facility_type],$D$13,output[sensitivity],"Base") -> 61470.61494 | F166: =SUMIFS(INDEX(output[#Data],0,MATCH("ishp_Market",output[#Headers],0)),output[equipment_type],$C$164,output[year],F$165,output[facility_type],$D$13,output[sensitivity],"Base") -> 60696.47063 | G166: =SUMIFS(INDEX(output[#Data],0,MATCH("ishp_Market",output[#Headers],0)),output[equipment_type],$C$164,output[year],G$165,output[facility_type],$D$13,output[sensitivity],"Base") -> 61377.90098 | H166: =SUMIFS(INDEX(output[#Data],0,MATCH("ishp_Market",output[#Headers],0)),output[equipment_type],$C$164,output[year],H$165,output[facility_type],$D$13,output[sensitivity],"Base") -> 60492.45141 | I166: =SUMIFS(INDEX(output[#Data],0,MATCH("ishp_Market",output[#Headers],0)),output[equipment_type],$C$164,output[year],I$165,output[facility_type],$D$13,output[sensitivity],"Base") -> 61158.53445 | J166: =SUMIFS(INDEX(output[#Data],0,MATCH("ishp_Market",output[#Headers],0)),output[equipment_type],$C$164,output[year],J$165,output[facility_type],$D$13,output[sensitivity],"Base") -> 54932.97953
C167: Out-of-Service Motor HP | D167: =SUMIFS(INDEX(output[#Data],0,MATCH("ooshp_Market",output[#Headers],0)),output[equipment_type],$C$164,output[year],D$165,output[facility_type],$D$13,output[sensitivity],"Base") -> 25722.56792 | E167: =SUMIFS(INDEX(output[#Data],0,MATCH("ooshp_Market",output[#Headers],0)),output[equipment_type],$C$164,output[year],E$165,output[facility_type],$D$13,output[sensitivity],"Base") -> 29588.41544 | F167: =SUMIFS(INDEX(output[#Data],0,MATCH("ooshp_Market",output[#Headers],0)),output[equipment_type],$C$164,output[year],F$165,output[facility_type],$D$13,output[sensitivity],"Base") -> 30349.58284 | G167: =SUMIFS(INDEX(output[#Data],0,MATCH("ooshp_Market",output[#Headers],0)),output[equipment_type],$C$164,output[year],G$165,output[facility_type],$D$13,output[sensitivity],"Base") -> 29722.03736 | H167: =SUMIFS(INDEX(output[#Data],0,MATCH("ooshp_Market",output[#Headers],0)),output[equipment_type],$C$164,output[year],H$165,output[facility_type],$D$13,output[sensitivity],"Base") -> 30603.4719 | I167: =SUMIFS(INDEX(output[#Data],0,MATCH("ooshp_Market",output[#Headers],0)),output[equipment_type],$C$164,output[year],I$165,output[facility_type],$D$13,output[sensitivity],"Base") -> 29985.46222 | J167: =SUMIFS(INDEX(output[#Data],0,MATCH("ooshp_Market",output[#Headers],0)),output[equipment_type],$C$164,output[year],J$165,output[facility_type],$D$13,output[sensitivity],"Base") -> 35602.15756
C168: Total Motor HP | D168: =SUM(D166:D167) -> 91899.9602 | E168: 91059.03038 | F168: 91046.05347 | G168: 91099.93834 | H168: 91095.9233 | I168: 91143.99667 | J168: 90535.13709
C170: ="Table for "&H147 -> Table for Figure 10: Installed Stock of Pumps, by Year (Installed Motors)
C171: Pumps | D171: Year
C172: Pumps | D172: 2015 | E172: 2016 | F172: 2017 | G172: 2018 | H172: 2019 | I172: 2020 | J172: 2021
C173: Number of In-Service Motors | D173: =SUMIFS(INDEX(output[#Data],0,MATCH("num_motors_Market",output[#Headers],0)),output[equipment_type],$C$171,output[year],D$172,output[facility_type],$D$13,output[sensitivity],"Base") -> 3365.752951 | E173: =SUMIFS(INDEX(output[#Data],0,MATCH("num_motors_Market",output[#Headers],0)),output[equipment_type],$C$171,output[year],E$172,output[facility_type],$D$13,output[sensitivity],"Base") -> 3126.867225 | F173: =SUMIFS(INDEX(output[#Data],0,MATCH("num_motors_Market",output[#Headers],0)),output[equipment_type],$C$171,output[year],F$172,output[facility_type],$D$13,output[sensitivity],"Base") -> 3087.825021 | G173: =SUMIFS(INDEX(output[#Data],0,MATCH("num_motors_Market",output[#Headers],0)),output[equipment_type],$C$171,output[year],G$172,output[facility_type],$D$13,output[sensitivity],"Base") -> 3122.726744 | H173: =SUMIFS(INDEX(output[#Data],0,MATCH("num_motors_Market",output[#Headers],0)),output[equipment_type],$C$171,output[year],H$172,output[facility_type],$D$13,output[sensitivity],"Base") -> 3077.97257 | I173: =SUMIFS(INDEX(output[#Data],0,MATCH("num_motors_Market",output[#Headers],0)),output[equipment_type],$C$171,output[year],I$172,output[facility_type],$D$13,output[sensitivity],"Base") -> 3111.958379 | J173: =SUMIFS(INDEX(output[#Data],0,MATCH("num_motors_Market",output[#Headers],0)),output[equipment_type],$C$171,output[year],J$172,output[facility_type],$D$13,output[sensitivity],"Base") -> 2795.50939
C174: Number of Out-of-Service Motors | D174: =SUMIFS(INDEX(output[#Data],0,MATCH("num_motors_ooshp_Market",output[#Headers],0)),output[equipment_type],$C$171,output[year],D$172,output[facility_type],$D$13,output[sensitivity],"Base") -> 1308.11644 | E174: =SUMIFS(INDEX(output[#Data],0,MATCH("num_motors_ooshp_Market",output[#Headers],0)),output[equipment_type],$C$171,output[year],E$172,output[facility_type],$D$13,output[sensitivity],"Base") -> 1504.780571 | F174: =SUMIFS(INDEX(output[#Data],0,MATCH("num_motors_ooshp_Market",output[#Headers],0)),output[equipment_type],$C$171,output[year],F$172,output[facility_type],$D$13,output[sensitivity],"Base") -> 1543.532247 | G174: =SUMIFS(INDEX(output[#Data],0,MATCH("num_motors_ooshp_Market",output[#Headers],0)),output[equipment_type],$C$171,output[year],G$172,output[facility_type],$D$13,output[sensitivity],"Base") -> 1511.629353 | H174: =SUMIFS(INDEX(output[#Data],0,MATCH("num_motors_ooshp_Market",output[#Headers],0)),output[equipment_type],$C$171,output[year],H$172,output[facility_type],$D$13,output[sensitivity],"Base") -> 1556.506267 | I174: =SUMIFS(INDEX(output[#Data],0,MATCH("num_motors_ooshp_Market",output[#Headers],0)),output[equipment_type],$C$171,output[year],I$172,output[facility_type],$D$13,output[sensitivity],"Base") -> 1525.067679 | J174: =SUMIFS(INDEX(output[#Data],0,MATCH("num_motors_ooshp_Market",output[#Headers],0)),output[equipment_type],$C$171,output[year],J$172,output[facility_type],$D$13,output[sensitivity],"Base") -> 1810.90021
C175: Total Number of Motors | D175: =SUM(D173:D174) -> 4673.869392 | E175: 4631.647797 | F175: 4631.357268 | G175: 4634.356097 | H175: 4634.478837 | I175: 4637.026059 | J175: 4606.4096
C178: Figure 11: In-Service Pumps, by Control Strategy and Year (In-Service Motor HP) | H178: Figure 12: In-Service Pumps, by Control Strategy and Year (In-Service Motors)
C196: ="Table for "&C178 -> Table for Figure 11: In-Service Pumps, by Control Strategy and Year (In-Service Motor HP)
C197: Pumps | D197: Year
D198: 2015 | E198: 2016 | F198: 2017 | G198: 2018 | H198: 2019 | I198: 2020 | J198: 2021
C199: In-Service Non ASD-Controlled Motor HP | D199: =SUMIFS(INDEX(output[#Data],0,MATCH("ishp_Market",output[#Headers],0)),output[equipment_type],$C$197,output[year],D$198,output[facility_type],$D$13,output[control_strategy],"Non ASD Control",output[sensitivity],"Base") -> 52644.17938 | E199: =SUMIFS(INDEX(output[#Data],0,MATCH("ishp_Market",output[#Headers],0)),output[equipment_type],$C$197,output[year],E$198,output[facility_type],$D$13,output[control_strategy],"Non ASD Control",output[sensitivity],"Base") -> 46980.27748 | F199: =SUMIFS(INDEX(output[#Data],0,MATCH("ishp_Market",output[#Headers],0)),output[equipment_type],$C$197,output[year],F$198,output[facility_type],$D$13,output[control_strategy],"Non ASD Control",output[sensitivity],"Base") -> 45092.98921 | G199: =SUMIFS(INDEX(output[#Data],0,MATCH("ishp_Market",output[#Headers],0)),output[equipment_type],$C$197,output[year],G$198,output[facility_type],$D$13,output[control_strategy],"Non ASD Control",output[sensitivity],"Base") -> 44694.35921 | H199: =SUMIFS(INDEX(output[#Data],0,MATCH("ishp_Market",output[#Headers],0)),output[equipment_type],$C$197,output[year],H$198,output[facility_type],$D$13,output[control_strategy],"Non ASD Control",output[sensitivity],"Base") -> 42914.89367 | I199: =SUMIFS(INDEX(output[#Data],0,MATCH("ishp_Market",output[#Headers],0)),output[equipment_type],$C$197,output[year],I$198,output[facility_type],$D$13,output[control_strategy],"Non ASD Control",output[sensitivity],"Base") -> 43024.88868 | J199: =SUMIFS(INDEX(output[#Data],0,MATCH("ishp_Market",output[#Headers],0)),output[equipment_type],$C$197,output[year],J$198,output[facility_type],$D$13,output[control_strategy],"Non ASD Control",output[sensitivity],"Base") -> 37379.89912
C200: In-Service ASD-Controlled Motor HP | D200: =SUMIFS(INDEX(output[#Data],0,MATCH("ishp_Market",output[#Headers],0)),output[equipment_type],$C$197,output[year],D$198,output[facility_type],$D$13,output[control_strategy],"ASD Control",output[sensitivity],"Base") -> 13533.21289 | E200: =SUMIFS(INDEX(output[#Data],0,MATCH("ishp_Market",output[#Headers],0)),output[equipment_type],$C$197,output[year],E$198,output[facility_type],$D$13,output[control_strategy],"ASD Control",output[sensitivity],"Base") -> 14490.33746 | F200: =SUMIFS(INDEX(output[#Data],0,MATCH("ishp_Market",output[#Headers],0)),output[equipment_type],$C$197,output[year],F$198,output[facility_type],$D$13,output[control_strategy],"ASD Control",output[sensitivity],"Base") -> 15603.48142 | G200: =SUMIFS(INDEX(output[#Data],0,MATCH("ishp_Market",output[#Headers],0)),output[equipment_type],$C$197,output[year],G$198,output[facility_type],$D$13,output[control_strategy],"ASD Control",output[sensitivity],"Base") -> 16683.54177 | H200: =SUMIFS(INDEX(output[#Data],0,MATCH("ishp_Market",output[#Headers],0)),output[equipment_type],$C$197,output[year],H$198,output[facility_type],$D$13,output[control_strategy],"ASD Control",output[sensitivity],"Base") -> 17577.55774 | I200: =SUMIFS(INDEX(output[#Data],0,MATCH("ishp_Market",output[#Headers],0)),output[equipment_type],$C$197,output[year],I$198,output[facility_type],$D$13,output[control_strategy],"ASD Control",output[sensitivity],"Base") -> 18133.64577 | J200: =SUMIFS(INDEX(output[#Data],0,MATCH("ishp_Market",output[#Headers],0)),output[equipment_type],$C$197,output[year],J$198,output[facility_type],$D$13,output[control_strategy],"ASD Control",output[sensitivity],"Base") -> 17553.0804
C201: ASD Saturation (% of Motor HP) | D201: =D200/SUM(D199:D200) -> 0.2044990355 | E201: =E200/SUM(E199:E200) -> 0.2357278755 | F201: =F200/SUM(F199:F200) -> 0.2570739494 | G201: =G200/SUM(G199:G200) -> 0.2718167534 | H201: =H200/SUM(H199:H200) -> 0.2905743995 | I201: =I200/SUM(I199:I200) -> 0.2965022941 | J201: =J200/SUM(J199:J200) -> 0.3195362887
C203: ="Table for "&H178 -> Table for Figure 12: In-Service Pumps, by Control Strategy and Year (In-Service Motors)
C204: Pumps | D204: Year
D205: 2015 | E205: 2016 | F205: 2017 | G205: 2018 | H205: 2019 | I205: 2020 | J205: 2021
C206: Number of In-Service Non ASD-Controlled Motors | D206: =SUMIFS(INDEX(output[#Data],0,MATCH("num_motors_Market",output[#Headers],0)),output[equipment_type],$C$204,output[year],D$205,output[facility_type],$D$13,output[control_strategy],"Non ASD Control",output[sensitivity],"Base") -> 2674.661871 | E206: =SUMIFS(INDEX(output[#Data],0,MATCH("num_motors_Market",output[#Headers],0)),output[equipment_type],$C$204,output[year],E$205,output[facility_type],$D$13,output[control_strategy],"Non ASD Control",output[sensitivity],"Base") -> 2386.899337 | F206: =SUMIFS(INDEX(output[#Data],0,MATCH("num_motors_Market",output[#Headers],0)),output[equipment_type],$C$204,output[year],F$205,output[facility_type],$D$13,output[control_strategy],"Non ASD Control",output[sensitivity],"Base") -> 2291.012992 | G206: =SUMIFS(INDEX(output[#Data],0,MATCH("num_motors_Market",output[#Headers],0)),output[equipment_type],$C$204,output[year],G$205,output[facility_type],$D$13,output[control_strategy],"Non ASD Control",output[sensitivity],"Base") -> 2270.760032 | H206: =SUMIFS(INDEX(output[#Data],0,MATCH("num_motors_Market",output[#Headers],0)),output[equipment_type],$C$204,output[year],H$205,output[facility_type],$D$13,output[control_strategy],"Non ASD Control",output[sensitivity],"Base") -> 2180.351772 | I206: =SUMIFS(INDEX(output[#Data],0,MATCH("num_motors_Market",output[#Headers],0)),output[equipment_type],$C$204,output[year],I$205,output[facility_type],$D$13,output[control_strategy],"Non ASD Control",output[sensitivity],"Base") -> 2185.940224 | J206: =SUMIFS(INDEX(output[#Data],0,MATCH("num_motors_Market",output[#Headers],0)),output[equipment_type],$C$204,output[year],J$205,output[facility_type],$D$13,output[control_strategy],"Non ASD Control",output[sensitivity],"Base") -> 1899.138558
C207: Number of In-Service ASD-Controlled Motors | D207: =SUMIFS(INDEX(output[#Data],0,MATCH("num_motors_Market",output[#Headers],0)),output[equipment_type],$C$204,output[year],D$205,output[facility_type],$D$13,output[control_strategy],"ASD Control",output[sensitivity],"Base") -> 691.0910799 | E207: =SUMIFS(INDEX(output[#Data],0,MATCH("num_motors_Market",output[#Headers],0)),output[equipment_type],$C$204,output[year],E$205,output[facility_type],$D$13,output[control_strategy],"ASD Control",output[sensitivity],"Base") -> 739.9678883 | F207: =SUMIFS(INDEX(output[#Data],0,MATCH("num_motors_Market",output[#Headers],0)),output[equipment_type],$C$204,output[year],F$205,output[facility_type],$D$13,output[control_strategy],"ASD Control",output[sensitivity],"Base") -> 796.812029 | G207: =SUMIFS(INDEX(output[#Data],0,MATCH("num_motors_Market",output[#Headers],0)),output[equipment_type],$C$204,output[year],G$205,output[facility_type],$D$13,output[control_strategy],"ASD Control",output[sensitivity],"Base") -> 851.9667127 | H207: =SUMIFS(INDEX(output[#Data],0,MATCH("num_motors_Market",output[#Headers],0)),output[equipment_type],$C$204,output[year],H$205,output[facility_type],$D$13,output[control_strategy],"ASD Control",output[sensitivity],"Base") -> 897.6207982 | I207: =SUMIFS(INDEX(output[#Data],0,MATCH("num_motors_Market",output[#Headers],0)),output[equipment_type],$C$204,output[year],I$205,output[facility_type],$D$13,output[control_strategy],"ASD Control",output[sensitivity],"Base") -> 926.0181554 | J207: =SUMIFS(INDEX(output[#Data],0,MATCH("num_motors_Market",output[#Headers],0)),output[equipment_type],$C$204,output[year],J$205,output[facility_type],$D$13,output[control_strategy],"ASD Control",output[sensitivity],"Base") -> 896.3708314
C208: ASD Saturation (% of Motors) | D208: =D207/SUM(D206:D207) -> 0.205330305 | E208: =E207/SUM(E206:E207) -> 0.236648324 | F208: =F207/SUM(F206:F207) -> 0.2580496057 | G208: =G207/SUM(G206:G207) -> 0.2728278144 | H208: =H207/SUM(H206:H207) -> 0.2916272896 | I208: =I207/SUM(I206:I207) -> 0.2975676543 | J208: =J207/SUM(J206:J207) -> 0.3206466895
C210: Figure 13: ASD-Controlled Pumps, by Year (In-Service Motor HP) | H210: Figure 14: ASD-Controlled Pumps, by Year (In-Service Motors)
C227: ="Table for "&C210 -> Table for Figure 13: ASD-Controlled Pumps, by Year (In-Service Motor HP)
C228: Pumps | D228: Year
C229: Pumps | D229: 2015 | E229: 2016 | F229: 2017 | G229: 2018 | H229: 2019 | I229: 2020 | J229: 2021
C230: Baseline ASD-Equipped Motor HP | D230: =SUMIFS(INDEX(output[#Data],0,MATCH("ishp_baseline",output[#Headers],0)),output[equipment_type],$C$228,output[year],D$229,output[control_strategy],"ASD Control",output[facility_type],$D$13,output[sensitivity],"Base") -> 13533.21289 | E230: =SUMIFS(INDEX(output[#Data],0,MATCH("ishp_baseline",output[#Headers],0)),output[equipment_type],$C$228,output[year],E$229,output[control_strategy],"ASD Control",output[facility_type],$D$13,output[sensitivity],"Base") -> 13328.46314 | F230: =SUMIFS(INDEX(output[#Data],0,MATCH("ishp_baseline",output[#Headers],0)),output[equipment_type],$C$228,output[year],F$229,output[control_strategy],"ASD Control",output[facility_type],$D$13,output[sensitivity],"Base") -> 13672.05685 | G230: =SUMIFS(INDEX(output[#Data],0,MATCH("ishp_baseline",output[#Headers],0)),output[equipment_type],$C$228,output[year],G$229,output[control_strategy],"ASD Control",output[facility_type],$D$13,output[sensitivity],"Base") -> 14182.75214 | H230: =SUMIFS(INDEX(output[#Data],0,MATCH("ishp_baseline",output[#Headers],0)),output[equipment_type],$C$228,output[year],H$229,output[control_strategy],"ASD Control",output[facility_type],$D$13,output[sensitivity],"Base") -> 14426.06874 | I230: =SUMIFS(INDEX(output[#Data],0,MATCH("ishp_baseline",output[#Headers],0)),output[equipment_type],$C$228,output[year],I$229,output[control_strategy],"ASD Control",output[facility_type],$D$13,output[sensitivity],"Base") -> 14728.02706 | J230: =SUMIFS(INDEX(output[#Data],0,MATCH("ishp_baseline",output[#Headers],0)),output[equipment_type],$C$228,output[year],J$229,output[control_strategy],"ASD Control",output[facility_type],$D$13,output[sensitivity],"Base") -> 13728.2921
C231: Market ASD-Equipped Motor HP | D231: =SUMIFS(INDEX(output[#Data],0,MATCH("ishp_Market",output[#Headers],0)),output[equipment_type],$C$228,output[year],D$229,output[control_strategy],"ASD Control",output[facility_type],$D$13,output[sensitivity],"Base") -> 13533.21289 | E231: =SUMIFS(INDEX(output[#Data],0,MATCH("ishp_Market",output[#Headers],0)),output[equipment_type],$C$228,output[year],E$229,output[control_strategy],"ASD Control",output[facility_type],$D$13,output[sensitivity],"Base") -> 14490.33746 | F231: =SUMIFS(INDEX(output[#Data],0,MATCH("ishp_Market",output[#Headers],0)),output[equipment_type],$C$228,output[year],F$229,output[control_strategy],"ASD Control",output[facility_type],$D$13,output[sensitivity],"Base") -> 15603.48142 | G231: =SUMIFS(INDEX(output[#Data],0,MATCH("ishp_Market",output[#Headers],0)),output[equipment_type],$C$228,output[year],G$229,output[control_strategy],"ASD Control",output[facility_type],$D$13,output[sensitivity],"Base") -> 16683.54177 | H231: =SUMIFS(INDEX(output[#Data],0,MATCH("ishp_Market",output[#Headers],0)),output[equipment_type],$C$228,output[year],H$229,output[control_strategy],"ASD Control",output[facility_type],$D$13,output[sensitivity],"Base") -> 17577.55774 | I231: =SUMIFS(INDEX(output[#Data],0,MATCH("ishp_Market",output[#Headers],0)),output[equipment_type],$C$228,output[year],I$229,output[control_strategy],"ASD Control",output[facility_type],$D$13,output[sensitivity],"Base") -> 18133.64577 | J231: =SUMIFS(INDEX(output[#Data],0,MATCH("ishp_Market",output[#Headers],0)),output[equipment_type],$C$228,output[year],J$229,output[control_strategy],"ASD Control",output[facility_type],$D$13,output[sensitivity],"Base") -> 17553.0804
C234: ="Table for "&H210 -> Table for Figure 14: ASD-Controlled Pumps, by Year (In-Service Motors)
C235: Pumps | D235: Year
C236: Pumps | D236: 2015 | E236: 2016 | F236: 2017 | G236: 2018 | H236: 2019 | I236: 2020 | J236: 2021
C237: Baseline ASD-Equipped Motors | D237: =SUMIFS(INDEX(output[#Data],0,MATCH("num_motors_Baseline",output[#Headers],0)),output[equipment_type],$C$228,output[year],D$236,output[control_strategy],"ASD Control",output[facility_type],$D$13,output[sensitivity],"Base") -> 691.0910799 | E237: =SUMIFS(INDEX(output[#Data],0,MATCH("num_motors_Baseline",output[#Headers],0)),output[equipment_type],$C$228,output[year],E$236,output[control_strategy],"ASD Control",output[facility_type],$D$13,output[sensitivity],"Base") -> 662.075924 | F237: =SUMIFS(INDEX(output[#Data],0,MATCH("num_motors_Baseline",output[#Headers],0)),output[equipment_type],$C$228,output[year],F$236,output[control_strategy],"ASD Control",output[facility_type],$D$13,output[sensitivity],"Base") -> 667.3294757 | G237: =SUMIFS(INDEX(output[#Data],0,MATCH("num_motors_Baseline",output[#Headers],0)),output[equipment_type],$C$228,output[year],G$236,output[control_strategy],"ASD Control",output[facility_type],$D$13,output[sensitivity],"Base") -> 684.3139698 | H237: =SUMIFS(INDEX(output[#Data],0,MATCH("num_motors_Baseline",output[#Headers],0)),output[equipment_type],$C$228,output[year],H$236,output[control_strategy],"ASD Control",output[facility_type],$D$13,output[sensitivity],"Base") -> 686.3452203 | I237: =SUMIFS(INDEX(output[#Data],0,MATCH("num_motors_Baseline",output[#Headers],0)),output[equipment_type],$C$228,output[year],I$236,output[control_strategy],"ASD Control",output[facility_type],$D$13,output[sensitivity],"Base") -> 697.7057413 | J237: =SUMIFS(INDEX(output[#Data],0,MATCH("num_motors_Baseline",output[#Headers],0)),output[equipment_type],$C$228,output[year],J$236,output[control_strategy],"ASD Control",output[facility_type],$D$13,output[sensitivity],"Base") -> 639.9573206
C238: Market ASD-Equipped Motors | D238: =SUMIFS(INDEX(output[#Data],0,MATCH("num_motors_Market",output[#Headers],0)),output[equipment_type],$C$228,output[year],D$236,output[control_strategy],"ASD Control",output[facility_type],$D$13,output[sensitivity],"Base") -> 691.0910799 | E238: =SUMIFS(INDEX(output[#Data],0,MATCH("num_motors_Market",output[#Headers],0)),output[equipment_type],$C$228,output[year],E$236,output[control_strategy],"ASD Control",output[facility_type],$D$13,output[sensitivity],"Base") -> 739.9678883 | F238: =SUMIFS(INDEX(output[#Data],0,MATCH("num_motors_Market",output[#Headers],0)),output[equipment_type],$C$228,output[year],F$236,output[control_strategy],"ASD Control",output[facility_type],$D$13,output[sensitivity],"Base") -> 796.812029 | G238: =SUMIFS(INDEX(output[#Data],0,MATCH("num_motors_Market",output[#Headers],0)),output[equipment_type],$C$228,output[year],G$236,output[control_strategy],"ASD Control",output[facility_type],$D$13,output[sensitivity],"Base") -> 851.9667127 | H238: =SUMIFS(INDEX(output[#Data],0,MATCH("num_motors_Market",output[#Headers],0)),output[equipment_type],$C$228,output[year],H$236,output[control_strategy],"ASD Control",output[facility_type],$D$13,output[sensitivity],"Base") -> 897.6207982 | I238: =SUMIFS(INDEX(output[#Data],0,MATCH("num_motors_Market",output[#Headers],0)),output[equipment_type],$C$228,output[year],I$236,output[control_strategy],"ASD Control",output[facility_type],$D$13,output[sensitivity],"Base") -> 926.0181554 | J238: =SUMIFS(INDEX(output[#Data],0,MATCH("num_motors_Market",output[#Headers],0)),output[equipment_type],$C$228,output[year],J$236,output[control_strategy],"ASD Control",output[facility_type],$D$13,output[sensitivity],"Base") -> 896.3708314
C240: Figure 15: ASD-Controlled Pumps Installed Above Baseline, by Year (In-Service Motor HP) | H240: Figure 16: ASD-Controlled Pumps Installed Above Baseline, by Year (In-Service Motors)
C255: ="Table for "&C240 -> Table for Figure 15: ASD-Controlled Pumps Installed Above Baseline, by Year (In-Service Motor HP)
C256: Pumps | D256: Year | J256: Total
C257: Pumps | D257: 2016 | E257: 2017 | F257: 2018 | G257: 2019 | H257: 2020 | I257: 2021
C258: Regional Momentum ASD Motor HP Installed | D258: =SUMIFS(INDEX(output[#Data],0,MATCH("ishp_Market",output[#Headers],0)),output[equipment_type],$C$256,output[year],D$257,output[control_strategy],"ASD Control",output[facility_type],$D$13,output[sensitivity],"Base")-SUMIFS(INDEX(output[#Data],0,MATCH("ishp_Program",output[#Headers],0)),output[equipment_type],$C$256,output[year],D$257,output[control_strategy],"ASD Control",output[facility_type],$D$13,output[sensitivity],"Base") -> 1123.437034 | E258: =SUMIFS(INDEX(output[#Data],0,MATCH("ishp_Market",output[#Headers],0)),output[equipment_type],$C$256,output[year],E$257,output[control_strategy],"ASD Control",output[facility_type],$D$13,output[sensitivity],"Base")-SUMIFS(INDEX(output[#Data],0,MATCH("ishp_Program",output[#Headers],0)),output[equipment_type],$C$256,output[year],E$257,output[control_strategy],"ASD Control",output[facility_type],$D$13,output[sensitivity],"Base")-SUM($D$258:D258) -> 742.027623 | F258: =SUMIFS(INDEX(output[#Data],0,MATCH("ishp_Market",output[#Headers],0)),output[equipment_type],$C$256,output[year],F$257,output[control_strategy],"ASD Control",output[facility_type],$D$13,output[sensitivity],"Base")-SUMIFS(INDEX(output[#Data],0,MATCH("ishp_Program",output[#Headers],0)),output[equipment_type],$C$256,output[year],F$257,output[control_strategy],"ASD Control",output[facility_type],$D$13,output[sensitivity],"Base")-SUM($D$258:E258) -> 547.453226 | G258: =SUMIFS(INDEX(output[#Data],0,MATCH("ishp_Market",output[#Headers],0)),output[equipment_type],$C$256,output[year],G$257,output[control_strategy],"ASD Control",output[facility_type],$D$13,output[sensitivity],"Base")-SUMIFS(INDEX(output[#Data],0,MATCH("ishp_Program",output[#Headers],0)),output[equipment_type],$C$256,output[year],G$257,output[control_strategy],"ASD Control",output[facility_type],$D$13,output[sensitivity],"Base")-SUM($D$258:F258) -> 580.9817842 | H258: =SUMIFS(INDEX(output[#Data],0,MATCH("ishp_Market",output[#Headers],0)),output[equipment_type],$C$256,output[year],H$257,output[control_strategy],"ASD Control",output[facility_type],$D$13,output[sensitivity],"Base")-SUMIFS(INDEX(output[#Data],0,MATCH("ishp_Program",output[#Headers],0)),output[equipment_type],$C$256,output[year],H$257,output[control_strategy],"ASD Control",output[facility_type],$D$13,output[sensitivity],"Base")-SUM($D$258:G258) -> 236.2941122 | I258: =SUMIFS(INDEX(output[#Data],0,MATCH("ishp_Market",output[#Headers],0)),output[equipment_type],$C$256,output[year],I$257,output[control_strategy],"ASD Control",output[facility_type],$D$13,output[sensitivity],"Base")-SUMIFS(INDEX(output[#Data],0,MATCH("ishp_Program",output[#Headers],0)),output[equipment_type],$C$256,output[year],I$257,output[control_strategy],"ASD Control",output[facility_type],$D$13,output[sensitivity],"Base")-SUM($D$258:H258) -> 401.3339916 | J258: =SUM(D258:I258) -> 3631.527771
C259: Regional Program Incented Motor HP Installed | D259: =SUMIFS(INDEX(output[#Data],0,MATCH("ishp_Program",output[#Headers],0)),output[equipment_type],$C$256,output[year],D$257,output[control_strategy],"ASD Control",output[facility_type],$D$13,output[sensitivity],"Base")-SUMIFS(INDEX(output[#Data],0,MATCH("ishp_Baseline",output[#Headers],0)),output[equipment_type],$C$256,output[year],D$257,output[control_strategy],"ASD Control",output[facility_type],$D$13,output[sensitivity],"Base") -> 38.4372893 | E259: =SUMIFS(INDEX(output[#Data],0,MATCH("ishp_Program",output[#Headers],0)),output[equipment_type],$C$256,output[year],E$257,output[control_strategy],"ASD Control",output[facility_type],$D$13,output[sensitivity],"Base")-SUMIFS(INDEX(output[#Data],0,MATCH("ishp_Baseline",output[#Headers],0)),output[equipment_type],$C$256,output[year],E$257,output[control_strategy],"ASD Control",output[facility_type],$D$13,output[sensitivity],"Base")-SUM($D$259:D259) -> 27.5226273 | F259: =SUMIFS(INDEX(output[#Data],0,MATCH("ishp_Program",output[#Headers],0)),output[equipment_type],$C$256,output[year],F$257,output[control_strategy],"ASD Control",output[facility_type],$D$13,output[sensitivity],"Base")-SUMIFS(INDEX(output[#Data],0,MATCH("ishp_Baseline",output[#Headers],0)),output[equipment_type],$C$256,output[year],F$257,output[control_strategy],"ASD Control",output[facility_type],$D$13,output[sensitivity],"Base")-SUM($D$259:E259) -> 21.91183698 | G259: =SUMIFS(INDEX(output[#Data],0,MATCH("ishp_Program",output[#Headers],0)),output[equipment_type],$C$256,output[year],G$257,output[control_strategy],"ASD Control",output[facility_type],$D$13,output[sensitivity],"Base")-SUMIFS(INDEX(output[#Data],0,MATCH("ishp_Baseline",output[#Headers],0)),output[equipment_type],$C$256,output[year],G$257,output[control_strategy],"ASD Control",output[facility_type],$D$13,output[sensitivity],"Base")-SUM($D$259:F259) -> 69.71758308 | H259: =SUMIFS(INDEX(output[#Data],0,MATCH("ishp_Program",output[#Headers],0)),output[equipment_type],$C$256,output[year],H$257,output[control_strategy],"ASD Control",output[facility_type],$D$13,output[sensitivity],"Base")-SUMIFS(INDEX(output[#Data],0,MATCH("ishp_Baseline",output[#Headers],0)),output[equipment_type],$C$256,output[year],H$257,output[control_strategy],"ASD Control",output[facility_type],$D$13,output[sensitivity],"Base")-SUM($D$259:G259) -> 17.83559886 | I259: =SUMIFS(INDEX(output[#Data],0,MATCH("ishp_Program",output[#Headers],0)),output[equipment_type],$C$256,output[year],I$257,output[control_strategy],"ASD Control",output[facility_type],$D$13,output[sensitivity],"Base")-SUMIFS(INDEX(output[#Data],0,MATCH("ishp_Baseline",output[#Headers],0)),output[equipment_type],$C$256,output[year],I$257,output[control_strategy],"ASD Control",output[facility_type],$D$13,output[sensitivity],"Base")-SUM($D$259:H259) -> 17.83559886 | J259: =SUM(D259:I259) -> 193.2605344
C261: ="Table for "&H240 -> Table for Figure 16: ASD-Controlled Pumps Installed Above Baseline, by Year (In-Service Motors)
C262: Pumps | D262: Year | J262: Total
C263: Pumps | D263: 2016 | E263: 2017 | F263: 2018 | G263: 2019 | H263: 2020 | I263: 2021
C264: Regional Momentum ASDs Installed | D264: =SUMIFS(INDEX(output[#Data],0,MATCH("num_motors_Market",output[#Headers],0)),output[equipment_type],$C$262,output[year],D$263,output[control_strategy],"ASD Control",output[facility_type],$D$13,output[sensitivity],"Base")-SUMIFS(INDEX(output[#Data],0,MATCH("num_motors_Program",output[#Headers],0)),output[equipment_type],$C$262,output[year],D$263,output[control_strategy],"ASD Control",output[facility_type],$D$13,output[sensitivity],"Base") -> 77.46104832 | E264: =SUMIFS(INDEX(output[#Data],0,MATCH("num_motors_Market",output[#Headers],0)),output[equipment_type],$C$262,output[year],E$263,output[control_strategy],"ASD Control",output[facility_type],$D$13,output[sensitivity],"Base")-SUMIFS(INDEX(output[#Data],0,MATCH("num_motors_Program",output[#Headers],0)),output[equipment_type],$C$262,output[year],E$263,output[control_strategy],"ASD Control",output[facility_type],$D$13,output[sensitivity],"Base")-SUM($D$264:D264) -> 51.28203598 | F264: =SUMIFS(INDEX(output[#Data],0,MATCH("num_motors_Market",output[#Headers],0)),output[equipment_type],$C$262,output[year],F$263,output[control_strategy],"ASD Control",output[facility_type],$D$13,output[sensitivity],"Base")-SUMIFS(INDEX(output[#Data],0,MATCH("num_motors_Program",output[#Headers],0)),output[equipment_type],$C$262,output[year],F$263,output[control_strategy],"ASD Control",output[facility_type],$D$13,output[sensitivity],"Base")-SUM($D$264:E264) -> 37.9245385 | G264: =SUMIFS(INDEX(output[#Data],0,MATCH("num_motors_Market",output[#Headers],0)),output[equipment_type],$C$262,output[year],G$263,output[control_strategy],"ASD Control",output[facility_type],$D$13,output[sensitivity],"Base")-SUMIFS(INDEX(output[#Data],0,MATCH("num_motors_Program",output[#Headers],0)),output[equipment_type],$C$262,output[year],G$263,output[control_strategy],"ASD Control",output[facility_type],$D$13,output[sensitivity],"Base")-SUM($D$264:F264) -> 42.84123923 | H264: =SUMIFS(INDEX(output[#Data],0,MATCH("num_motors_Market",output[#Headers],0)),output[equipment_type],$C$262,output[year],H$263,output[control_strategy],"ASD Control",output[facility_type],$D$13,output[sensitivity],"Base")-SUMIFS(INDEX(output[#Data],0,MATCH("num_motors_Program",output[#Headers],0)),output[equipment_type],$C$262,output[year],H$263,output[control_strategy],"ASD Control",output[facility_type],$D$13,output[sensitivity],"Base")-SUM($D$264:G264) -> 16.83688324 | I264: =SUMIFS(INDEX(output[#Data],0,MATCH("num_motors_Market",output[#Headers],0)),output[equipment_type],$C$262,output[year],I$263,output[control_strategy],"ASD Control",output[facility_type],$D$13,output[sensitivity],"Base")-SUMIFS(INDEX(output[#Data],0,MATCH("num_motors_Program",output[#Headers],0)),output[equipment_type],$C$262,output[year],I$263,output[control_strategy],"ASD Control",output[facility_type],$D$13,output[sensitivity],"Base")-SUM($D$264:H264) -> 27.90114393 | J264: =SUM(D264:I264) -> 254.2468892
C265: Regional Program Incented ASDs Installed | D265: =SUMIFS(INDEX(output[#Data],0,MATCH("num_motors_Program",output[#Headers],0)),output[equipment_type],$C$262,output[year],D$263,output[control_strategy],"ASD Control",output[facility_type],$D$13,output[sensitivity],"Base")-SUMIFS(INDEX(output[#Data],0,MATCH("num_motors_Baseline",output[#Headers],0)),output[equipment_type],$C$262,output[year],D$263,output[control_strategy],"ASD Control",output[facility_type],$D$13,output[sensitivity],"Base") -> 0.4309160237 | E265: =SUMIFS(INDEX(output[#Data],0,MATCH("num_motors_Program",output[#Headers],0)),output[equipment_type],$C$262,output[year],E$263,output[control_strategy],"ASD Control",output[facility_type],$D$13,output[sensitivity],"Base")-SUMIFS(INDEX(output[#Data],0,MATCH("num_motors_Baseline",output[#Headers],0)),output[equipment_type],$C$262,output[year],E$263,output[control_strategy],"ASD Control",output[facility_type],$D$13,output[sensitivity],"Base")-SUM($D$265:D265) -> 0.3085530049 | F265: =SUMIFS(INDEX(output[#Data],0,MATCH("num_motors_Program",output[#Headers],0)),output[equipment_type],$C$262,output[year],F$263,output[control_strategy],"ASD Control",output[facility_type],$D$13,output[sensitivity],"Base")-SUMIFS(INDEX(output[#Data],0,MATCH("num_motors_Baseline",output[#Headers],0)),output[equipment_type],$C$262,output[year],F$263,output[control_strategy],"ASD Control",output[facility_type],$D$13,output[sensitivity],"Base")-SUM($D$265:E265) -> 0.2456510809 | G265: =SUMIFS(INDEX(output[#Data],0,MATCH("num_motors_Program",output[#Headers],0)),output[equipment_type],$C$262,output[year],G$263,output[control_strategy],"ASD Control",output[facility_type],$D$13,output[sensitivity],"Base")-SUMIFS(INDEX(output[#Data],0,MATCH("num_motors_Baseline",output[#Headers],0)),output[equipment_type],$C$262,output[year],G$263,output[control_strategy],"ASD Control",output[facility_type],$D$13,output[sensitivity],"Base")-SUM($D$265:F265) -> 0.7815957948 | H265: =SUMIFS(INDEX(output[#Data],0,MATCH("num_motors_Program",output[#Headers],0)),output[equipment_type],$C$262,output[year],H$263,output[control_strategy],"ASD Control",output[facility_type],$D$13,output[sensitivity],"Base")-SUMIFS(INDEX(output[#Data],0,MATCH("num_motors_Baseline",output[#Headers],0)),output[equipment_type],$C$262,output[year],H$263,output[control_strategy],"ASD Control",output[facility_type],$D$13,output[sensitivity],"Base")-SUM($D$265:G265) -> 0.1999528448 | I265: =SUMIFS(INDEX(output[#Data],0,MATCH("num_motors_Program",output[#Headers],0)),output[equipment_type],$C$262,output[year],I$263,output[control_strategy],"ASD Control",output[facility_type],$D$13,output[sensitivity],"Base")-SUMIFS(INDEX(output[#Data],0,MATCH("num_motors_Baseline",output[#Headers],0)),output[equipment_type],$C$262,output[year],I$263,output[control_strategy],"ASD Control",output[facility_type],$D$13,output[sensitivity],"Base")-SUM($D$265:H265) -> 0.1999528448 | J265: =SUM(D265:I265) -> 2.166621594
C268: Market Characteristics
C270: ="This section presents the distribution of the installed stock of pumps, fans, and ASDs in the "&D13&" industry. Distributions by control type, load type, and motor size are shown in the figures below. All values are based on the market scenario." -> This section presents the distribution of the installed stock of pumps, fans, and ASDs in the Wood Products industry. Distributions by control type, load type, and motor size are shown in the figures below. All values are based on the market scenario.
C272: Figure 17: Distribution of Fans by Control Type and Load Type, by Year (In-Service Motor HP) | H272: Figure 18: Distribution of Fans by Control Type and Load Type, by Year (In-Service Motors)
C288: ="Table for "&C272 -> Table for Figure 17: Distribution of Fans by Control Type and Load Type, by Year (In-Service Motor HP)
C289: Fans | D289: Year
D290: 2015 | E290: 2016 | F290: 2017 | G290: 2018 | H290: 2019 | I290: 2020 | J290: 2021
C291: Constant Load Non-ASD Control | D291: =SUMIFS(INDEX(output[#Data],0,MATCH("ishp_Market",output[#Headers],0)),output[equipment_type],$C$289,output[control_strategy],"Non ASD Control",output[load_type],"Constant",output[year],D$290,output[facility_type],$D$13,output[sensitivity],"Base")/SUMIFS(INDEX(output[#Data],0,MATCH("ishp_Market",output[#Headers],0)),output[equipment_type],$C$289,output[year],D$290,output[facility_type],$D$13,output[sensitivity],"Base") -> 0.5261734386 | E291: =SUMIFS(INDEX(output[#Data],0,MATCH("ishp_Market",output[#Headers],0)),output[equipment_type],$C$289,output[control_strategy],"Non ASD Control",output[load_type],"Constant",output[year],E$290,output[facility_type],$D$13,output[sensitivity],"Base")/SUMIFS(INDEX(output[#Data],0,MATCH("ishp_Market",output[#Headers],0)),output[equipment_type],$C$289,output[year],E$290,output[facility_type],$D$13,output[sensitivity],"Base") -> 0.520757049 | F291: =SUMIFS(INDEX(output[#Data],0,MATCH("ishp_Market",output[#Headers],0)),output[equipment_type],$C$289,output[control_strategy],"Non ASD Control",output[load_type],"Constant",output[year],F$290,output[facility_type],$D$13,output[sensitivity],"Base")/SUMIFS(INDEX(output[#Data],0,MATCH("ishp_Market",output[#Headers],0)),output[equipment_type],$C$289,output[year],F$290,output[facility_type],$D$13,output[sensitivity],"Base") -> 0.5158857545 | G291: =SUMIFS(INDEX(output[#Data],0,MATCH("ishp_Market",output[#Headers],0)),output[equipment_type],$C$289,output[control_strategy],"Non ASD Control",output[load_type],"Constant",output[year],G$290,output[facility_type],$D$13,output[sensitivity],"Base")/SUMIFS(INDEX(output[#Data],0,MATCH("ishp_Market",output[#Headers],0)),output[equipment_type],$C$289,output[year],G$290,output[facility_type],$D$13,output[sensitivity],"Base") -> 0.5075619866 | H291: =SUMIFS(INDEX(output[#Data],0,MATCH("ishp_Market",output[#Headers],0)),output[equipment_type],$C$289,output[control_strategy],"Non ASD Control",output[load_type],"Constant",output[year],H$290,output[facility_type],$D$13,output[sensitivity],"Base")/SUMIFS(INDEX(output[#Data],0,MATCH("ishp_Market",output[#Headers],0)),output[equipment_type],$C$289,output[year],H$290,output[facility_type],$D$13,output[sensitivity],"Base") -> 0.4992382188 | I291: =SUMIFS(INDEX(output[#Data],0,MATCH("ishp_Market",output[#Headers],0)),output[equipment_type],$C$289,output[control_strategy],"Non ASD Control",output[load_type],"Constant",output[year],I$290,output[facility_type],$D$13,output[sensitivity],"Base")/SUMIFS(INDEX(output[#Data],0,MATCH("ishp_Market",output[#Headers],0)),output[equipment_type],$C$289,output[year],I$290,output[facility_type],$D$13,output[sensitivity],"Base") -> 0.4909144509 | J291: =SUMIFS(INDEX(output[#Data],0,MATCH("ishp_Market",output[#Headers],0)),output[equipment_type],$C$289,output[control_strategy],"Non ASD Control",output[load_type],"Constant",output[year],J$290,output[facility_type],$D$13,output[sensitivity],"Base")/SUMIFS(INDEX(output[#Data],0,MATCH("ishp_Market",output[#Headers],0)),output[equipment_type],$C$289,output[year],J$290,output[facility_type],$D$13,output[sensitivity],"Base") -> 0.482590683
C292: Variable Load Non-ASD Control | D292: =SUMIFS(INDEX(output[#Data],0,MATCH("ishp_Market",output[#Headers],0)),output[equipment_type],$C$289,output[control_strategy],"Non ASD Control",output[load_type],"Variable",output[year],D$290,output[facility_type],$D$13,output[sensitivity],"Base")/SUMIFS(INDEX(output[#Data],0,MATCH("ishp_Market",output[#Headers],0)),output[equipment_type],$C$289,output[year],D$290,output[facility_type],$D$13,output[sensitivity],"Base") -> 0.313365247 | E292: =SUMIFS(INDEX(output[#Data],0,MATCH("ishp_Market",output[#Headers],0)),output[equipment_type],$C$289,output[control_strategy],"Non ASD Control",output[load_type],"Variable",output[year],E$290,output[facility_type],$D$13,output[sensitivity],"Base")/SUMIFS(INDEX(output[#Data],0,MATCH("ishp_Market",output[#Headers],0)),output[equipment_type],$C$289,output[year],E$290,output[facility_type],$D$13,output[sensitivity],"Base") -> 0.3101394888 | F292: =SUMIFS(INDEX(output[#Data],0,MATCH("ishp_Market",output[#Headers],0)),output[equipment_type],$C$289,output[control_strategy],"Non ASD Control",output[load_type],"Variable",output[year],F$290,output[facility_type],$D$13,output[sensitivity],"Base")/SUMIFS(INDEX(output[#Data],0,MATCH("ishp_Market",output[#Headers],0)),output[equipment_type],$C$289,output[year],F$290,output[facility_type],$D$13,output[sensitivity],"Base") -> 0.3072383648 | G292: =SUMIFS(INDEX(output[#Data],0,MATCH("ishp_Market",output[#Headers],0)),output[equipment_type],$C$289,output[control_strategy],"Non ASD Control",output[load_type],"Variable",output[year],G$290,output[facility_type],$D$13,output[sensitivity],"Base")/SUMIFS(INDEX(output[#Data],0,MATCH("ishp_Market",output[#Headers],0)),output[equipment_type],$C$289,output[year],G$290,output[facility_type],$D$13,output[sensitivity],"Base") -> 0.3022811028 | H292: =SUMIFS(INDEX(output[#Data],0,MATCH("ishp_Market",output[#Headers],0)),output[equipment_type],$C$289,output[control_strategy],"Non ASD Control",output[load_type],"Variable",output[year],H$290,output[facility_type],$D$13,output[sensitivity],"Base")/SUMIFS(INDEX(output[#Data],0,MATCH("ishp_Market",output[#Headers],0)),output[equipment_type],$C$289,output[year],H$290,output[facility_type],$D$13,output[sensitivity],"Base") -> 0.2973238409 | I292: =SUMIFS(INDEX(output[#Data],0,MATCH("ishp_Market",output[#Headers],0)),output[equipment_type],$C$289,output[control_strategy],"Non ASD Control",output[load_type],"Variable",output[year],I$290,output[facility_type],$D$13,output[sensitivity],"Base")/SUMIFS(INDEX(output[#Data],0,MATCH("ishp_Market",output[#Headers],0)),output[equipment_type],$C$289,output[year],I$290,output[facility_type],$D$13,output[sensitivity],"Base") -> 0.2923665789 | J292: =SUMIFS(INDEX(output[#Data],0,MATCH("ishp_Market",output[#Headers],0)),output[equipment_type],$C$289,output[control_strategy],"Non ASD Control",output[load_type],"Variable",output[year],J$290,output[facility_type],$D$13,output[sensitivity],"Base")/SUMIFS(INDEX(output[#Data],0,MATCH("ishp_Market",output[#Headers],0)),output[equipment_type],$C$289,output[year],J$290,output[facility_type],$D$13,output[sensitivity],"Base") -> 0.287409317
C293: Constant Load ASD Control | D293: =SUMIFS(INDEX(output[#Data],0,MATCH("ishp_Market",output[#Headers],0)),output[equipment_type],$C$289,output[control_strategy],"ASD Control",output[load_type],"Constant",output[year],D$290,output[facility_type],$D$13,output[sensitivity],"Base")/SUMIFS(INDEX(output[#Data],0,MATCH("ishp_Market",output[#Headers],0)),output[equipment_type],$C$289,output[year],D$290,output[facility_type],$D$13,output[sensitivity],"Base") -> 0.01075915243 | E293: =SUMIFS(INDEX(output[#Data],0,MATCH("ishp_Market",output[#Headers],0)),output[equipment_type],$C$289,output[control_strategy],"ASD Control",output[load_type],"Constant",output[year],E$290,output[facility_type],$D$13,output[sensitivity],"Base")/SUMIFS(INDEX(output[#Data],0,MATCH("ishp_Market",output[#Headers],0)),output[equipment_type],$C$289,output[year],E$290,output[facility_type],$D$13,output[sensitivity],"Base") -> 0.01133862035 | F293: =SUMIFS(INDEX(output[#Data],0,MATCH("ishp_Market",output[#Headers],0)),output[equipment_type],$C$289,output[control_strategy],"ASD Control",output[load_type],"Constant",output[year],F$290,output[facility_type],$D$13,output[sensitivity],"Base")/SUMIFS(INDEX(output[#Data],0,MATCH("ishp_Market",output[#Headers],0)),output[equipment_type],$C$289,output[year],F$290,output[facility_type],$D$13,output[sensitivity],"Base") -> 0.01185977174 | G293: =SUMIFS(INDEX(output[#Data],0,MATCH("ishp_Market",output[#Headers],0)),output[equipment_type],$C$289,output[control_strategy],"ASD Control",output[load_type],"Constant",output[year],G$290,output[facility_type],$D$13,output[sensitivity],"Base")/SUMIFS(INDEX(output[#Data],0,MATCH("ishp_Market",output[#Headers],0)),output[equipment_type],$C$289,output[year],G$290,output[facility_type],$D$13,output[sensitivity],"Base") -> 0.0127502831 | H293: =SUMIFS(INDEX(output[#Data],0,MATCH("ishp_Market",output[#Headers],0)),output[equipment_type],$C$289,output[control_strategy],"ASD Control",output[load_type],"Constant",output[year],H$290,output[facility_type],$D$13,output[sensitivity],"Base")/SUMIFS(INDEX(output[#Data],0,MATCH("ishp_Market",output[#Headers],0)),output[equipment_type],$C$289,output[year],H$290,output[facility_type],$D$13,output[sensitivity],"Base") -> 0.01364079447 | I293: =SUMIFS(INDEX(output[#Data],0,MATCH("ishp_Market",output[#Headers],0)),output[equipment_type],$C$289,output[control_strategy],"ASD Control",output[load_type],"Constant",output[year],I$290,output[facility_type],$D$13,output[sensitivity],"Base")/SUMIFS(INDEX(output[#Data],0,MATCH("ishp_Market",output[#Headers],0)),output[equipment_type],$C$289,output[year],I$290,output[facility_type],$D$13,output[sensitivity],"Base") -> 0.01453130583 | J293: =SUMIFS(INDEX(output[#Data],0,MATCH("ishp_Market",output[#Headers],0)),output[equipment_type],$C$289,output[control_strategy],"ASD Control",output[load_type],"Constant",output[year],J$290,output[facility_type],$D$13,output[sensitivity],"Base")/SUMIFS(INDEX(output[#Data],0,MATCH("ishp_Market",output[#Headers],0)),output[equipment_type],$C$289,output[year],J$290,output[facility_type],$D$13,output[sensitivity],"Base") -> 0.0154218172
C294: Variable Load ASD Control | D294: =SUMIFS(INDEX(output[#Data],0,MATCH("ishp_Market",output[#Headers],0)),output[equipment_type],$C$289,output[control_strategy],"ASD Control",output[load_type],"Variable",output[year],D$290,output[facility_type],$D$13,output[sensitivity],"Base")/SUMIFS(INDEX(output[#Data],0,MATCH("ishp_Market",output[#Headers],0)),output[equipment_type],$C$289,output[year],D$290,output[facility_type],$D$13,output[sensitivity],"Base") -> 0.1497021619 | E294: =SUMIFS(INDEX(output[#Data],0,MATCH("ishp_Market",output[#Headers],0)),output[equipment_type],$C$289,output[control_strategy],"ASD Control",output[load_type],"Variable",output[year],E$290,output[facility_type],$D$13,output[sensitivity],"Base")/SUMIFS(INDEX(output[#Data],0,MATCH("ishp_Market",output[#Headers],0)),output[equipment_type],$C$289,output[year],E$290,output[facility_type],$D$13,output[sensitivity],"Base") -> 0.1577648418 | F294: =SUMIFS(INDEX(output[#Data],0,MATCH("ishp_Market",output[#Headers],0)),output[equipment_type],$C$289,output[control_strategy],"ASD Control",output[load_type],"Variable",output[year],F$290,output[facility_type],$D$13,output[sensitivity],"Base")/SUMIFS(INDEX(output[#Data],0,MATCH("ishp_Market",output[#Headers],0)),output[equipment_type],$C$289,output[year],F$290,output[facility_type],$D$13,output[sensitivity],"Base") -> 0.165016109 | G294: =SUMIFS(INDEX(output[#Data],0,MATCH("ishp_Market",output[#Headers],0)),output[equipment_type],$C$289,output[control_strategy],"ASD Control",output[load_type],"Variable",output[year],G$290,output[facility_type],$D$13,output[sensitivity],"Base")/SUMIFS(INDEX(output[#Data],0,MATCH("ishp_Market",output[#Headers],0)),output[equipment_type],$C$289,output[year],G$290,output[facility_type],$D$13,output[sensitivity],"Base") -> 0.1774066274 | H294: =SUMIFS(INDEX(output[#Data],0,MATCH("ishp_Market",output[#Headers],0)),output[equipment_type],$C$289,output[control_strategy],"ASD Control",output[load_type],"Variable",output[year],H$290,output[facility_type],$D$13,output[sensitivity],"Base")/SUMIFS(INDEX(output[#Data],0,MATCH("ishp_Market",output[#Headers],0)),output[equipment_type],$C$289,output[year],H$290,output[facility_type],$D$13,output[sensitivity],"Base") -> 0.1897971459 | I294: =SUMIFS(INDEX(output[#Data],0,MATCH("ishp_Market",output[#Headers],0)),output[equipment_type],$C$289,output[control_strategy],"ASD Control",output[load_type],"Variable",output[year],I$290,output[facility_type],$D$13,output[sensitivity],"Base")/SUMIFS(INDEX(output[#Data],0,MATCH("ishp_Market",output[#Headers],0)),output[equipment_type],$C$289,output[year],I$290,output[facility_type],$D$13,output[sensitivity],"Base") -> 0.2021876643 | J294: =SUMIFS(INDEX(output[#Data],0,MATCH("ishp_Market",output[#Headers],0)),output[equipment_type],$C$289,output[control_strategy],"ASD Control",output[load_type],"Variable",output[year],J$290,output[facility_type],$D$13,output[sensitivity],"Base")/SUMIFS(INDEX(output[#Data],0,MATCH("ishp_Market",output[#Headers],0)),output[equipment_type],$C$289,output[year],J$290,output[facility_type],$D$13,output[sensitivity],"Base") -> 0.2145781828
C296: ="Table for "&H272 -> Table for Figure 18: Distribution of Fans by Control Type and Load Type, by Year (In-Service Motors)
C297: Fans | D297: Year
D298: 2015 | E298: 2016 | F298: 2017 | G298: 2018 | H298: 2019 | I298: 2020 | J298: 2021
C299: Constant Load Non-ASD Control | D299: =SUMIFS(INDEX(output[#Data],0,MATCH("num_motors_Market",output[#Headers],0)),output[equipment_type],$C$289,output[control_strategy],"Non ASD Control",output[load_type],"Constant",output[year],D$290,output[facility_type],$D$13,output[sensitivity],"Base")/SUMIFS(INDEX(output[#Data],0,MATCH("num_motors_Market",output[#Headers],0)),output[equipment_type],$C$289,output[year],D$290,output[facility_type],$D$13,output[sensitivity],"Base") -> 0.2771735793 | E299: =SUMIFS(INDEX(output[#Data],0,MATCH("num_motors_Market",output[#Headers],0)),output[equipment_type],$C$289,output[control_strategy],"Non ASD Control",output[load_type],"Constant",output[year],E$290,output[facility_type],$D$13,output[sensitivity],"Base")/SUMIFS(INDEX(output[#Data],0,MATCH("num_motors_Market",output[#Headers],0)),output[equipment_type],$C$289,output[year],E$290,output[facility_type],$D$13,output[sensitivity],"Base") -> 0.2675024953 | F299: =SUMIFS(INDEX(output[#Data],0,MATCH("num_motors_Market",output[#Headers],0)),output[equipment_type],$C$289,output[control_strategy],"Non ASD Control",output[load_type],"Constant",output[year],F$290,output[facility_type],$D$13,output[sensitivity],"Base")/SUMIFS(INDEX(output[#Data],0,MATCH("num_motors_Market",output[#Headers],0)),output[equipment_type],$C$289,output[year],F$290,output[facility_type],$D$13,output[sensitivity],"Base") -> 0.2592063039 | G299: =SUMIFS(INDEX(output[#Data],0,MATCH("num_motors_Market",output[#Headers],0)),output[equipment_type],$C$289,output[control_strategy],"Non ASD Control",output[load_type],"Constant",output[year],G$290,output[facility_type],$D$13,output[sensitivity],"Base")/SUMIFS(INDEX(output[#Data],0,MATCH("num_motors_Market",output[#Headers],0)),output[equipment_type],$C$289,output[year],G$290,output[facility_type],$D$13,output[sensitivity],"Base") -> 0.2458395978 | H299: =SUMIFS(INDEX(output[#Data],0,MATCH("num_motors_Market",output[#Headers],0)),output[equipment_type],$C$289,output[control_strategy],"Non ASD Control",output[load_type],"Constant",output[year],H$290,output[facility_type],$D$13,output[sensitivity],"Base")/SUMIFS(INDEX(output[#Data],0,MATCH("num_motors_Market",output[#Headers],0)),output[equipment_type],$C$289,output[year],H$290,output[facility_type],$D$13,output[sensitivity],"Base") -> 0.2334022007 | I299: =SUMIFS(INDEX(output[#Data],0,MATCH("num_motors_Market",output[#Headers],0)),output[equipment_type],$C$289,output[control_strategy],"Non ASD Control",output[load_type],"Constant",output[year],I$290,output[facility_type],$D$13,output[sensitivity],"Base")/SUMIFS(INDEX(output[#Data],0,MATCH("num_motors_Market",output[#Headers],0)),output[equipment_type],$C$289,output[year],I$290,output[facility_type],$D$13,output[sensitivity],"Base") -> 0.2218004543 | J299: =SUMIFS(INDEX(output[#Data],0,MATCH("num_motors_Market",output[#Headers],0)),output[equipment_type],$C$289,output[control_strategy],"Non ASD Control",output[load_type],"Constant",output[year],J$290,output[facility_type],$D$13,output[sensitivity],"Base")/SUMIFS(INDEX(output[#Data],0,MATCH("num_motors_Market",output[#Headers],0)),output[equipment_type],$C$289,output[year],J$290,output[facility_type],$D$13,output[sensitivity],"Base") -> 0.2109528768
